Workbook

Sheet kuni 2025 detsember tegevuskava (hidden)
A1: Valdkondlik digipööre
A2: Elluviija: | B2: Majandus-ja Kommunikatsiooniministeerium | G2: Valdkondliku digipöörde maksumus kokku (2023-2028) meetme nelja tegevuse lõikes, arvestdes kõiki rahasutsallikaid.
A3: Eelarve: | B3: Kokku 2023-2025 | C3: 2023 | D3: 2024 | E3: 2025 | G3: Kokku: | H3: 1. Infotehnoloogiliste lahenduste väljatöötamine ja arendamine | I3: 2. küberruumi hoidmine, arendamine ja juurutamine usaldusväärse ja turvalisena | J3: 3. Teadlikkuse tõstmine | K3: 4. muu digipöördega seotud otsene kulu
A4: KOKKU: | B4: =SUM(C4:E4) -> 18,919,067 | C4: =SUM(C5+C12) -> 23,250 | D4: =SUM(D5+D12) -> 1,807,000 | E4: =SUM(E5+E12) -> 17,088,817 | G4: =SUM(H4:K4) -> 117,893,812 | H4: =SUMIFS(Q35:Q104,G35:G104,$G$107) -> 25,110,997 | I4: =SUMIFS(Q35:Q104,G35:G104,$G$108) -> 5,793,472 | J4: =SUMIFS(Q35:Q104,G35:G104,$G$109) -> 3,652,581 | K4: =SUMIFS(Q35:Q104,G35:G104,$G$110) -> 83,336,762
A5: Digipöörde olemasolevad rahalised vahedid | B5: =SUM(C5:E5) -> 683,625 | C5: =SUM(C6:C11) -> 0 | D5: =SUM(D6:D11) -> 0 | E5: =SUM(E6:E11) -> 683,625
A6: sh baaseelarve | B6: =SUM(C6:E6) -> 0 | C6: =SUMIFS(R35:R104,P35:P104,"Baaseelarve") -> 0 | D6: =SUMIFS(S35:S104,P35:P104,"Baaseelarve") -> 0 | E6: =SUMIFS(T35:T104,P35:P104,"Baaseelarve") -> 0
A7: sh muu rahastus | B7: =SUM(C7:E7) -> 683,625 | C7: =SUMIFS(R35:R104,P35:P104,"Muu rahastus") -> 0 | D7: =SUMIFS(S35:S104,P35:P104,"Muu rahastus") -> 0 | E7: =SUMIFS(T35:T104,P35:P104,"Muu rahastus") -> 683,625
A8: sh reserv (SR) | B8: =SUM(C8:E8) -> 0 | C8: =SUMIFS(R35:R104,P35:P104,"Reserv (SR)") -> 0 | D8: =SUMIFS(S35:S104,P35:P104,"Reserv (SR)") -> 0 | E8: =SUMIFS(T35:T104,P35:P104,"Reserv (SR)") -> 0
A9: sh RRF | B9: =SUM(C9:D9) -> 0 | C9: =SUMIFS(R35:R104,P35:P104,"RRF") -> 0 | D9: =SUMIFS(S35:S104,P35:P104,"RRF") -> 0
A10: sh SF 14-20 (töös olev projekt) | B10: =SUM(C10:E10) -> 0 | C10: =SUMIFS(R35:R104,P35:P104,"SF 14-20 (töös olev projekt)") -> 0 | D10: =SUMIFS(S35:S104,P35:P104,"SF 14-20 (töös olev projekt)") -> 0 | E10: =SUMIFS(T35:T104,P35:P104,"SF 14-20 (töös olev projekt)") -> 0
A11: RRF | B11: =SUM(C11:E11) -> 0 | C11: =SUMIFS(R35:R104,P35:P104,"RRF") -> 0 | D11: =SUMIFS(S35:S104,P35:P104,"RRF") -> 0 | E11: =SUMIFS(T35:T104,P35:P104,"RRF") -> 0
A12: Digipöörde puuduolevad rahalised vahendid | B12: =SUM(C12:E12) -> 18,235,442 | C12: =SUM(C13:C14) -> 23,250 | D12: =SUM(D13:D14) -> 1,807,000 | E12: =SUM(E13:E14) -> 16,405,192
A13: sh RES IKT (vaja juurde taotleda) | B13: =SUM(C13:E13) -> 14,244,642 | C13: =SUMIFS(R35:R104,P35:P104,"RES IKT (vaja juurde taotleda)") -> 0 | D13: =SUMIFS(S35:S104,P35:P104,"RES IKT (vaja juurde taotleda)") -> 0 | E13: =SUMIFS(T35:T104,P35:P104,"RES IKT (vaja juurde taotleda)") -> 14,244,642 | F13: Puudu olev lisavajadus riigieelarvest, vajadus taotleda RES protsessis.
A14: sh SF 21-27 (taotletav raha) | B14: =SUM(C14:E14) -> 3,990,800 | C14: =SUMIFS(R35:R104,P35:P104,"SF 21-27 (taotletav raha)") -> 23,250 | D14: =SUMIFS(S35:S104,P35:P104,"SF 21-27 (taotletav raha)") -> 1,807,000 | E14: =SUMIFS(T35:T104,P35:P104,"SF 21-27 (taotletav raha)") -> 2,160,550 | F14: Puudu olev lisavajadus SF-st, SF 21-27 valdkondlike digipöörete toetusskeemist.
A16: NB! Mõõdikud tuleb täita ainult SF 2021-2027 rahastuse puhul.
A17: Meetmete nimekirja tulemusnäitaja: | B17: Uute ja uuendatud avalike digiteenuste, -toodete ja -protsesside kasutajad. Mõõtühik: lõppkasutajaid aastas. | J17: Elluviija kommentaar | K17: Käskkirjas välja toodud elluviijate peale kokku on mõõdiku 2029 sihttase 2 000 000. Välja tuua, milline on teie panus selle mõõdiku täitmisse.
A18: Periood | B18: 2023 algtase | C18: 2024 sihttase | D18: 2025 sihttase | E18: 2026 sihttase | F18: 2027 sihttase | G18: 2028 sihttase | H18: 2029 sihttase | I18: 2030 lõpptase
A19: Väärtus | B19: 0 | C19: 5,000 | D19: 10,000 | E19: 18,000 | F19: 28,000 | G19: 30,000 | H19: 30,000 | I19: 30,000 | J19: Arvestatud on TTJA kasutajate arvu, mitte kasutusjuhtusid. | K19: Sisestada tuleb täisarv.
A20: Meetmete nimekirja väljundnäitaja: | B20: Uued või uuendatud digiteenused, -tooted ja -protsessid. Mõõtühik: arv | K20: Käskkirjas välja toodud elluviijate peale kokku on mõõdiku 2029 sihttase 35. Välja tuua, milline on teie panus selle mõõdiku täitmisse. Siia tuleb kokku lugeda lõpule viidud uued või uuendatud digiteenused, - tooted ja -protsessid.
A21: Periood | B21: 2023 algtase | C21: 2024 sihttase | D21: 2025 sihttase | E21: 2026 sihttase | F21: 2027 sihttase | G21: 2028 sihttase | H21: 2029 sihttase | I21: 2030 lõpptase
A22: Väärtus | B22: 0 | C22: 2 | D22: 30 | E22: 50 | F22: 80 | G22: 84 | H22: 84 | I22: 84 | J22: Teenuste arv võib muutuda kuna TTJA teenuste portfell ei ole veel lõplikult kokku lepitud. | K22: Kasutuskordade kokku lugemise metoodika määrab elluviija ise arvestades oma valdkonda. Sisestada tuleb täisarv.
A23: Meetmete nimekirja väljundnäitaja: | B23: Avaliku sektori asutused, keda toetatakse digiteenuste, -toodete ja -protsesside väljatöötamiseks. Mõõtühik: Avaliku sektori asutused. | K23: Käskkirjas välja toodud elluviijate peale kokku on mõõdiku 2029 sihttase 35. Välja tuua, milline on teie panus selle mõõdiku täitmisse. Siia tuleb kokku lugeda asutused, kes teie digipöörde raames SF toetust kasutavad (elluviija ja partnerid).
A24: Periood | B24: 2023 algtase | C24: 2024 sihttase | D24: 2025 sihttase | E24: 2026 sihttase | F24: 2027 sihttase | G24: 2028 sihttase | H24: 2029 sihttase | I24: 2030 lõpptase
A25: Väärtus | B25: 0 | C25: 4 | D25: 5 | E25: 5 | F25: 6 | G25: 7 | H25: 7 | I25: 7 | J25: MKMi valitsemisala asutused ning seotud IT asutused, kes digipöörde suundadega (teenused, andmed, arhitektuur, küberturvalisus, kestlikkus, oskused) tegelevad. | K25: Tükkide kokku lugemise metoodika määrab elluviija ise arvestades oma valdkonda. Sisestada tuleb täisarv.
A26: Projektispetsiifiline näitaja (Eesti digiühiskonna arengukava 2030 (DA 2030) mõõdik): | B26: Avalike digiteenustega rahulolu. Mõõtühik: % | K26: Riigiüleselt avalike digiteenustega rahululu peab 2030. aastaks tõusma 90%-le. Välja tuua, milline on teie panus selle mõõdiku täitmisse.
A27: Periood | B27: 2023 algtase | C27: 2024 sihttase | D27: 2025 sihttase | E27: 2026 sihttase | F27: 2027 sihttase | G27: 2028 sihttase | H27: 2029 sihttase | I27: 2030 lõpptase
A28: Väärtus | B28: 0 | C28: 0 | D28: 70 | E28: 80 | F28: 82 | G28: 85 | H28: 88 | I28: 90 | J28: Metoodikat ja mõõtmist hakatakse TTJA teenustele 2024 välja töötama. | K28: Rahulolu kokku lugemise metoodika määrab elluviija ise arvestades oma valdkonda
X32: NB! Kõik summad kajastada ilma käibemaksuta!
A33: Elluviija/ministeerium | B33: Struktuuriüksus | C33: Partner/Asutus | D33: Teenuse vastutaja | E33: DÜAK plokk | F33: Panus arengukava suunda | G33: Meetme toetatav tegevus | H33: TERE teenus | I33: Probleem | J33: Tegevuse (algatuse) nimi | K33: Tulemus | L33: Otsus | M33: Valdkonna prioriteet | N33: Slaid/allikas | O33: Paneeli vajadus | P33: Rahastuse allikas | Q33: Summa kokku | R33: 2023 | S33: 2024 | T33: 2025 | U33: 2026 | V33: 2027 | W33: 2028 | X33: 2023 (Kasutusse võetud vahendid, ehk kohustustega / lepingutega kaetud) | AA33: 2024 | AD33: 2025 | AG33: 2026 | AJ33: 2027 | AM33: 2028 | AP33: Kalkulatsioon ja allika põhjendus Võimalusel kirjeldada siin lahtris, kui on põhjalikum tabeli kujul kalkulatsioon, siis see tuua välja eraldi Exceli lehel ja siin vastava rea lahtris sellele viidata. | AQ33: Tegevuse jätkusuutlikkuse kulu | AR33: Kommentaar | AS33: RES lisavajaduste grupid | AT33: RES lisavajaduste kestvus
A34: Punkt 5.3.1. „Toetuse andmise tingimused valdkondlike digipöörete toetamiseks“ | B34: Punkt 5.6. „Toetuse andmise tingimused valdkondlike digipöörete toetamiseks“ | C34: Partner/asutus, kelle eelarvest algatusi teostatakse Punkt 5.6. „Toetuse andmise tingimused valdkondlike digipöörete toetamiseks“ | D34: Vastutav teenuseomanik/ projektijuht | E34: (valida rippmenüüst) | F34: (valida rippmenüüst) | G34: (valida rippmenüüst, SF TAT käskkirja punkt 3.1. neli tegevust) | H34: Kirjutada välja TERE teenuse nimetus | I34: Täita kõikide ridade puhul | J34: Täita kõikide ridade puhul (Kui tegmist jätkusuutlikkuse tagamise tegevusega, siis see nimes välja tuua.) | K34: Täita kõikide ridade puhul. Kui mitme aastane tegevus/projekt, siis kirjutada välja vähemalt 2023. aasta tulemus ja lõpptulemus. RES lisavajadustel tuua välja, mida mingi aasta RES rahade eest ära tehakse. Kui lisavajadus on kogu perioodiks ja kulud on aasta-aastalt sama, siis näiteks: 2025-2028 - SF-st arendatu hoolduskulu, väikearendused, majutus riigipilves, jne. Kui tegevused on aastati erinevad, siis tuua need välja järgmiselt: 2025 - 2026 - 2027 - 2028 - | L34: ok- rahastada, nok- mitte rahastada, ?-otsus lahtine | M34: Unikaalne prioriteet | N34: Esitatud slaidi number, või viide allikale, kus on võimalik tutvuda vajadusel sisuga, sh täpsemate kalkulatsioonidega | O34: Anda hinnang, kas on vajadus äri-, andmete-, arhitektuuri-, või muu paneeli järele. NB! Paneelivajadus on igal üle 400 000 euro maksval algatusel/tegevusel. Konkreetne paneel, või paneelid otsustatakse MKM ettepanekul kohtumisel elluviijaga. | P34: (valida rippmenüüst) | X34: Investeering (15) | Y34: Tööjõukulu (50) | Z34: Majandamiskulu (55) | AA34: Investeering (15) | AB34: Tööjõukulu (50) | AC34: Majandamiskulu (55) | AD34: Investeering (15) | AE34: Tööjõukulu (50) | AF34: Majandamiskulu (55) | AG34: Investeering (15) | AH34: Tööjõukulu (50) | AI34: Majandamiskulu (55) | AJ34: Investeering (15) | AK34: Tööjõukulu (50) | AL34: Majandamiskulu (55) | AM34: Investeering (15) | AN34: Tööjõukulu (50) | AO34: Majandamiskulu (55) | AP34: Välja peab olema toodud tegevuste maksumuste arvutused, koos tundide hinna, tundide arvu ja tunnihinna selgitustega. Arenduste puhul lisada tunnihinna põhjendus varasemate hangetega. Inimeste palkamisel peab lähtuma Fontese palgauuringust ja viitama vastavale tööperele. | AQ34: (valida rippmenüüst) | AR34: RES lisavajaduste puhul tuua välja, milliste tabeli SF ridadega on käesolev jätkusuutlikkuse rida seotud. Nt: jätkusuutlikkuse kulu ridadele 38, 39 ja 40. Kui ei ole tegemist jätkusuutlikkuse kuluga, vaid digipöördes eraldiseisva riigieelarvest täiendavat rahastust vajava tegevusega, siis see siin veerus välja tuua. | AS34: 1. Personaalne riik. 2. AI ja andmed. 3. Õigusaktidest tulenevad vajadused. 4. Baasi korrastamine. 5. Küberturvalisus. 6. Mittesõjalised riigikaitselised IKT vajadused. | AT34: RES lisavajaduste puhul tuua välja kas tegemist püsikuluga mis peab minema baasi, või on tegemist ühekordse kuluga konkrteetse(te)l aasta(te)l.
A35: MKM | D35: Kaire Kasearu | E35: I: Digiriik | F35: 1.2.1. Avalike teenuste juhtimise ja kasutajakesksuse juurutamine | G35: III: teadlikkuse tõstmine | H35: Panustab mitmetesse TERE teenustesse | I35: Puudub ühine standard ja raamistik, kuidas teenuste kogu elukaare jooksul juhitakse ning arendatakse, arvestades 6 suunda | J35: Teenuse elukaare juhtimise strateegia, sh mõõdikute kokku panemine, sh eksperdiga koostöös (Analüüsist: Luua VA strateegilisi eesmärke toetav IKT strateegia ja rakendusplaan, organisatsiooni plaan ja riskiplaan.) | K35: Teenuse elukaare juhtimise strateegia on koostatud ja mõõdikud olemas | L35: ok | M35: 9 | O35: Ei | P35: SF 21-27 (taotletav raha) | Q35: =SUM(R35:W35) -> 15,000 | R35: =SUM(X35:Z35) -> 0 | S35: =SUM(AA35:AC35) -> 15,000 | T35: =SUM(AD35:AF35) -> 0 | U35: =SUM(AG35:AI35) -> 0 | V35: =SUM(AJ35:AL35) -> 0 | W35: =SUM(AM35:AO35) -> 0 | AC35: 15,000 | AP35: Analoogne teenuse ostmise leping on aluseks võetud | AQ35: 2. Tegevus on jätkusuutlikkuse kulu (baaseelarve, RES lisataotlus, muu allikas)
A36: MKM | D36: Kaire Kasearu | E36: I: Digiriik | F36: 1.2.1. Avalike teenuste juhtimise ja kasutajakesksuse juurutamine | G36: III: teadlikkuse tõstmine | H36: Panustab mitmetesse TERE teenustesse | I36: Kuna MKMis varasemalt digipöörde juhtimismudelit ei olnud, siis ühste eesmärgi jaoks peab olema juhtimismudel käivitatud ja juurutatud. | J36: Juhtimismudeli käivitamine ja juurutamine (nõukogu, juhtrühma ja võrgustikuga seotud tegevused) | K36: Nõukogu, juhtrühm ja võrgustiku tegevused on korraldatud. | L36: ok | M36: 10 | O36: Ei | P36: SF 21-27 (taotletav raha) | Q36: 7,000 | R36: =SUM(X36:Z36) -> 0 | S36: =SUM(AA36:AC36) -> 7,000 | T36: =SUM(AD36:AF36) -> 0 | U36: =SUM(AG36:AI36) -> 0 | V36: =SUM(AJ36:AL36) -> 0 | W36: =SUM(AM36:AO36) -> 0 | AC36: 7,000 | AQ36: 5. SF tegevus, mis ei vaja jätkusuutlikkuse kulusid (nt analüüs)
A37: MKM | D37: Kaire Kasearu | E37: I: Digiriik | F37: 1.2.7. Avaliku sektori digimuutuste võimendamine | G37: III: teadlikkuse tõstmine | H37: Panustab mitmetesse TERE teenustesse | I37: MKMi valitsemisala digipöörde suundade hetkeolukord on kaardistatud ja probleemkohad leitud. | J37: MKMi valitsemisala digipöörde suundade (teenuse juhtimine, andmed, arhitektuur, küberturvalisus, kestlikkus, oskused ja võimekus) võimestamise tegevused | K37: Hetkeolukorrast lähtuvalt aasta 2023/2024 kriitilised tegevused on tehtud. | L37: ok | M37: 3 | P37: SF 21-27 (taotletav raha) | Q37: 30,000 | R37: =SUM(X37:Z37) -> 0 | S37: =SUM(AA37:AC37) -> 30,000 | T37: =SUM(AD37:AF37) -> 0 | U37: =SUM(AG37:AI37) -> 0 | V37: =SUM(AJ37:AL37) -> 0 | W37: 0 | AC37: 30,000 | AP37: Arvestatud on 15 tuhat konsultatsiooni ja 15000 ajurünnaku vms üritusi. | AQ37: 5. SF tegevus, mis ei vaja jätkusuutlikkuse kulusid (nt analüüs)
A38: MKM | B38: TTJA | D38: Raul Kallas | E38: I: Digiriik | F38: 1.2.5. Uute lähenemisviiside pidev katsetamine | G38: I: Infotehnoloogiliste lahenduste väljatöötamine ja arendamine | H38: Panustab mitmetesse TERE teenustesse | I38: Puudub võimekus protsessimootor mikroarhitektuuri integreerida. | J38: Protsessimootri kasutuselevõtu lahenduse väljatöötamine (2021-27 SF) | K38: On valminud protsessi juhtimise tarkvarade võrdlev analüüs | L38: ok | M38: 5 | O38: Ei | P38: SF 21-27 (taotletav raha) | Q38: 25,000 | R38: 0 | S38: 25,000 | T38: 0 | U38: 0 | V38: 0 | W38: 0 | AC38: 25,000 | AQ38: 5. SF tegevus, mis ei vaja jätkusuutlikkuse kulusid (nt analüüs)
A39: MKM | B39: TTJA | D39: Raul Kallas | E39: I: Digiriik | F39: 1.2.7. Avaliku sektori digimuutuste võimendamine | G39: III: teadlikkuse tõstmine | H39: Panustab mitmetesse TERE teenustesse | I39: TTJAl puudub võimekus analüütiku ja koolituste osas | J39: TTJA võimestamine digipöörde elluviimiseks (nt analüütikud, disainer, koolitused) (2021-27 SF) | K39: Digipöörde elluviimiseks on värvatud nt analüütikud, disainer, kompetentsid on tugevdatud | L39: ok | M39: 2 | O39: Ei | P39: SF 21-27 (taotletav raha) | Q39: 991,052 | R39: 19,102 | S39: =SUM(AA39:AC39) -> 224,000 | T39: 224,000 | U39: 255,800 | V39: 268,150 | W39: 0 | Y39: 11,926 | Z39: 7176 | AB39: 214,000 | AC39: 10,000 | AE39: 214,000 | AF39: 10,000 | AH39: 245,800 | AI39: 10,000 | AK39: 258,150 | AL39: 10,000 | AQ39: 4. SF tegevus, mis vajab jätkusuutlikkuse kulusid, aga neid pole välja arvutatud ja eraldi real välja toodud | AR39: Alates 2028 tekib RES vajadus
A40: MKM | B40: TTJA | D40: Raul Kallas | E40: I: Digiriik | F40: 1.2.5. Uute lähenemisviiside pidev katsetamine | G40: I: Infotehnoloogiliste lahenduste väljatöötamine ja arendamine | H40: Panustab mitmetesse TERE teenustesse | I40: Teenuste portfelli nõuded ei ole vastavuses suundade ja nõuetega | J40: TTJA teenuste portfelli ärianalüüs, tegevuskava teenuste vastavusse viimiseks haldusala üldiste suundade/nõuetega | K40: Ärianalüüs ja tegevuskava olemas | L40: ok | M40: 5 | O40: Ei | P40: SF 21-27 (taotletav raha) | Q40: 5,000 | R40: 0 | S40: 5,000 | T40: 0 | U40: 0 | V40: 0 | W40: 0 | AC40: 5,000 | AQ40: 5. SF tegevus, mis ei vaja jätkusuutlikkuse kulusid (nt analüüs)
A41: MKM | B41: TTJA | D41: Raul Kallas | E41: I: Digiriik | F41: 1.2.5. Uute lähenemisviiside pidev katsetamine | G41: I: Infotehnoloogiliste lahenduste väljatöötamine ja arendamine | H41: Panustab mitmetesse TERE teenustesse | I41: Klienditoe teenus on killustatud ja pole ühtselt hallatud. | J41: klienditoe teenuse I etapi käivitamine | K41: Klienditoe I etapp on käivitatud | L41: ok | M41: 4 | O41: Ei | P41: SF 21-27 (taotletav raha) | Q41: 5,000 | R41: 0 | S41: 5,000 | T41: 0 | U41: 0 | V41: 0 | W41: 0 | AC41: 5,000 | AQ41: 5. SF tegevus, mis ei vaja jätkusuutlikkuse kulusid (nt analüüs)
A42: MKM | B42: TTJA | D42: Raul Kallas | E42: I: Digiriik | F42: 1.2.5. Uute lähenemisviiside pidev katsetamine | G42: I: Infotehnoloogiliste lahenduste väljatöötamine ja arendamine | H42: Panustab mitmetesse TERE teenustesse | I42: E-teenuste infosüsteemi tootestamiseks puudub hea sisend, mille alusel arendusi tellida. | J42: e-teenuste infosüsteemi tootestamise analüüs | K42: e-teenuste analüüs on olemas | L42: ok | M42: 7 | O42: Ei | P42: SF 21-27 (taotletav raha) | Q42: 10,000 | R42: 0 | S42: 10,000 | T42: 0 | U42: 0 | V42: 0 | W42: 0 | AC42: 10,000 | AQ42: 5. SF tegevus, mis ei vaja jätkusuutlikkuse kulusid (nt analüüs)
A43: MKM | B43: KEMIT | D43: Kristjan Kaiklem | E43: I: Digiriik | F43: 1.2.5. Uute lähenemisviiside pidev katsetamine | G43: I: Infotehnoloogiliste lahenduste väljatöötamine ja arendamine | H43: Panustab mitmetesse TERE teenustesse | I43: Direktiivide ülevõtmiseks ja andmete liidestumiseks puudub selge teadmine. | J43: EU direktiivinõuete täitmiseks andmeliidestuse mikroteenuse analüüs ja arendus | K43: Teostatud on arendusprojekt liidestuste loomiseks | L43: ok | M43: 8 | O43: Ei | P43: SF 21-27 (taotletav raha) | Q43: 60,000 | R43: 0 | S43: 60,000 | T43: 0 | U43: 0 | V43: 0 | W43: 0 | AA43: 60,000 | AQ43: 5. SF tegevus, mis ei vaja jätkusuutlikkuse kulusid (nt analüüs) | AR43: Rida 48-ga seos arenduste vaates
A44: MKM | D44: Kaire Kasearu | E44: I: Digiriik | F44: 1.2.1. Avalike teenuste juhtimise ja kasutajakesksuse juurutamine | G44: III: teadlikkuse tõstmine | H44: Panustab mitmetesse TERE teenustesse | I44: Digipöörde käivitamine eeldab uusi kompetentse ja keskseid koordineerivad rolle teemades IT arhitektuur, teenused, andmed, kestlikkus, oskused, mida hetkel valitsemisalas pole | J44: Kesksete rollide loomine valitsemisalas | K44: On olemas valitsemisala teenused, arhitektuur, andmed, kestlikkus, oskused teemade vastuatajate kompetentsid. | L44: ok | M44: 1 | O44: Ei | P44: SF 21-27 (taotletav raha) | Q44: 549,148 | R44: 4,148 | S44: 90,000 | T44: 135,000 | U44: 320,000 | V44: 0 | W44: 0 | Y44: 4,148 | AB44: 75,000 | AC44: 15,000 | AE44: 115,000 | AF44: 20,000 | AH44: 300,000 | AI44: 20,000 | AP44: Tavapäraselt (nt KEMIT) tööjõu näitel on antud ametikoha palgakuluks arvestatud koos kõikide maksudega 6000 eurot ning koolitus ja lähetuskulud 5000 eurot | AQ44: 4. SF tegevus, mis vajab jätkusuutlikkuse kulusid, aga neid pole välja arvutatud ja eraldi real välja toodud | AR44: Selgub täpsemalt 2025 aastal. Hetkel arvestatud lubatud SF perioodiga.
A45: MKM | B45: KEMIT | D45: Kristjan Kaiklem | E45: I: Digiriik | F45: 1.2.1. Avalike teenuste juhtimise ja kasutajakesksuse juurutamine | G45: I: Infotehnoloogiliste lahenduste väljatöötamine ja arendamine | H45: Panustab mitmetesse TERE teenustesse | I45: Teenused aeglased, kliendile ebamugavad, automatiseerimata; süsteemides esineb palju vigu | J45: Uue kasutajaliidese disaini väljatöötamine | K45: Teostatud loateenuste kasutajateekondade analüüs ja loodud uus UX disain loateenuste kasutajateekondade jaoks | L45: ok | M45: 1 | O45: Ei | P45: SF 21-27 (taotletav raha) | Q45: 120,000 | R45: 0 | S45: 120,000 | T45: 0 | U45: 0 | V45: 0 | W45: 0 | AC45: 120,000 | AP45: 10000 on hinnanguliselt 1 teenuse analüüs | AQ45: 5. SF tegevus, mis ei vaja jätkusuutlikkuse kulusid (nt analüüs)
A46: MKM | B46: KEMIT | D46: Kristjan Kaiklem | E46: I: Digiriik | F46: 1.2.1. Avalike teenuste juhtimise ja kasutajakesksuse juurutamine | G46: I: Infotehnoloogiliste lahenduste väljatöötamine ja arendamine | H46: Ettevõtluskeskkonna toimimise tagamine | I46: Teenused aeglased, kliendile ebamugavad, automatiseerimata; süsteemides esineb palju vigu | J46: Loateenuste piloot ja välisinvesteeringute usaldusväärsuse hindamise rakendus | K46: Välisinvesteeringute usaldusväärsuse hindamise teenuse detailanalüüs teostatud ja loataotluse rakendus toimib kliendikeskkonna tootes koos majandustegevuse teadetega toodangukeskkonnas | L46: ok | M46: 1 | O46: Ei | P46: SF 21-27 (taotletav raha) | Q46: 280,000 | R46: 0 | S46: 200,000 | T46: 80,000 | U46: 0 | V46: 0 | W46: 0 | AA46: 200,000 | AD46: 80,000 | AP46: Kinnitatud eelarve | AQ46: 5. SF tegevus, mis ei vaja jätkusuutlikkuse kulusid (nt analüüs)
A47: MKM | B47: TTJA | D47: Raul Kallas | E47: I: Digiriik | F47: 1.2.1. Avalike teenuste juhtimise ja kasutajakesksuse juurutamine | G47: I: Infotehnoloogiliste lahenduste väljatöötamine ja arendamine | H47: Panustab mitmetesse TERE teenustesse | I47: Teenused aeglased, kliendile ebamugavad, automatiseerimata; süsteemides esineb palju vigu | J47: Projektijuht | K47: Digipörde teostamine toimib vastavalt aja- ja tegevusplaanile | L47: ok | M47: 1 | O47: Ei | P47: SF 21-27 (taotletav raha) | Q47: 246,600 | R47: 0 | S47: 55,000 | T47: 55,000 | U47: 66,500 | V47: 70,100 | W47: 0 | Y47: 0 | AB47: 55,000 | AE47: 55,000 | AH47: 66,500 | AK47: 70,100 | AQ47: 5. SF tegevus, mis ei vaja jätkusuutlikkuse kulusid (nt analüüs) | AR47: Kui projekt lõpeb, siis ka jätkukulu ei ole vaja.
A48: MKM | B48: KEMIT | D48: Kristjan Kaklem | E48: I: Digiriik | F48: 1.2.1. Avalike teenuste juhtimise ja kasutajakesksuse juurutamine | G48: IV: muu digipöördega seotud otsene kulu | H48: Panustab mitmetesse TERE teenustesse | I48: Teenused aeglased, kliendile ebamugavad, automatiseerimata; süsteemides esineb palju vigu | J48: e-teenuste tehnoloogilise platvormi baaskulu | K48: Tehnoloogiline taristu ja teenused on hallatud | L48: ? | M48: 1 | O48: Ei | P48: SF 21-27 (taotletav raha) | Q48: 488,800 | R48: 0 | S48: 150,000 | T48: 0 | U48: 165,300 | V48: 173,500 | W48: 0 | AA48: 150,000 | AD48: 0 | AG48: 165,300 | AJ48: 173,500 | AP48: 10% investeerinu maksumusest | AQ48: 4. SF tegevus, mis vajab jätkusuutlikkuse kulusid, aga neid pole välja arvutatud ja eraldi real välja toodud | AR48: Vajadus tekib alates 2028
A49: MKM | B49: TTJA | D49: Raul Kallas | E49: I: Digiriik | F49: 1.2.5. Uute lähenemisviiside pidev katsetamine | G49: I: Infotehnoloogiliste lahenduste väljatöötamine ja arendamine | H49: Panustab mitmetesse TERE teenustesse | I49: Teenused aeglased, kliendile ebamugavad, automatiseerimata; süsteemides esineb palju vigu | J49: Rakendusadministraator protsessijuhtimise tarkvara jaoks | K49: Protsessijuhtimise tarkvara on testitud, toimib jätkusuutlikult e-teenuste platvormil | L49: ok | M49: 1 | O49: Ei | P49: SF 21-27 (taotletav raha) | Q49: 269,200 | R49: 0 | S49: 66,000 | T49: 66,000 | U49: 67,000 | V49: 70,200 | W49: 0 | AB49: 56,000 | AC49: 10,000 | AE49: 56,000 | AF49: 10,000 | AH49: 64,000 | AI49: 3,000 | AK49: 67,200 | AL49: 3,000 | AP49: Palgatase tööjõuturul | AQ49: 4. SF tegevus, mis vajab jätkusuutlikkuse kulusid, aga neid pole välja arvutatud ja eraldi real välja toodud | AR49: Vajadus tekib alates 2028
A50: MKM | B50: KEMIT | D50: Kristjan Kaklem | E50: I: Digiriik | F50: 1.2.1. Avalike teenuste juhtimise ja kasutajakesksuse juurutamine | G50: IV: muu digipöördega seotud otsene kulu | H50: Panustab mitmetesse TERE teenustesse | I50: Teenused aeglased, kliendile ebamugavad, automatiseerimata; süsteemides esineb palju vigu | J50: Protsessijuhtimise tarkvara haldus (litsentsid, serverid jm) 50 TEUR/aastas | K50: Vajalik taristu on olemas protsessitarkvara kasutamiseks | L50: ? | M50: 1 | O50: Ei | P50: SF 21-27 (taotletav raha) | Q50: 150,000 | R50: 0 | S50: 50,000 | T50: 0 | U50: 50,000 | V50: 50,000 | W50: 0 | AC50: 50,000 | AF50: 0 | AI50: 50,000 | AL50: 50,000 | AP50: Aluseks Camunda litsentsi maksumus TTJA kasutajate arvuga asutusele | AQ50: 4. SF tegevus, mis vajab jätkusuutlikkuse kulusid, aga neid pole välja arvutatud ja eraldi real välja toodud | AR50: Vajadus tekib alates 2028
A51: MKM | B51: RIKS | D51: Priit Kollo | E51: II: Ühenduvus | F51: 1.2.3. Tulevikukindlad digiriigi platvormid | G51: I: Infotehnoloogiliste lahenduste väljatöötamine ja arendamine | H51: Raadioside korraldamine | I51: Kvantarvutikindlate võrguarhitektuuride teadmiste säilitamine, rahvusvaheline koostöö. | J51: EuroQCI - Euroopa kvantvõrkude meede Eesti omaosalus. | K51: Kvantvõtmevahetus Soomega. Partnerlus Läti ja Rootsiga ning teiste EU27 riikidega. | M51: 1 | O51: Ei | P51: RES IKT (vaja juurde taotleda) | Q51: 710,000 | R51: 0 | S51: 0 | T51: 210,000 | U51: 250,000 | V51: 250,000 | W51: 0 | AE51: 189,000 | AF51: 21,000 | AG51: 0 | AH51: =378000-149000 -> 229,000 | AI51: =SUM(42000/2) -> 21,000 | AK51: =378000-149000 -> 229,000 | AL51: =SUM(42000/2) -> 21,000 | AS51: 5. Küberturvalisus.
A52: MKM | B52: RIT | D52: Risto Seegel | E52: I: Digiriik | F52: 1.2.4. Keskselt osutatud IT-alusteenused | G52: IV: muu digipöördega seotud otsene kulu | H52: IKT alusteenuste keskne osutamine | I52: 2028. a hinnakasv vs 2027.a | J52: ATK standardteenuse jätkusuutlikkuse tagamine | K52: RIT-i klientidele on ATK standardteenuse pakkumise jätkusuutlikkus tagatud aastatel 2027-28 | M52: 1 | O52: Ei | P52: RES IKT (vaja juurde taotleda) | Q52: 1,444,906 | R52: 0 | S52: 0 | T52: 0 | U52: 0 | V52: 0 | W52: 1,444,906 | AN52: 650,208 | AO52: 794,698 | AP52: ATK standardtöökoha maksumuse prognoos | AQ52: 2. Tegevus on jätkusuutlikkuse kulu (baaseelarve, RES lisataotlus, muu allikas) | AS52: Baasi korrastamine. | AT52: püsikulu
A53: MKM | B53: RIT | D53: Kairi Rais | E53: I: Digiriik | F53: 1.2.4. Keskselt osutatud IT-alusteenused | G53: IV: muu digipöördega seotud otsene kulu | H53: IKT alusteenuste keskne osutamine | I53: RRF toetuse lõppemine 2024. aasta lõpul, mis toob kaasa olukorra, kus RIT-i kasvuks vahendid (tehnoloogiline võlg+ teenuse igaaastane maksumus) puuduvad | J53: Konsolideerimisreserv (RIT ATK standardteenuse klientide arvu kasvuks) | K53: Perioodil 2025-2028 on RIT ATK standardteenusele toodud 14 862 uut kasutajat. Eelarve arvestatud eeldusel, et asutus katab olemasolevatest vahenditest vähemalt 25% std. teenuse kulust | M53: 2 | O53: Ei | P53: RES IKT (vaja juurde taotleda) | Q53: 55,898,812 | R53: 0 | S53: 0 | T53: 7,655,327 | U53: 8,428,984 | V53: 14,987,046 | W53: 24,827,455 | AE53: 2,344,897 | AF53: 5,310,430 | AH53: 2,693,043 | AI53: 5,735,941 | AK53: 5,644,171 | AL53: 9,342,875 | AN53: 10,072,355 | AO53: 14,755,100 | AP53: ATK standardtöökoha maksumuse prognoos ja ATK uute kasutajate arvu prognoos (konsolideerimiskava, mis kinnitatud RIT kasutajate nõukojas) | AQ53: 2. Tegevus on jätkusuutlikkuse kulu (baaseelarve, RES lisataotlus, muu allikas) | AS53: Baasi korrastamine. | AT53: püsikulu
A54: MKM | B54: RIT | D54: Kairi Rais | E54: I: Digiriik | F54: 1.2.4. Keskselt osutatud IT-alusteenused | G54: IV: muu digipöördega seotud otsene kulu | H54: IKT alusteenuste keskne osutamine | I54: RRF toetuse lõppemine 2024. aasta lõpul, mis toob kaasa olukorra, kus RIT-i kasvuks vahendid (tehnoloogiline võlg+ teenuse igaaastane maksumus) puuduvad | J54: RRF JÄTK Konsolideerimisreserv (RIT ATK standardteenuse klientide arvu kasvuks). RRF-i jätk. 2024 on rahastatud konsolideerimisega seotud inimesed RRF-st. | K54: Perioodil 2025-2028 on RIT ATK standardteenusele toodud 14 862 uut kasutajat. Eelarve arvestatud eeldusel, et asutus katab olemasolevatest vahenditest vähemalt 25% std. teenuse kulust | M54: 2 | O54: Ei | P54: RES IKT (vaja juurde taotleda) | Q54: =SUM(R54:W54) -> 8,000,000 | R54: =SUM(X54:Z54) -> 0 | S54: =SUM(AA54:AC54) -> 0 | T54: =SUM(AD54:AF54) -> 2,000,000 | U54: =SUM(AG54:AI54) -> 2,000,000 | V54: =SUM(AJ54:AL54) -> 2,000,000 | W54: =SUM(AM54:AO54) -> 2,000,000 | AE54: 2,000,000 | AH54: 2,000,000 | AK54: 2,000,000 | AN54: 2,000,000 | AP54: ATK standardtöökoha maksumuse prognoos ja ATK uute kasutajate arvu prognoos (konsolideerimiskava, mis kinnitatud RIT kasutajate nõukojas) | AQ54: 2. Tegevus on jätkusuutlikkuse kulu (baaseelarve, RES lisataotlus, muu allikas) | AS54: Baasi korrastamine. | AT54: püsikulu
A55: MKM | B55: RIT | D55: Risto Seegel | E55: I: Digiriik | F55: 1.2.4. Keskselt osutatud IT-alusteenused | G55: IV: muu digipöördega seotud otsene kulu | H55: IKT alusteenuste keskne osutamine | I55: Eri-ja lisateenused, mida on rahastatud RRFst. Asutused on teenuste konsolideerimisega andnud eelarvet kaasa vähem, kui teenuseosutamiseks vajalik on | J55: RRF JÄTK RIT klientide eri- ja lisateenused | K55: Lisateenuste osutamine asutustele saab jätkuda. Peamised kulud on haldamisega seotud personalikulud | M55: 3 | O55: Ei | P55: RES IKT (vaja juurde taotleda) | Q55: 14,492,360 | R55: 0 | S55: 0 | T55: 3,144,621 | U55: 3,466,115 | V55: 3,826,128 | W55: 4,055,496 | AE55: 2,246,235 | AF55: 898,386 | AH55: 2,474,280 | AI55: 991,834 | AK55: 2,729,290 | AL55: 1,096,838 | AN55: 2,892,847 | AO55: 1,162,649 | AQ55: 2. Tegevus on jätkusuutlikkuse kulu (baaseelarve, RES lisataotlus, muu allikas) | AS55: Baasi korrastamine. | AT55: püsikulu
A56: MKM | B56: RIT | D56: Andri Rebane | E56: I: Digiriik | F56: 1.2.4. Keskselt osutatud IT-alusteenused | G56: IV: muu digipöördega seotud otsene kulu | H56: IKT alusteenuste keskne osutamine | I56: Pilvemäärusele vastavaid riskianalüüse ei ole võimalik teostada | J56: Pilvemääruse riskianalüüside läbiviimine | K56: Värbamised: 4 FTEd on olemasoleva ATK ja RP infra pilveteenuste usaldusväärsuse hindamine 2 FTEd on tulevase avalike pilveteenuste vahendamise usaldusväärsuse hindamine 2 FTEd on tulevase digituruplatsi pilveteenuste vahendamise usaldusväärsuse hindamine | M56: 6 | O56: Ei | P56: RES IKT (vaja juurde taotleda) | Q56: 1,012,385 | R56: 0 | S56: 0 | T56: 0 | U56: 318,000 | V56: 337,080 | W56: 357,305 | AE56: 0 | AH56: =636000/2 -> 318,000 | AK56: =674160/2 -> 337,080 | AN56: =714609.6/2 -> 357,305 | AQ56: 1. Baaseelarve tegevus, mis sisaldab jätkusuutlikkuse kulusid ja need on samal real välja toodud | AS56: Õigusaktidest tulenevad vajadused. | AT56: püsikulu
A57: MKM | B57: RIT | D57: Risto Seegel | E57: I: Digiriik | F57: 1.2.4. Keskselt osutatud IT-alusteenused | G57: IV: muu digipöördega seotud otsene kulu | H57: IKT alusteenuste keskne osutamine | I57: Riigimajade igaastastel halduskuludel ja uute majades IT-vahenditega sisustamisel puudub eelarve | J57: Riigimajad | K57: katame seadmete ja teenuste igakuised halduskulud ning elutsüklipõhised vahetused | M57: 7 | O57: Ei | P57: RES IKT (vaja juurde taotleda) | Q57: 0 | R57: 0 | S57: 0 | T57: 0 | U57: 0 | V57: 0 | W57: 0 | AE57: 0 | AF57: 0 | AH57: 0 | AI57: 0 | AK57: 0 | AL57: 0 | AN57: 0 | AO57: 0 | AQ57: 2. Tegevus on jätkusuutlikkuse kulu (baaseelarve, RES lisataotlus, muu allikas) | AS57: Baasi korrastamine. | AT57: püsikulu
A58: MKM | B58: RIT | D58: Taavi Viilukas | E58: I: Digiriik | F58: 1.2.4. Keskselt osutatud IT-alusteenused | G58: IV: muu digipöördega seotud otsene kulu | H58: IKT alusteenuste keskne osutamine | I58: Riigiülene avalike pilvede kompetents ning keskve vaade puudub | J58: Avalike pilvede kompetentsikeskuse loomine | K58: Kompententsikeskus on loodud ning töötab. 2025 alustatakse välise partneriga ning värvatakse positsioonid RITi. | M58: 4 | O58: Ei | P58: RES IKT (vaja juurde taotleda) | Q58: 1,193,500 | R58: 0 | S58: 0 | T58: 219,500 | U58: 300,500 | V58: 333,000 | W58: 340,500 | AE58: =SUM(239000/2) -> 119,500 | AF58: =SUM(200000/2) -> 100,000 | AH58: =SUM(400000/2) -> 200,000 | AI58: =SUM(201000/2) -> 100,500 | AK58: =SUM(506000/2) -> 253,000 | AL58: =SUM(160000/2) -> 80,000 | AN58: =SUM(521000/2) -> 260,500 | AO58: =SUM(160000/2) -> 80,000 | AQ58: 1. Baaseelarve tegevus, mis sisaldab jätkusuutlikkuse kulusid ja need on samal real välja toodud | AS58: Baasi korrastamine. | AT58: püsikulu
A59: MKM | B59: RIT | D59: Risto Seegel | E59: I: Digiriik | F59: 1.2.4. Keskselt osutatud IT-alusteenused | G59: IV: muu digipöördega seotud otsene kulu | H59: IKT alusteenuste keskne osutamine | I59: Kasutajate tööharjumused on muutunud, 2 monitori on uus standard. Nõudlikumate töökohtadele vajadus erikonfiga tööjaamu | J59: ATK standardteenuse laiendamine (teine monitor) | K59: 2025 soetab RIT 7500 rendimonitori tänastele klientidele. RIT rendib erikonfiga 500 tööjaama. 2026-28 rendimaksete tasumine. | M59: 5 | O59: Ei | P59: RES IKT (vaja juurde taotleda) | Q59: 0 | R59: 0 | S59: 0 | T59: 0 | U59: 0 | V59: 0 | W59: 0 | AE59: 0 | AF59: 0 | AH59: 0 | AI59: 0 | AK59: 0 | AL59: 0 | AN59: 0 | AO59: 0 | AQ59: 1. Baaseelarve tegevus, mis sisaldab jätkusuutlikkuse kulusid ja need on samal real välja toodud | AS59: Baasi korrastamine. | AT59: püsikulu
A60: MKM | B60: RIT | D60: Ergo Tars | E60: I: Digiriik | F60: 1.2.4. Keskselt osutatud IT-alusteenused | G60: IV: muu digipöördega seotud otsene kulu | H60: IKT alusteenuste keskne osutamine | I60: RIT klientide standardteenuste välised vajadused ATK ja RP teenuste osutamiseks | J60: RIT klientide lisavajadused | K60: GPU ressurss on hangitud, koosolekuruumid uuendatatud vastavalt asutuste sisendile, lisaks eritarkvarad, std välised arvutid jne soetatud ja hallatud vastavalt esitatud vajadustele | M60: 8 | O60: Ei | P60: RES IKT (vaja juurde taotleda) | Q60: 0 | R60: 0 | S60: 0 | T60: 0 | U60: 0 | V60: 0 | W60: 0 | AD60: 0 | AE60: 0 | AF60: 0 | AH60: 0 | AI60: 0 | AK60: 0 | AL60: 0 | AN60: 0 | AO60: 0 | AQ60: 1. Baaseelarve tegevus, mis sisaldab jätkusuutlikkuse kulusid ja need on samal real välja toodud | AS60: Baasi korrastamine. | AT60: püsikulu
A61: MKM | B61: RIKS | D61: Nele Pihlak | E61: I: Digiriik | F61: 1.2.7. Avaliku sektori digimuutuste võimendamine | G61: III: teadlikkuse tõstmine | H61: Riigiside toetavad teenused | I61: Puuduvad ühtsed juhtimispõhimõtted ja on vajadus selgete juhtrollide defineerimiseks, sh juhtide digipädevuste defineerimiseks, et RIKS suudaks kiiremini reageerida digimuutustele ja kasutaksime töös kaasaegseid digitaalseid lahendusi, mis aitaksid juurutada andmete- ja teenusepõhise juhtimise | J61: RIKS juhtide arenguprogramm: juhtimispõhimõtete loomine ja juhtide digipädevuste kaardistamine 2024 | K61: RIKS juhtimispõhimõtted, sh juhtrollid kokku lepitud ja nende digipädevused kaardistatud. | L61: ok | M61: 2 | O61: Ei | P61: SF 21-27 (taotletav raha) | Q61: 15,000 | R61: 0 | S61: 15,000 | T61: 0 | U61: 0 | V61: 0 | W61: 0 | AC61: 15,000 | AP61: Eeldetav programmi maksumus võetud pakkumuste alusel. | AQ61: 5. SF tegevus, mis ei vaja jätkusuutlikkuse kulusid (nt analüüs) | AS61: 1. Personaalne riik
A62: MKM | B62: MKM | D62: Greetel Lee | E62: I: Digiriik | F62: 1.2.7. Avaliku sektori digimuutuste võimendamine | G62: III: teadlikkuse tõstmine | H62: Panustab kõikidesse TERE teenustesse | I62: MKM kui digioskuste näidisasutus ei oska kasutada kasutuselolevaid Microsoft tööriistu ja uut tööplaani keskkonda Viva Goals. | J62: Microsofti keskkonna koolitused (sh tööplaani keskkond) MKM teenistujatele | K62: Koolituste tulemusena oskavad MKMi teenistujad kasutada Microsofti keskkondi paremini kasutada, oskavad täita tööplaani. Microsofti keskkonnale üleminek toetab teenus- ja andmepõhisele juhtimisele üleminekut. | L62: ok | M62: 1 | P62: SF 21-27 (taotletav raha) | Q62: 90,000 | R62: 0 | S62: 30,000 | T62: 15,000 | U62: 15,000 | V62: 15,000 | W62: 15,000 | AC62: 30,000 | AF62: 15,000 | AI62: 15,000 | AL62: 15,000 | AO62: 15,000 | AP62: Aluseks on võetud teenuse maksumuse turu-uuring. | AQ62: 5. SF tegevus, mis ei vaja jätkusuutlikkuse kulusid (nt analüüs)
A63: MKM | B63: RIA | D63: Kai Kallas | E63: I: Digiriik | F63: 1.2.1. Avalike teenuste juhtimise ja kasutajakesksuse juurutamine | G63: I: Infotehnoloogiliste lahenduste väljatöötamine ja arendamine | H63: Riigiportaali platvormi pakkumine | I63: Tootejuhid täidavad projektijuhtide ülesandeid pigem kui et jõuavad tegeleda tootejuhtimisega. Tootejuhid täna juhivad arendusmeeskondi, kirjutavad täismahus ise hankeid jne. Mis tähendab, et toote elukaare eest hoolitsemine on teisejärguline, kuna lihtsalt inimlikult ei jää aega üle arenduste juhtimise kõrvalt. | J63: eesti.ee arendusprotsessi toimimise tagamine, 2x tehniline projektijuhi FTE | K63: Nii toote elukaar on juhitud kui ka aktiivsed arendusprojektid. | M63: 2 | N63: RAH-277 | P63: RES IKT (vaja juurde taotleda) | Q63: 243,653 | R63: 0 | S63: 0 | T63: 52,500 | U63: 57,750 | V63: 63,525 | W63: 69,878 | AE63: =SUM(105000/2) -> 52,500 | AH63: =SUM(115500/2) -> 57,750 | AK63: =SUM(127050/2) -> 63,525 | AN63: =SUM(139755/2) -> 69,878 | AP63: 2025.a. tööjõukulud+töökohakulu 105 000,00 2026.a. tööjõukulud+töökohakulu 115 500,00 2027.a. tööjõukulud+töökohakulu 127 050,00 2028.a. tööjõukulud+töökohakulu 139 755,00 | AS63: Personaalne riik | AT63: püsikulu
A64: MKM | B64: RIA | D64: Ahto-Ain Sööt | E64: I: Digiriik | F64: 1.2.3. Tulevikukindlad digiriigi platvormid | G64: I: Infotehnoloogiliste lahenduste väljatöötamine ja arendamine | H64: Riigivõrgu teenuste pakkumine | I64: Riigivõrgu seadmepark on 2024 seisuga uuendatud ning kõik on kaetud tootja poolsete support lepingutega. See tähendab, et seadmete tarkvara uuendatakse ja paigatakse eelduslikult veel 2-3 aastat. Seademte EOL ehk end of life tähtaeg tuleb hinnanguliselt 2025-2026 välja ja sellest sõltub kas ja mis mahus tuleb seadmeparki uuendada. Näeme võimalust, et aastatel 2027 ja 2028 tuleb vahetada MPLS maakondlikuvõrgu seadmeid suuremas mahus - rohkem kui 200 tk. Muuhulgas on mõistlik kasvatada uue mudeliga läbilaskevõimsust ja uplinkide hulka. Eeldatav mudel mida hakkame kasutama on Cisco NCS 540. | J64: Riigivõrgu seadmete uuendamine 2025-2028 perioodil | K64: Seadmete vahetuse tulemuseks on 7-10 aastat võrgu töökindlust ning turvalisust. Arvestades julgeoleku olukorda peame oluliseks tehnilise taristu kõrget töökindlust ja turbe taset. | M64: 1 | N64: RAH-275 | P64: RES IKT (vaja juurde taotleda) | Q64: 0 | R64: 0 | S64: 0 | T64: 0 | U64: 0 | V64: 0 | W64: 0 | AJ64: 0 | AM64: 0 | AS64: Baasi korrastamine | AT64: ühekordne investeering
A65: MKM | B65: RIA | D65: Margus Parts | E65: III: Küberturvalisus | F65: 1.2.3. Tulevikukindlad digiriigi platvormid | G65: I: Infotehnoloogiliste lahenduste väljatöötamine ja arendamine | H65: Panustab mitmetesse TERE teenustesse | I65: Pilveteenuste kasutuselevõtu tulemusel, muutub kontode turvaline halduse keerukamaks ja intsidendi oht suureneb. Lisaks RIA taristule, tuleb turvata ka pilve platvorme, mille ründepind on suur. | J65: Identiteedihalduse arendus, mis toetab pilvedes pakutavata funktsionaalsuste kasutuselevõttu. | K65: Võtame kasutusele automaatse kontode halduse, paroolivaba indentiteedi ning moodsad pilve seire tööriistad. | M65: 7 | N65: RAH-272 | P65: RES IKT (vaja juurde taotleda) | Q65: 0 | R65: 0 | S65: 0 | T65: 0 | U65: 0 | V65: 0 | W65: 0 | AE65: 0 | AH65: 0 | AK65: 0 | AN65: 0 | AP65: Üks FTE - tööjõukulud pluss töökohakaulud | AS65: Küberturvalisus | AT65: püsikulu
A66: MKM | B66: RIA | D66: Rain Ojastu | E66: III: Küberturvalisus | F66: 3.3. Suurem küberturvalisuse tagamise võimekus | G66: III: teadlikkuse tõstmine | H66: Infoturbe meetmete arendamine ja nõustamine | I66: Hetkel on E-ITSi muudatuste haldamine, st uute versioonide tootmine ja uute meetmete loomine tehniliselt töömahukas, puuduvad vajalikud töövahendid, palju manuaalset käsitööd dokumendifailides. | J66: Infoturbestandardi haldus | K66: Eesit infoturbestandardi muudatuste haldamise tööriist välja töötatud ja kasutusel. Loodud rakendus võimaldab hallata standardi uute versioonide ettevalmistamist, haldamist ja publitseerimist standardi portaali. Tagatud on standardi portaali ajakohasus. | M66: 9 | N66: RAH-88 | P66: RES IKT (vaja juurde taotleda) | Q66: 0 | R66: 0 | S66: 0 | T66: 0 | U66: 0 | V66: 0 | W66: 0 | AD66: 0 | AE66: 0 | AG66: 0 | AH66: 0 | AJ66: 0 | AK66: 0 | AM66: 0 | AN66: 0 | AP66: arendused automaatkontrollide loomiseks E-ITS automaatseks rakendamiseks 3 FTE'd - tööjõukulud pluss töökohakulud | AS66: Küberturvalisus | AT66: püsikulu
A67: MKM | B67: RIA | D67: Lauri Tankler | E67: III: Küberturvalisus | F67: 3.1. Ajakohane küberturvalisuse riiklik korraldus | G67: II: küberruumi hoidmine, arendamine ja juurutamine usaldusväärse ja turvalisena | H67: Eesti küberturvalisuse valdkonna tööstuse, tehnoloogia ja teaduse arengu toetamine | I67: Eesti ja Euroopa küberturvalisuse kompetents on fragmenteerunud, spetsialiste on puudu, teadlased ja ettevõtjad tegutsevad suuresti oma silodes, turul pole teenusepakkujate vahelist konkurentsi ning võrreldavaid teenuseid, küberiduettevõtted kaovad digi-idude vahele ära. Tulevikutehnoloogiate turvalisusega tegeletakse alles tagantjärgi ning tihti loodetakse välisele (sh ELi-välisele) kompetentsile, kust tellida küberturvalisuse teenuseid (koolitusi, uuringuid, ohuteavet, praktilist konsultatsiooni). Euroopa küberturvalisuse kompetentsikeskuse ja riiklike koordineerimisüksuste (mille rolli täidab RIA) võrgustik lahendab probleemi Euroopa-üleselt. Euroopa küberkompetentsikeskus on valmis riiklikke koordineerimisüksuseid edaspidigi toetama (2025+), riigieelarvelise omaosaluse olemasolul. Et Eesti koordineerimisüksus saaks täita ELi regulatsioonist tulenevaid ülesandeid ja Eesti küberkompetents kasvaks, on vaja täiendavat püsirahastust-omaosalust aastateks 2025+ | J67: Euroopa küberkompetentsikeskuse Eesti koordinatsioonikeskuse jätkusuutlikkuse tagamise tegevus (omaosalus ELi projektist 50% taotlemisel) | K67: Vajadus on 2025-2028. Kululiigid: personalikulu, toetused kolmandatele osapooltele (küberpööre EASiga, küberiduettevõtted), koolitused ja treeningud, teadmussiirdeprojektid, ürituste korraldamise kulu. Tulemuseks järgmised sihid, et senisest enam ettevõtteid pakub ja tarbib küberturvalisuse teenuseid; digitaliseerivatel ja uusi tehnoloogiaid rakendavatel ettevõtetel on juhendeid turvalisuse osas; et senisest enam naisi ja tüdrukuid osaleb küberturvalisuse õppes (spetsialistidest kuni juhtideni), et võtmetähtsusega mitte-IT valdkondade väljaõppes (ärijuhid, ettevõtjad, õpetajad, avaliku halduse, sotsiaalia, aga ka loomemajanduse ja põllumajanduse spetsialistid) on integreeritud küberturvalisuse õpiväljundid, et senisest enam konverteeritakse küberturvalisuse akadeemilise teadustöö tulemeid iduettevõtete teenusteks ja toodeteks, et senisest enam Eesti ettevõtteid ja teadusasutusi osaleb küberturvalisuse Euroopa projektivoorudes ning on sealt saanud positiivse rahastusotsuse | N67: RAH-229 | P67: Muu rahastus | Q67: 3,029,117 | R67: 0 | S67: 0 | T67: 683,625 | U67: 732,325 | V67: 783,770 | W67: 829,397 | AE67: 171,000 | AF67: 512,625 | AH67: 203,500 | AI67: 528,825 | AK67: 232,000 | AL67: 551,770 | AN67: 255,000 | AO67: 574,397 | AP67: Kõik RE kulud on võimalik niiöelda duubeldada Euroopa DIGITAL fondi taotlusvoorust, mis on spetsifiiliselt mõeldud riiklikele koordinatsioonikeskustele. Arvutused lähtuvad 2023-2024 tehtud 2a pikkusest pilootprojektist. Tööjõukulu lähtub 5FTEst ja töökohakuludest, arvutuskäigus on teadmussiirde programm (ca 130k aastas uuringutele ja juhendmaterjalidele), noorte ja täiskasvanute küberkarjääri ja küberhariduse tegevused (ca 180k aastas), kogukonnaüritused (ca 22k aastas), küberinnovatsiooni meetmest (100k aastas), Küberpöörde toetusmeetmest (500k aastas) ja Euroopa suunalistest tegevustest koos ettevõtluse toetamise meetmetega (ca 80k aastas). Kõik see on kokku ca €1,5m aastas, millest pool on võimalik taotleda Euroopa DIGITAL taotlusvoorust 2024 aastal | AQ67: 1. Baaseelarve tegevus, mis sisaldab jätkusuutlikkuse kulusid ja need on samal real välja toodud | AR67: Eraldi tegevus, ei ole seotud SFiga, vajab jätkusuutlikkuse lähenemist | AS67: Küberturvalisus | AT67: Baas
A68: MKM | B68: RIA | D68: Märt Hiietamm | E68: III: Küberturvalisus | F68: 3.3. Suurem küberturvalisuse tagamise võimekus | G68: III: teadlikkuse tõstmine | H68: Küberhügieen ja avalikkuse teadlikkuse tõstmine | I68: Ebapiisavast küberhügieenist tulenevatel küberintsidentidel on ulatuslik ning aina kasvav negatiivne mõju Eesti inimestele ja ettevõtetele. Nende mõju meediakajastus aitab küberhügieeni olulisust rõhutada, kuid on ebapiisav avalikkuse käitumise muutmisel. Lisaks hindame koos Eesti julgeolekuasutustega, et Vene-Ukraina konflikti üheks mõjuks meile on suurenenud oht ulatuslikeks küberintsidentideks, mistõttu Eesti inimeste ja austuste teadlikkust küberhügieenist tuleb lähiaastatel aina ja aina tõsta. | J68: Regulaarsete küberturbe teavituskampaaniate mõju suurendamine | K68: Eelarveperioodi 2025-28 jooksul on toimunud 8-16 RIA poolt kaardistatud sihtrühmaga ja RIA jaoks olulise teemapüstitusega teavituskampaaniat. Iga kampaania käigus jõutakse vähemalt pooleni sihtrühma esindajatest. Kampaania lõppfaasis toimub asjakohasuse korral vastav uuring sihtgrupi suunal. Eesti elanikkonna eri sihtrühmade järjepidev teavitamine on tõstnud laiema avalikkuse teadlikkust küberohtudest ning andnud parema oskuse end nende eest kaitsta. Elanikel ja ettevõtete esindajatel on lihtsasti kättesaadavad materjalid, et kaitsta ennast ja oma lähedasi küberohtude eest. Eesti inimesed on teadlikud, et RIA tegeleb küberohtude ennetamise ja lahendamisega ning et RIA käest võib vastavat abi saada. | M68: 5 | N68: RAH-289 | P68: RES IKT (vaja juurde taotleda) | Q68: 312,500 | R68: 0 | S68: 0 | T68: 0 | U68: 62,500 | V68: 125,000 | W68: 125,000 | AH68: 0 | AI68: =SUM(125000/2) -> 62,500 | AK68: 0 | AL68: =SUM(250000/2) -> 125,000 | AN68: 0 | AO68: =SUM(250000/2) -> 125,000 | AP68: Alates 2026 vaja juurde 1 FTE (77 000 eurot) ja kampaaniavahendeid (125 000 eurot). Alates 2027 juurde veel 1 FTE (kokku 2 FTE 170 000 eurot) ja 125 000 eurot vahenditeks (kokku 250 000 eurot. Alates 2028 kasvab 2 FTE peale kuluv summa 187 000 euro peale, lisavahenditeks endiselt 250000 eurot. Aastatel 2026-28 kokku lisavajadus 434 000 eurot lisanuvate FTE-de jaoks ning 625 000 eurot kampaaniate lisavahenditeks. Lisavajaduse perioodil 2026-28 kokku 1 059 000 eurot. | AS68: Küberturvalisus | AT68: püsikulu
A69: MKM | B69: RIA | D69: Urve Pastarus | E69: I: Digiriik | F69: 1.2.7. Avaliku sektori digimuutuste võimendamine | G69: III: teadlikkuse tõstmine | H69: Panustab mitmetesse TERE teenustesse | I69: Organisatsioon on kiiresti kasvanud, sh teenuste hulk ja protsesside rakendajate arv. RIAs on juurutatud järk-järgult kliendist lähtuvat teenustpõhist ja agiilset/DevSecOps juhtimismudelit kuid sellist organisatsiooni muutust ja teenuste portfelli kasvu ei toeta täna ajakohane töökorralduse raamistik, mis tagaks erinevates sõltumatutes meeskondades ühiste haldus - ja arendusnõuete rakendamise ja kvaliteedi seire (sh dokumenteerimine, protsesside ja seotud töövahendite arendamise ja rakendamise tugi, kvaliteedijuhtimise korraldamine). | J69: Kvaliteedi- ja protsessijuhtimise võimekuse tõstmine (1 FTE) | K69: Loodud on teenuspõhise juhtimissüsstemi rakendamiseks vajalik kvaliteedi- ja protsessipõhise juhtimise võimekus: kokku on lepitud kriitilised kliendiprotsessid, mis on kirjeldatud ja dokumenteeritud ühtsetel alustel, koordineeritakse nende rakendamist ning järjepidevat kvaliteedi ja tõhususe juhtimist osakondi ja meeskondi läbivalt. | M69: 8 | N69: RAH-274 | P69: RES IKT (vaja juurde taotleda) | Q69: 0 | R69: 0 | S69: 0 | T69: 0 | U69: 0 | V69: 0 | W69: 0 | AE69: 0 | AH69: 0 | AK69: 0 | AN69: 0 | AP69: 1 FTE - tööjõukulud pluss töökohakulud | AS69: Baasi korrastamine | AT69: püsikulu
A70: MKM | B70: RIA | D70: Martin Paas | E70: III: Küberturvalisus | F70: 3.3. Suurem küberturvalisuse tagamise võimekus | G70: II: küberruumi hoidmine, arendamine ja juurutamine usaldusväärse ja turvalisena | H70: Panustab mitmetesse TERE teenustesse | I70: Tänane võimekus ei ole piisav RS-süsteemide haldamiseks ei tava- ega kriisiolukorras. | J70: Kriisivalmiduse tagamine RS-süsteemides | K70: • Tekib 24/7 võimekus kriisihalduseks lühikese perioodi vältel. • Töötlussüsteemid on hallatud, intsidente ei esine. • Tagatud on RIA kui küberturvalisuse kompetentsikeskuse töö kriisiolukorras, sh operatiivinfo vahetamine partneritega. | M70: 6 | N70: RAH-273 | P70: RES IKT (vaja juurde taotleda) | Q70: 1,019,355 | R70: 0 | S70: 0 | T70: 222,750 | U70: 242,775 | V70: 264,800 | W70: 289,030 | AE70: 222,750 | AH70: 242,775 | AK70: 264,800 | AN70: 289,030 | AP70: • 1 tooteomanik • 2 küberturbe eksperdi ametikohta. Tööjõukulud ja töökohakulud | AS70: Küberturvalisus | AT70: püsikulu
A71: MKM
A72: MKM | B72: RIA | D72: Riho Kerge | E72: I: Digiriik | F72: 1.2.2. Andmepõhine riigivalitsemine ja andmete taaskasutus | G72: I: Infotehnoloogiliste lahenduste väljatöötamine ja arendamine | H72: Andmete taaskasutamise ja väärindamise lahenduste pakkumine | I72: 2022-2025 on (ava)andmete teabevärava arendamisega seotud tegevused aastani 2025 kaetud RRFi rahastusega, ent teenus peab jääma jätkusuutlikuks ka peale selle rahastuse lõppemist. | J72: RRF JÄTK (ava)andmete teabevärav: jätkusuutlikkuse tagamine peale praeguse RRFi rahastuse lõppu 2026-2028 (sh 2FTE) | K72: RIA andmete talituse (sh avaandmete teabevärava tiimi) 2 FTE tööjõukulud, töökoha kõrvalkulud, (ava)andmete teabevärava jätkuarendused ja riigipilve majutus- ning hoolduskulud on jätkusuutlikult kaetud baaseelarvest ka peale praeguse RRFi lõppu. | M72: 3 | N72: RAH-224 | P72: RES IKT (vaja juurde taotleda) | Q72: 1,250,236 | R72: 0 | S72: 0 | T72: 0 | U72: 408,626 | V72: 416,838 | W72: 424,772 | AG72: 320,000 | AH72: =SUM(159251/2) -> 79,626 | AI72: =SUM(18000/2) -> 9,000 | AJ72: 320,000 | AK72: =SUM(173676/2) -> 86,838 | AL72: =SUM(20000/2) -> 10,000 | AM72: 320,000 | AN72: =SUM(189544/2) -> 94,772 | AO72: =SUM(20000/2) -> 10,000 | AP72: 2 FTE tööjõu- ja töökohakulud alates 2026 Avaandmete teabevärava jätkusuutlikkuse tagamiseks vajalikud arendused ja kulud | AQ72: 2. Tegevus on jätkusuutlikkuse kulu (baaseelarve, RES lisataotlus, muu allikas) | AR72: OK | AS72: AI ja andmed | AT72: püsikulu
A73: MKM | B73: RIA | D73: Riho Kerge | E73: I: Digiriik | F73: 1.2.2. Andmepõhine riigivalitsemine ja andmete taaskasutus | G73: I: Infotehnoloogiliste lahenduste väljatöötamine ja arendamine | H73: Andmete taaskasutamise ja väärindamise lahenduste pakkumine | I73: 2022-2025 on RIHA/RIHAKE arendamisega seotud tegevused kaetud RRFi rahastusega, ent teenus peab jääma jätkusuutlikuks ka peale selle rahastuse lõppemist. | J73: RRF JÄTK RIHA/RIHAKE: jätkusuutlikkuse tagamine peale praeguse RRFi rahastuse lõppu 2026-2028 | K73: RIHA ja RIHAKE jäävad jätkusuutlikuks ka peale RRFi rahastuse lõppemist. | M73: 4 | N73: RAH-225 | P73: RES IKT (vaja juurde taotleda) | Q73: 0 | R73: 0 | S73: 0 | T73: 0 | U73: 0 | V73: 0 | W73: 0 | AG73: 0 | AJ73: 0 | AM73: 0 | AP73: RIHA/RIHAKE jätkusuutlikkuse tagamiseks vajalikud arendused | AQ73: 2. Tegevus on jätkusuutlikkuse kulu (baaseelarve, RES lisataotlus, muu allikas) | AR73: OK | AS73: AI ja andmed | AT73: püsikulu
A74: MKM | Q74: 0 | R74: 0 | S74: 0 | T74: 0 | U74: 0 | V74: 0 | W74: 0
A75: MKM | B75: RIA | D75: Kai Kallas | E75: I: Digiriik | F75: 1.1.1. Üleminek sündmuspõhistele ja proaktiivsetele teenustele | G75: I: Infotehnoloogiliste lahenduste väljatöötamine ja arendamine | H75: Sündmusteenusted jäävad edasi arendamata ning olemasolevad hakkavad vananema ning kaotavad kiirelt ajas oma väärtuse e-teenusena. Vananenud ja tehniliselt uuendamata teenused jagavad lõppkasutaja vaates eksitavat infot ning muutuvad kiirelt turvakriitiliseks. | I75: Riigiportaali ja sündmusteenuste jätkusuutlikkuse tagamine | J75: Riigiportaali teenuste pakkumine on tagatud | K75: Sündmusteenuste platvormi jätkusuutlikkus pärast RRF rahastsue lõppemist | M75: 1 | N75: RAH-278 | O75: EI | P75: RES IKT (vaja juurde taotleda) | Q75: 15,527,440 | R75: 0 | S75: 0 | T75: 0 | U75: 5,045,750 | V75: 5,167,575 | W75: 5,314,115 | AG75: 3,520,000 | AH75: 1405750 | AI75: 120000 | AJ75: 3,480,000 | AK75: 1567575 | AL75: 120000 | AM75: 3,480,000 | AN75: 1714115 | AO75: 120000 | AP75: 18 FTE tööjõu- ja töökohakulud alates 2026 | AQ75: 2. Tegevus on jätkusuutlikkuse kulu (baaseelarve, RES lisataotlus, muu allikas) | AR75: OK | AS75: Personaalne riik | AT75: püsikulu
A76: MKM | B76: RIA | D76: Kai Kallas | E76: I: Digiriik | F76: 1.1.2. Krativäeline riik | G76: I: Infotehnoloogiliste lahenduste väljatöötamine ja arendamine | H76: Bürokrati baaskomponendid | I76: Bürokrati meeskond (9FTE) ja arendused on rahastatud 100% ulatuses RRF-ist. Alates 2026 (küsitud juba 2024) vajame meeskonna jätktamiseks RES-ist rahastust personalikuludeks ja halduskuludeks | J76: RRF JÄTK BÜROKRATT jätkurahastus al 2026 | K76: Jätkub Bürokrati platvormi (ökosüsteemi) arendus ja juurutamine - ilma meeskonnata seiskub arendus ja haldus. Jätkub klientide kaasamine ja kliendivajaduste realiseerimine (loe: kliendi funktsionaalsuste lisamine). | N76: RAH-253 | P76: RES IKT (vaja juurde taotleda) | Q76: =SUM(R76:W76) -> 1,729,904 | R76: =SUM(X76:Z76) -> 0 | S76: =SUM(AA76:AC76) -> 0 | T76: =SUM(AD76:AF76) -> 0 | U76: =SUM(AG76:AI76) -> 542,202 | V76: =SUM(AJ76:AL76) -> 575,597 | W76: =SUM(AM76:AO76) -> 612,106 | AG76: 0 | AH76: =SUM(622903/2) -> 311,452 | AI76: =SUM(461500/2) -> 230,750 | AJ76: 0 | AK76: =SUM(685193/2) -> 342,597 | AL76: =SUM(466000/2) -> 233,000 | AM76: 0 | AN76: =SUM(753712/2) -> 376,856 | AO76: =SUM(470500/2) -> 235,250 | AP76: 9 FTE tööjõu- ja töökohakulud alates 2026, Bürokrati hooldus- ja arenduskulud alates 2026 | AQ76: 2. Tegevus on jätkusuutlikkuse kulu (baaseelarve, RES lisataotlus, muu allikas) | AR76: OK | AS76: 1. Personaalne riik | AT76: püsikulu
A77: MKM | B77: DAO | D77: Hendrik Roland Helm (projektijuht) | E77: I: Digiriik | F77: 1.2.7. Avaliku sektori digimuutuste võimendamine | G77: III: teadlikkuse tõstmine | H77: IKT oskuste edendamine | I77: SF rahastusest väljumine. Riigiasutused ja kohalikud omavalitsused on loonud teenistujate ning laiema avalikkuse koolitamise eesmärgil e-kursuseid, mis vajavad kättesaadavuseks veebiplatvormi. Keskse ning turvalist autentimist võimaldava platvormi olemasolu aitab hoida kokku ressursse, mis vastasel juhul kuluks sarnaste platvormide paralleelsele ülalhoiule asutuste poolt. Kui iga asutus looks eraldiseisva e-õppe platvormi, siis hinnanguline kulu aastas asutuse kohta oleks 40 000 eurot aastas. (Liitunuid asutusi 6, 2024 liituda soovijaid 7). Rahastuse puudumisel tuleb keskkond sulgeda, mis toob olemasolevate e-kursuste ümberkolimise vajaduse, kuid riigiülese platvormi puudumisel ei ole kursuseid kuhugi majutada. Lisaks olemasolevate e-kursuste majutamise probleemile tuleb taas hakata rohkem klassiruumi koolitusi korraldama, mis ei ole kuluefektiivne. | J77: Digiriigi Akadeemia kui avaliku sektori keskse e-õppe platvormi ülalhoid ning käideldavuse parandamine | K77: 2025-2028 - varem SF-st arendatu ülalhoid ning hooldamine (platvormi hoolduse täisteenus ühelt IT-majalt, sh server, Kubernetes, kasutajalitsentsid e-kursuste loomiseks, tootejuhi, süsteemiadministraatori, klienditoe spetsialisti ja arendaja palgafond). Planeeritud tegevused võimaldavad tagada platvormi käideldavuse ja kvaliteedi kasvava kliendibaasi tingimustes (lisanduvad asutused ning kasutajad). Läbi ressursside kokkuhoiu, paindlikkuse ja strateegiliselt oluliste teadmiste koondamise, toetab Digiriigi Akadeemia ühtse standardi abil avaliku sektori töötajate arendamist. | M77: 1 | O77: Ei | P77: RES IKT (vaja juurde taotleda) | Q77: =SUM(R77:W77) -> 679,781 | R77: =SUM(X77:Z77) -> 0 | S77: =SUM(AA77:AC77) -> 0 | T77: =SUM(AD77:AF77) -> 150,944 | U77: =SUM(AG77:AI77) -> 162,891 | V77: =SUM(AJ77:AL77) -> 175,894 | W77: =SUM(AM77:AO77) -> 190,052 | AD77: 0 | AE77: =44154+(61500*0)+(61500/2) -> 74,904 | AF77: =(52080+100000)/2 -> 76,040 | AH77: =48569+(63960*0)+(63960/2) -> 80,549 | AI77: =(54684+110000)/2 -> 82,342 | AK77: =53426+(66518*0)+(66518/2) -> 86,685 | AL77: =(57418+121000)/2 -> 89,209 | AN77: =58769+(69176*0)+(69176/2) -> 93,357 | AO77: =(60289+133100)/2 -> 96,695 | AP77: Platvormi käideldavuse tõstmine. Kubernetes-e klastri kasutuselevõtt, mis võimaldab ülekoormuse korral keskkonna automaatset suurendamist. Paraneb kasutajate rahuolu. Olemasoleva taristu maht 3-4 kordistub projekti käigus ning lisandub lisakulu Kubernetes-e toe eest. Automatiseeritud tarneprotsesside kasutuselevõtt. Uuendada ära Digiriigiakadeemia IT arhitektuur ning ümber ehitada kogu tarkvara paigaldus ning kasutusele võtta CI/CD tarneprotsessid. Tarkvara uuenduste protsess muutub kiiremaks (arendus-test-live). IT teenuse omaniku töökoha loomine. Omab detailset ülevaadet pakutava teenuse sisust ning selle pakkumiseks kasutatavatest tehnoloogilistest vahenditest. Vastutab teenustaseme kokkuleppe (SLA) sõlmimise, täitmise ja ajakohasena hoidmise eest, korraldab arendusprojektide juhtimist (alates hangetest kuni tarkvara paigaldamiseni). Hoiab ajakohasena IT teenuse informatsiooni IT teenuste portfellis, SLA tingimusi ja dokumentatsiooni. Koostab kliendi äri ja IT tehnilistest vajadustest lähtuva IT teenuse strateegia, aastaste muudatuste plaani koos eelarvega ja koordineerib selle elluviimist. On kursis IT teenusega seotud intsidentide ja probleemidega ning korraldab nende lahendamist. DevOPS süsteemiadministraatori töökoha loomine. Tagab keskkonna töö (käideldavus), tehniliste probleemide ja intsidentide lahendamise, mis võivad esineda keskkonna töös, tagab keskkonna turvauuenduste paigaldamine (server + rakendus), tagab automaatse paigaldusprotsessi toimise tarkvara pidevaks paigaldamiseks. Paraneb Moodle haldamise tehniline teadlikkus. | AR77: Ei ole tegemist MKM valdkondliku digipöörde SF tegevustega. | AS77: 1. Personaalne riik | AT77: Püsikulu (baasi)
A78: MKM
A79: MKM | B79: RKO | D79: Irina Klementi (RKO juht) / Natalja Zinovjeva (protsessijuht) | E79: III: Küberturvalisus | F79: 3.3. Suurem küberturvalisuse tagamise võimekus | G79: II: küberruumi hoidmine, arendamine ja juurutamine usaldusväärse ja turvalisena | H79: Küberturbe poliitika kujundamist toetavate analüüside teostamise korraldamine | I79: Rahastuse puudumisel võib tekkida olukord, kus küberturvalisuse strateegiad ja otsused tuginevad pelgalt isiklikele arvamustele, mitte põhjalikele teaduslikele uuringutele ja analüüsidele. RRFi rahastusest väljumine: Vajadus on hoida silma peal edaspidigi uutel tehnoloogiatel, uutel ohtudel ja nende jaoks vajalikke meetmeid rakendada | J79: Riigisektori seisukohalt strateegiliselt oluliste uuringute ja analüüside tellimine, et tagada valdkonna süsteemne areng | K79: Riigisektoril on kõrge teadlikkus uusimatest tehnoloogiatest, uutest ohtudest ja vajalikest meetmetest ohtude maandamiseks. | M79: 1 | O79: Ei | P79: RES IKT (vaja juurde taotleda) | Q79: 400,000 | R79: 0 | S79: 0 | T79: 100,000 | U79: 100,000 | V79: 100,000 | W79: 100,000 | AF79: =SUM(200000/2) -> 100,000 | AI79: =SUM(200000/2) -> 100,000 | AL79: =SUM(200000/2) -> 100,000 | AO79: =SUM(200000/2) -> 100,000 | AP79: Kavandatavad analüüsid / uuringud, ülikoolide toetamine arengute uurimisel/ analüüside läbiviimisel nt: - tulevikutehnoloogiate kasutamise riskid ja nende haldus. Võimalused ja rakenduskava tehnoloogia-põhiste rünnakute ennetamiseks (krüpto, AI, lunavara, kvantarvutite võimsuse kasv jne); - Üleriiklike e-teenuste küberturvalise tõstmine (sh teiste riikide näitel) jne | AR79: Ei ole tegemist MKM valdkondliku digipöörde SF tegevustega. | AS79: 5. Küberturvalisus | AT79: Püsikulu (baasi)
A80: MKM | B80: RKO | D80: Irina Klementi (RKO juht) / Natalja Zinovjeva (protsessijuht) | E80: III: Küberturvalisus | F80: 3.3. Suurem küberturvalisuse tagamise võimekus | G80: II: küberruumi hoidmine, arendamine ja juurutamine usaldusväärse ja turvalisena | H80: Küberturbe poliitika kujundamist toetavate analüüside teostamise korraldamine | I80: Rahastuse puudumisel ei pruugi digitaliseerimisega seotud riskid piisavalt maandatud saama. RRFi rahastusest väljumine: vajadus on parandada avaliku sektori, sh KOVide, teadlikkust riski- ja turbejuhtimisest | J80: Töötoad või koolitused avalikule sektorile, sh KOVidele, riski- ja turbejuhtimise tõhustamiseks, varukoopiate taastamise testimiseks | K80: Digitaliseerimisega seotud riskid on maandatud | M80: 1 | O80: Ei | P80: RES IKT (vaja juurde taotleda) | Q80: 100,000 | R80: 0 | S80: 0 | T80: 25,000 | U80: 25,000 | V80: 25,000 | W80: 25,000 | AF80: =SUM(50000/2) -> 25,000 | AI80: =SUM(50000/2) -> 25,000 | AL80: =SUM(50000/2) -> 25,000 | AO80: =SUM(50000/2) -> 25,000 | AP80: Töötubade korraldamine avalikule sektorile ja KOVidele digitaliseerimisega seotud küberriskide maandamiseks, infoturbe võimekuse tõstmiseks. Õppuste läbiviimine ja rakenduskavad kriitiliste teenuste/infrastruktuuri kriis- ja turvalisuse/toimepidevuse tõstmiseks. | AR80: Ei ole tegemist MKM valdkondliku digipöörde SF tegevustega. | AS80: 5. Küberturvalisus | AT80: Püsikulu (baasi)
A81: MKM | B81: RKO | D81: Irina Klementi (RKO juht) / Natalja Zinovjeva (protsessijuht) | E81: III: Küberturvalisus | F81: 3.3. Suurem küberturvalisuse tagamise võimekus | G81: II: küberruumi hoidmine, arendamine ja juurutamine usaldusväärse ja turvalisena | H81: Riikliku küberturvalisuse juhtimine, poliitika kujundamine ja õigusloome | I81: Rahastuse puudumisel MKM RKO enam proaktiivse lähenemisega tulevikutehnoloogiate, tehnoloogiliste ohtude hindamise, tehnoloogiliste riskide halduse korraldamisega riigis, küber- ja riikliku ohupildi loomisega, arendustegevuste/uuringute lähteülesannete ja seisukohtade võtmisega ei tegele kuna puuduvad inimesed. Võib tekkida olukord, kus küberturvalisuse strateegiad ja otsused tuginevad pelgalt isiklikele arvamustele, mitte põhjalikele teaduslikele uuringutele ja analüüsidele, samuti ei ole EL-i teemad piisaval määral ülevõetud siseriiklikul tasemel. Näiteks EL tasemel kehtestatakse sertifitseerimisskeem, mis võib Eestis arendatud ja kasutusele võetud digitoote või üldse laiemalt EE “digiökosüsteemi” mitte sobivaks muuta (nt ID-kaartide sertifikaadid ja eIDAS teema). Osalisel rahastusel tuleb valida, millega riigiüleselt tegeletakse ja millega mitte. | J81: Proaktiivne valdkonna juhtimine, sh tehnoloogiate, ohtude hindamine, sh tulevikutehnoloogiate uuringute, analüüside jm projektijuhtimine, tehnoloogiliste meetmete väljatöötamine, infoturbearengu seire, küpsushindamine, kriisijuhtimise tugi. | K81: Proaktiivne valdkonna juhtimine, mis tagab digiteenuste turvalist arendamist ja kasutuselevõtmist. Tehnoloogiliste ohtude hindamine, tehnoloogiliste riskide halduse korraldamine riigis, küber- ja riikliku ohupildi loomine ja võimeid adresseerivate tehnoloogiliste meetmete väljatöötamine, infoturbe arengu seire ja küpsushindamine, kriisijuhtimise tugi. Proaktiivne lähenemine küberturvalisuse strateegiate loomiseks, tulevikukindluse tagamiseks, mis põhineb põhjalikel teaduslikel uuringutel ja analüüsidel, juhendmaterjalide ja analüüside läbiviimise tugi. | M81: 1 | O81: Ei | P81: RES IKT (vaja juurde taotleda) | Q81: 600,000 | R81: 0 | S81: 0 | T81: 150,000 | U81: 150,000 | V81: 150,000 | W81: 150,000 | AE81: =SUM(300000/2) -> 150,000 | AH81: =SUM(300000/2) -> 150,000 | AK81: =SUM(300000/2) -> 150,000 | AN81: =SUM(300000/2) -> 150,000 | AP81: Riikliku küberturvalisuse osakonna nelja inimese palgakulu koos sotsiaal- ja töötuskindlustusmaksudega. RKO meeskond oli pikaajaliselt alamehitatud, oluline on tagada küberturvalisuse kasv riigis, et kindlustada tulevik ja kriisikindlus riiklikul tasandil. | AR81: Ei ole tegemist MKM valdkondliku digipöörde SF tegevustega. Alates 01.01.2025 puudub rahastus MKM riikliku küberturvalisuse osakonna (RKO) neljale inimesele. Rahastuse puudumisel MKM RKO enam proaktiivse lähenemisega tulevikutehnoloogiate, tehnoloogiliste ohtude hindamise, tehnoloogiliste riskide halduse korraldamisega riigis, küber- ja riikliku ohupildi loomisega, arendustegevuste/uuringute lähteülesannete ja seisukohtade võtmisega ei tegele kuna puuduvad inimesed. Osalisel rahastusel tuleb valida, millega riigiüleselt tegeletakse ja millega mitte. Eeltoodud infot tuleb vaadelda RKO pikaajalise alamehitatuse taustal (11 töökohast on hetkel täidetud 6, mis töötavad suurendatud koormusega, käib meeskonna uute liikmete värbamine). Kui antud neljale inimesele palgaraha ei leia, siis riikliku küberturvalisuse osakonda jääb 5 inimest (osakonnajuhataja (hetkel värbamata), kaks õigusnõunikku, väliskoostööjuht ja protsessijuht). | AS81: 5. Küberturvalisus | AT81: Püsikulu (baasi)
A82: MKM | B82: DAO | D82: Allan Allmere | E82: I: Digiriik | F82: 1.2.3. Tulevikukindlad digiriigi platvormid | G82: I: Infotehnoloogiliste lahenduste väljatöötamine ja arendamine | H82: IT-alusteenuste keskse osutamise korraldamise koordineerimine | I82: Andmesaatkonna rendikulud koos elektriga on MKM kanda. Kuna ettenähtud eelarvest jäi puudu MKM-il 2023, siis 2024 saime ühekordselt raha juurde, aga tulevikuks oleks vaja püsikulude katmiseks tõsta olemasolevat eelarvet. Kulu suureneb, kuna elektrihind on läinud aastatega kallimaks ja lisaks paigaldatakse 2024 aasta rohkem riistvra saatkonna ruumidesse, mis kõiks tarbivad voolu. Andmesaatkonna teenuse kulusid teistelt haldusaladelt ei küsita ja seda makstakse MKM poolt keskselt kinni. Mis juhtub, kui raha ei saa - Riistvara on ostetud eurorahade eest ja peab olema töös veel järgnevad viis aastat. Kui me ei suuda maksta halduskulusi näiteks elektri arveid, ei saa ka teenused püsti olla nende serverite peal. | J82: Andmesaatkonna püsikulude suurendamiseks kulude kate | K82: Andmesaatkonnal toimub 2024 oluline riistvra suurendamine, mis tähendab, et põüsikulud kasvavad. Seadmed tarbivad rohkem vool näiteks. | M82: 1 | O82: Ei | P82: RES IKT (vaja juurde taotleda) | Q82: 400,000 | R82: 0 | S82: 0 | T82: 100,000 | U82: 100,000 | V82: 100,000 | W82: 100,000 | AD82: 0 | AE82: 0 | AF82: 100,000 | AG82: 0 | AH82: 0 | AI82: 100,000 | AJ82: 0 | AK82: 0 | AL82: 100,000 | AM82: 0 | AN82: 0 | AO82: 100,000 | AP82: Vaatasime uue riistvara elektritarvet ja korrutasime 2023 aasta keskmise ühikuhinnaga. Seda kas ühikuhind võib muutuda, on omaküsimus. See on hetkel parim teadmine | AR82: Ei ole tegemist MKM valdkondliku digipöörde SF tegevustega. | AS82: 1. Personaalne riik 5. Küberturvalisus | AT82: Püsikulu (baasi)
A83: MKM | B83: DAO | D83: Ott Velsberg | E83: I: Digiriik | F83: 1.1.2. Krativäeline riik | G83: I: Infotehnoloogiliste lahenduste väljatöötamine ja arendamine | I83: Rahastuse puudumisel MKM andmete valdkonna koordieerimise ja riigiülese elluviimisega enam ei tegele kuna puuduvad inimesed. Osalisel rahastusel tuleb valida, millega riigiüleselt tegeletakse ja millega mitte (andmehaldus, andmete taaskasutus, tehisintellekt, andmepõhine juhtimine jms). RRF rahastusest väljumine. Tehisintellekti ja Bürokrati suunaliste tegevustega jätkamine. Kesksete tehisintellekti põhiste teenuste arendamine ja toe pakkumine asutustele rakendamisel. | J83: Tehisintellekti tegevuskava elluviimine ning asutuste toetamine tehisintellekti rakendamisel ja kesksete teenuste arendamisel. | K83: Riigikorraldus on tehisintellekti poolt rikastatud – Eesti on juhtiv tehisintellekti rakendaja maailmas. Aastane kulukokkuhoid läbi automatiseerimise ja sihitumate otsuste vähemalt 5M€. | M83: 1 | O83: Ei | P83: RES IKT (vaja juurde taotleda) | Q83: 0 | R83: 0 | S83: 0 | T83: 0 | U83: 0 | V83: 0 | W83: 0 | AH83: 0 | AI83: 0 | AK83: 0 | AL83: 0 | AN83: 0 | AO83: 0 | AP83: Digiriigi arengu osakonna andmete tiimi kahe inimese palgakulu (sh töökohakulu) ja majandamiskulud (koolitused, lähetused, töötoad, kratitoe portfelli osutamine, kommunikatsioon). | AR83: Ei ole tegemist MKM valdkondliku digipöörde SF tegevustega. | AS83: 2. AI ja andmed | AT83: Püsikulu (baasi)
A84: MKM | B84: DAO | D84: Ott Velsberg | E84: I: Digiriik | F84: 1.2.2. Andmepõhine riigivalitsemine ja andmete taaskasutus | G84: I: Infotehnoloogiliste lahenduste väljatöötamine ja arendamine | I84: Rahastuse puudumisel MKM andmete valdkonna koordieerimise ja riigiülese elluviimisega enam ei tegele kuna puuduvad inimesed. Osalisel rahastusel tuleb valida, millega riigiüleselt tegeletakse ja millega mitte (andmehaldus, andmete taaskasutus, tehisintellekt, andmepõhine juhtimine jms). RRF rahastusest väljumine. Andmehalduse ja avaandmete suunaliste tegevustega jätkamine. Andmehalduse ja avaandmete suunaliste tegevuste riigiülene koordineerimine ja juhtimine, sh. andmete taaskasutuse ja leitavuse toetamine ning andmekvaliteedi ja andmehalduse efektiivne rakendamine. | J84: Andmete tegevuskava elluviimine ning andmehalduse valdkonna riigiülene juhtimine ja koordineerimine, sh. andmete elukäiguhalduse süsteemne rakendamine riigiüleselt ja andmete ühekordse küsimise põhimõtte rakendamine. | K84: • Avaliku sektori organisatsioonide andmed on hallatud ja kaitstud varana – meie andmed on kvaliteetsed, kättesaadavad ja kasutatavad lähtuvalt kasutusvajadustest; • Lõppkasutajate (kodanike) halduskoormuse vähendamine vähemalt 70% võrrelduna 2023. aastaga läbi andmete ühekordse küsimise ja mitmekordse kasutamise printsiibi rakendamise ja taksonoomiate ühtlustamise - kulude kokkuhoid erasektoris 140M€; • Avaliku sektori organisatsioonides on sisse seatud efektiivne toimimismudel ja süsteemne andmehalduse korraldus; | M84: 1 | O84: Ei | P84: RES IKT (vaja juurde taotleda) | Q84: 455,984 | R84: 0 | S84: 0 | T84: 0 | U84: 143,229 | V84: 151,823 | W84: 160,932 | AH84: 125,229 | AI84: 18,000 | AK84: =AH84*1.06 -> 132,743 | AL84: 19,080 | AN84: =AK84*1.06 -> 140,707 | AO84: 20,225 | AP84: Digiriigi arengu osakonna andmete tiimi kahe inimese palgakulu (sh töökohakulu) ja majandamiskulud (koolitused, lähetused, kommunikatsioon). | AR84: Ei ole tegemist MKM valdkondliku digipöörde SF tegevustega. | AS84: 2. AI ja andmed | AT84: Püsikulu (baasi)
A85: MKM | B85: DAO | D85: Ott Velsberg | E85: I: Digiriik | F85: 1.1.3. Inimkeskne Digiriik | G85: I: Infotehnoloogiliste lahenduste väljatöötamine ja arendamine | I85: Rahastuse puudumisel MKM andmete valdkonna koordieerimise ja riigiülese elluviimisega enam ei tegele kuna puuduvad inimesed. Osalisel rahastusel tuleb valida, millega riigiüleselt tegeletakse ja millega mitte (andmehaldus, andmete taaskasutus, tehisintellekt, andmepõhine juhtimine jms). RRF rahastusest väljumine. Usaldusväärse tehisintellekti ja inimkeskse andmekorralduse suunaliste tegevuste riigiülene koordineerimine ja juhtimine, sh. tagada, et digiriigi taristu võimaldab inimesel kui ka andmeid valdaval asutusel andmete kasutust tõhusamalt juhtida ning toetada privaatsust säilitavate tehnoloogiate rakendamist riigi üleselt. | J85: Usaldusväärse tehisintellekti ja inimkeskse andmekorralduse valdkonna riigiülene koordineerimine ja juhtimine, sh. privaatsust säilitavate tehnoloogiate rakendamine. | K85: · Digiriigi taristu võimaldab inimesel kui ka andmeid valdaval asutusel andmete kasutust tõhusamalt juhtida. Isikul on läbi keskse infoportaali ülevaade, milliste avalike teenuste osutamiseks milliseid andmeid on ametiasutused tema kohta kogunud ning kes ja mis eesmärkidel neid andmeid kasutab. · Juhul, kui inimene soovib oma andmeid jagada, on tal seda võimalik teha viisil, mis on läbipaistev ja mõistetav, turvaline kui ka säilitab otsustusõiguse. Seeläbi on soodustatud ka uuenduslike avalike ja erasektori partnerluste teke, kus kodanike kaasamine andmete jagamisse aitab kujundada tõhusamaid ja kodanike vajadusi paremini arvestavaid teenuseid. 2023 aastal genereeriti nõusolekuid enam kui 500 000 korral enam kui 20 erasektori teenuses. · Tagatud on võimekus pakkuda personaalset teenust erineva privaatsuse tunnetusega inimestele, mis tähendab, et inimesel on suur otsustusõigus selle üle, milliseid teenuseid talle pakutakse automaatselt tema andmeid töödeldes ning milliseid mitte. | M85: 1 | O85: Ei | P85: RES IKT (vaja juurde taotleda) | Q85: 254,981 | R85: 0 | S85: 0 | T85: 0 | U85: 80,092 | V85: 84,898 | W85: 89,991 | AH85: 66,092 | AI85: 14,000 | AK85: 70,058 | AL85: 14,840 | AN85: 74,261 | AO85: 15,730 | AP85: Digiriigi arengu osakonna andmete tiimi ühe inimese palgakulu (sh töökohakulu) ja majandamiskulud (koolitused, lähetused, kommunikatsioon). | AR85: Ei ole tegemist MKM valdkondliku digipöörde SF tegevustega. | AS85: 2. AI ja andmed | AT85: Püsikulu (baasi)
A86: MKM | B86: KEMIT | D86: Jana Korberg | E86: I: Digiriik | F86: 1.2.1. Avalike teenuste juhtimise ja kasutajakesksuse juurutamine | G86: I: Infotehnoloogiliste lahenduste väljatöötamine ja arendamine | H86: Panustab mitmetesse TERE teenustesse | I86: Teenused aeglased, kliendile ebamugavad, automatiseerimata; süsteemides ebapiisav funktsionaalsus ja esineb palju vigu | J86: ET (e-teenuste) iseteeninduskeskkond - I etapp sisaldab kõiki vajalikke tegevusi terviklikuks lahenduseks.* ET KLIENDITOODE: arendada terviklik funktsionaalsus loataotluse esitamiseks (sh uus kasutajateekonna disain); kaetud on teenused JVIS, MTR ja NMB infosüsteemidest ja uued teenused (sh NMR) | K86: Majandustegevusteateid ja loataotlusi on võimalik esitada e-teenuste kliendikeskkonnas, vähenenud on klientide vajadus täiendava konsultatsiooni järele teenuste kasutamisel, klientide rahulolu langustrend on peatunud | L86: ok | M86: 1 | O86: Ei | P86: SF 21-27 (taotletav raha) | Q86: 2,288,000 | R86: 0 | S86: 503,000 | T86: 1,385,000 | U86: 400,000 | V86: 0 | W86: 0 | AA86: 428,000 | AB86: 0 | AC86: 75,000 | AD86: 1,345,000 | AE86: 0 | AF86: 40,000 | AG86: 400,000 | AH86: 0 | AI86: 0 | AP86: Maksumuse arvutuse aluseks on töötunni maksumus 60 EUR | AQ86: 4. SF tegevus, mis vajab jätkusuutlikkuse kulusid, aga neid pole välja arvutatud ja eraldi real välja toodud | AR86: Vajadus tekib alates arenduse kasutusele võtust alates 2025 kasvavas trendis ja algselt kaetakse vana platvormi arvel. | AS86: 1. Personaalne riik
A87: MKM | B87: KEMIT | D87: Jana Korberg | E87: I: Digiriik | F87: 1.2.5. Uute lähenemisviiside pidev katsetamine | G87: I: Infotehnoloogiliste lahenduste väljatöötamine ja arendamine | H87: Panustab mitmetesse TERE teenustesse | I87: Teenused aeglased, kliendile ebamugavad, automatiseerimata; süsteemides esineb palju vigu | J87: ET PROTSESSITOODE: Protsessijuhtimise tarkvara integreerimine e-teenuste platvormiga | K87: Protsessijuhtimise tarkvara on integreeritud e-teenuste platvormile, teostatud on pilootprojekt, mille õnnestumisel on loodud võimekus tarkvara kasutuselevõtmiseks (sh koolitused) | L87: nok | M87: 1 | O87: Ei | P87: SF 21-27 (taotletav raha) | Q87: 0 | R87: 0 | S87: 0 | T87: 0 | U87: 0 | V87: 0 | W87: 0 | AA87: 0 | AB87: 0 | AC87: 0 | AD87: 0 | AE87: 0 | AF87: 0 | AG87: 0 | AH87: 0 | AI87: 0 | AP87: Analüütikute poolt hinnatud töötunni maht ning tavapärane töötunni maksumus 60 EUR | AQ87: 4. SF tegevus, mis vajab jätkusuutlikkuse kulusid, aga neid pole välja arvutatud ja eraldi real välja toodud | AR87: Vajadus tekib alates arenduse kasutusele võtust alates 2025 kasvavas trendis ja algselt kaetakse vana platvormi arvel. | AS87: 1. Personaalne riik
A88: MKM | B88: KEMIT | D88: Jana Korberg | E88: I: Digiriik | F88: 1.2.2. Andmepõhine riigivalitsemine ja andmete taaskasutus | G88: I: Infotehnoloogiliste lahenduste väljatöötamine ja arendamine | H88: Panustab mitmetesse TERE teenustesse | I88: Liidestused erinevate infosüsteemidega on hajutatud, raskesti monitooritavad, hallatavad ja arendatavad | J88: ET ANDMEVAHETUSTOODE: Andmevahetuse (nii siseriiklik kui ka EL) funktsionaalsuse arendamine ja konsolideerimine e-teenuste andmevahetustootesse. EL andmeliidestused on direktiivikohustuslikud. | K88: Arendatud on andmevahetustoote võimekus liidestuste loomiseks nii siseriiklikult kui ka EL suunal, teostatud on konkreetsed liidestused vastavalt e-teenustesse üle viidud teenuste vajadustele | L88: nok | M88: 1 | O88: Ei | P88: SF 21-27 (taotletav raha) | Q88: 0 | R88: 0 | S88: 0 | T88: 0 | U88: 0 | V88: 0 | W88: 0 | X88: 0 | AA88: 0 | AB88: 0 | AC88: 0 | AD88: 0 | AE88: 0 | AF88: 0 | AG88: 0 | AH88: 0 | AI88: 0 | AP88: Analüütikute poolt hinnatud töötunni maht ning tavapärane töötunni maksumus 60 EUR | AQ88: 4. SF tegevus, mis vajab jätkusuutlikkuse kulusid, aga neid pole välja arvutatud ja eraldi real välja toodud | AR88: Vajadus tekib alates arenduse kasutusele võtust alates 2025 kasvavas trendis ja algselt kaetakse vana platvormi arvel. | AS88: 2. AI ja andmed
A89: MKM | B89: KEMIT | D89: Jana Korberg | E89: I: Digiriik | F89: 1.2.1. Avalike teenuste juhtimise ja kasutajakesksuse juurutamine | G89: I: Infotehnoloogiliste lahenduste väljatöötamine ja arendamine | H89: Panustab mitmetesse TERE teenustesse | I89: Menetluskeskkonna kasutajateekond ei toeta tööprotsessi efektiivset teostamist (protsessipõhisust, automatiseerimist, ärireeglite rakendamist). | J89: ET MENETLUSTOODE: kasutajateekonna analüüs ja uue disaini väljatöötamine | K89: Loodud on menetluskeskkonna uus kasutajateekonna disain | L89: nok | M89: 1 | O89: Ei | P89: SF 21-27 (taotletav raha) | Q89: 0 | R89: 0 | S89: 0 | T89: 0 | U89: 0 | V89: 0 | W89: 0 | X89: 0 | Y89: 0 | Z89: 0 | AA89: 0 | AB89: 0 | AC89: 0 | AD89: 0 | AE89: 0 | AF89: 0 | AG89: 0 | AH89: 0 | AI89: 0 | AP89: Maksumuse arvutuse aluseks on töötunni maksumus 70 EUR. Planeeritud on 2200 tundi. | AQ89: 4. SF tegevus, mis vajab jätkusuutlikkuse kulusid, aga neid pole välja arvutatud ja eraldi real välja toodud | AR89: Vajadus tekib alates arenduse kasutusele võtust alates 2025 kasvavas trendis ja algselt kaetakse vana platvormi arvel. | AS89: 1. Personaalne riik
A90: MKM | B90: KEMIT | D90: Jana Korberg | E90: I: Digiriik | F90: 1.2.1. Avalike teenuste juhtimise ja kasutajakesksuse juurutamine | G90: I: Infotehnoloogiliste lahenduste väljatöötamine ja arendamine | H90: Panustab mitmetesse TERE teenustesse | I90: Sisuteenuste toimepidevuse tagamine e-teenustele etapiviisilise ülemineku käigus | J90: ET Möödapääsmatute integratsioonide arendused vana ja uue infosüsteemi vahel ning andmete migratsiooniga seotud tööd | K90: TTJA teenused toimivad katkestusteta kogu e-teenuste platvormile ülemineku perioodi jooksul ja andmete terviklus on tagatud | L90: nok | M90: 1 | O90: Ei | P90: SF 21-27 (taotletav raha) | Q90: 0 | R90: 0 | S90: 0 | T90: 0 | U90: 0 | V90: 0 | W90: 0 | AC90: 0 | AF90: 0 | AP90: Maksumuse arvutuse aluseks on töötunni maksumus 60 EUR | AQ90: 5. SF tegevus, mis ei vaja jätkusuutlikkuse kulusid (nt analüüs) | AS90: 2. AI ja andmed
A91: MKM | B91: KEMIT | D91: Jana Korberg | E91: I: Digiriik | F91: 1.2.2. Andmepõhine riigivalitsemine ja andmete taaskasutus | G91: I: Infotehnoloogiliste lahenduste väljatöötamine ja arendamine | H91: Panustab mitmetesse TERE teenustesse | I91: e-teenuste platvormil puudub aruannete genereerimise ja analüütika töövahend | J91: Andmeaida edasiarendus (vahekihtide loomine, täiendavad liidestused andmeallikatega, Tableau serveri kasutuselevõtmine aruannete kättesaadavuse loomiseks). | K91: On võimalik luua ja kasutada aruandeid andmeaidaga liidestatud andmekogude andmete põhjal. Kasutajad on koolitatud. On loodud võimalus aruannete esitlemiseks välisveebis. | L91: nok | M91: 1 | O91: Ei | P91: SF 21-27 (taotletav raha) | Q91: 0 | R91: 0 | S91: 0 | T91: 0 | U91: 0 | V91: 0 | W91: 0 | AD91: 0 | AF91: 0 | AP91: Maksumuse arvutuse aluseks on töötunni maksumus 60 EUR | AQ91: 4. SF tegevus, mis vajab jätkusuutlikkuse kulusid, aga neid pole välja arvutatud ja eraldi real välja toodud | AS91: 2. AI ja andmed
A92: MKM | B92: DAO | E92: I: Digiriik | F92: 1.2.4. Keskselt osutatud IT-alusteenused | G92: IV: muu digipöördega seotud otsene kulu | H92: IKT alusteenuste keskne osutamine | I92: RIT-i keskne ATK teenus ja serveri alusteenused ei ole MKMi poolt keskselt koordineeritud ja juhitud. Riigiülese baasteenuse konsolideerimiseks puudub ressurss | J92: Arvutustaristu tehnoloogia nõuniku ja konsolideerimise programmijuhi värbamine | K92: RIT-i keskne ATK teenus ja serveri alusteenused on MKMi poolt keskselt koordineeritud ja juhitud. Riigiülese baasteenuse konsolideerimise koordineerimine | L92: nok | M92: 1 | P92: RES IKT (vaja juurde taotleda) | Q92: 656,000 | R92: 0 | S92: 0 | T92: 164,000 | U92: 164,000 | V92: 164,000 | W92: 164,000 | AE92: 150,000 | AF92: 14,000 | AH92: 150,000 | AI92: 14,000 | AK92: 150,000 | AL92: 14,000 | AN92: 150,000 | AO92: 14,000 | AP92: Kahe inimese palgakulu | AS92: 4. Baasi korrastamine | AT92: püsikulu
A93: MKM | B93: TTJA | D93: Raul Kallas | E93: I: Digiriik | F93: 1.2.7. Avaliku sektori digimuutuste võimendamine | G93: III: teadlikkuse tõstmine | H93: Panustab mitmetesse TERE teenustesse | I93: TTJA puudub võimekus UX/UI kompetentsi osas | J93: Kasutajateekonna (UX) kompetentsi tõstmine | K93: Kasutajateekonna (UX) spetsialist on värvatud | L93: ok | M93: 1 | O93: Ei | P93: SF 21-27 (taotletav raha) | Q93: =SUM(R93:W93) -> 302,000 | R93: =SUM(X93:Z93) -> 0 | S93: =SUM(AA93:AC93) -> 42,000 | T93: =SUM(AD93:AF93) -> 65,000 | U93: =SUM(AE93:AG93) -> 65,000 | V93: 65,000 | W93: =SUM(AG93:AI93) -> 65,000 | AB93: 32,000 | AC93: 10,000 | AE93: 55,000 | AF93: 10,000 | AH93: 55,000 | AI93: 10,000 | AK93: 55,000 | AL93: 10,000 | AP93: Asutuse kulu 4000 tööjõukulu. Majandamiskulu alla on planeeritud koolitused. | AQ93: 4. SF tegevus, mis vajab jätkusuutlikkuse kulusid, aga neid pole välja arvutatud ja eraldi real välja toodud | AS93: 1. Personaalne riik
A94: MKM | B94: KEMIT | D94: Jana Korberg | E94: I: Digiriik | F94: 1.2.7. Avaliku sektori digimuutuste võimendamine | G94: III: teadlikkuse tõstmine | H94: Panustab mitmetesse TERE teenustesse | I94: Kemitil puudub piisav IT arhitekti kompetents/ressurss ning arendustööde haldusvõimekus on ebapiisav e-teenuste projekti jaoks | J94: TTJA pilooti jaoks võimekuse ja kompetentsi tõstmine KEMITis | K94: Süsteemiarhitekt ja teenushaldur on värvatud. | L94: ok | M94: 1 | O94: Ei | P94: SF 21-27 (taotletav raha) | Q94: 661,100 | R94: 0 | S94: 75,000 | T94: 135,550 | U94: =SUM(AE94:AG94) -> 135,550 | V94: =SUM(AF94:AH94) -> 155,000 | W94: =SUM(AG94:AI94) -> 160,000 | AB94: 70,000 | AC94: 5,000 | AE94: 130,550 | AF94: 5,000 | AH94: 150,000 | AI94: 10,000 | AK94: 150,000 | AL94: 10,000 | AP94: Majandamiskulu on koolitusteks. | AQ94: 4. SF tegevus, mis vajab jätkusuutlikkuse kulusid, aga neid pole välja arvutatud ja eraldi real välja toodud | AS94: 1. Personaalne riik
A95: MKM | B95: TTJA | D95: Raul Kallas | E95: I: Digiriik | F95: 1.2.1. Avalike teenuste juhtimise ja kasutajakesksuse juurutamine | G95: I: Infotehnoloogiliste lahenduste väljatöötamine ja arendamine | H95: Panustab mitmetesse TERE teenustesse | I95: Puudub terviklik ülevaade klientide/kasutajate rahulolust TTJA teenustega | J95: Kliendi tagasiside küsitluse metoodika väljatöötamine, küsitluse disain ja teostamine | K95: Kliendi tagasiside küsitlus on läbi viidud | L95: nok | M95: 2 | O95: Ei | P95: SF 21-27 (taotletav raha) | Q95: 0 | R95: 0 | S95: 0 | T95: 0 | U95: =SUM(AG95:AI95) -> 0 | V95: =SUM(AJ95:AL95) -> 0 | W95: =SUM(AM95:AO95) -> 0 | AC95: 0 | AP95: ma rohkem kuulaja rollis | AQ95: 5. SF tegevus, mis ei vaja jätkusuutlikkuse kulusid (nt analüüs) | AS95: 1. Personaalne riik
A96: MKM | B96: MKM | D96: Kaire Kasearu | E96: I: Digiriik | F96: 1.1.4. Roheline digiriik | G96: III: teadlikkuse tõstmine | H96: Panustab mitmetesse TERE teenustesse | I96: Hetkel on kestlikkuse teemad rohelise digiriigi saavutamiseks korraldamata ja koordineerimata ning teadlikkus on madal | J96: Kestlikkuse tegevuste juurutamine MKMi valitsemisalas | K96: Kestlikkuse teadlikkus on tõusnud ja prioriteetsed tegevused planeeritud ning ellu viidud (nt koolitused, kogemuste jagamine, rohekalender, digiprügi kampaania MKMi valitsemisalas jne) | L96: nok | O96: Ei | P96: SF 21-27 (taotletav raha) | Q96: 0 | R96: 0 | S96: 0 | T96: 0 | U96: 0 | V96: 0 | W96: 0 | AC96: 0 | AF96: 0 | AQ96: 5. SF tegevus, mis ei vaja jätkusuutlikkuse kulusid (nt analüüs) | AS96: 1. Personaalik riik
A97: MKM | B97: DM | D97: Sirli Heinsoo | E97: I: Digiriik | F97: 1.1.1. Üleminek sündmuspõhistele ja proaktiivsetele teenustele | G97: I: Infotehnoloogiliste lahenduste väljatöötamine ja arendamine | H97: Panustab mitmetesse TERE teenustesse | I97: RRF rahastusest väljumine. Kogu ettevõtjatele suunatud sündmusteenuste MKMi ehk äritellija tiim on RRFist rahastud. Rahastus lõpeb ära 2025 lõpuga. 2025 aastaks loodavad lahendused ei taga terviklikke parimaid sündmusteenuseid ning neid on vaja sisuliselt edasi arendada parimate kasutajakesksete, mugavate ja lihtsate teenuste ülemineku suunas ettevõtjatele, tagada jätkusuutlikkus toetades personaalse riigi kontseptsiooni. | J97: Ettevõtja sündmusteenuste jätkuarenduste ja jätkusuutlikkuse tagamine, sh laialdane koostöö hoidmine ja arendamine asutustega. Avaliku sektori asutuste toetamine sündmuspõhistele teenustele ülemineku kontseptsiooni juurutamisel ja kasutajakesksete teenuste loomise tööriistade pakkumisel. | K97: 2026-2028. a perioodiks asutusteülese ettevõtjatele suunatud sündmusteenuste arendamise koordineerimise võimestamine RRFist loodud sündmusteenuste edasiarenduseks. Rahastuse olemasolu investeeringutele ja tööjõu- ning majandamiskuludele RRFist kuni 31.12.2025, majandamiskulu ja tööjõukulu katmiseks muudetakse minsitri käskkirja RRFi vahendite kasutamiseks kuni 31.04.2026, seetõttu 2026. a tööjõu- ja majndamiskulu lisavajadused väiksemad kui 2027 a ja 2028 a. Investeeringukulud sündmusteenuste platvormile alates 2026. a planeeritud RIA poolt. | M97: 1 | O97: Võimalik vajadus äri või arhitektuuripaneeli järele, kui RIA ja teiste asutuste koostöös selgub, kuidas olemaoslevad iseteenindused keskelt kasutajani viia. | P97: RES IKT (vaja juurde taotleda) | Q97: 1,130,000 | R97: 0 | S97: 0 | T97: 0 | U97: =SUM(AG97:AI97) -> 270,000 | V97: 420,000 | W97: 440,000 | AH97: 250,000 | AI97: 20,000 | AK97: 390,000 | AL97: 30,000 | AN97: 410,000 | AO97: 30,000 | AP97: Digimajanduse osakonna digivärava tiimi kuue (sh jurist ja valdkonna juht) inimese palgakulu (sh töökohakulu) ja majandamiskulud (koolitused, lähetused, töötoad, kommunikatsioon), kalkuleeritud RRF perioodi reaalsete kulude pealt. | AQ97: 2. Tegevus on jätkusuutlikkuse kulu (baaseelarve, RES lisataotlus, muu allikas) | AR97: Ei ole tegemist MKM valdkondliku digipöörde SF tegevustega. Jätkurahastuseta ei ole võimalik personaalse riigi kontseptsiooni realiseerida. | AS97: 1. Personaalne riik | AT97: püsikulu
A98: MKM | B98: TTJA | D98: Raul Kallas | E98: III: Küberturvalisus | F98: 1.2.3. Tulevikukindlad digiriigi platvormid | G98: II: küberruumi hoidmine, arendamine ja juurutamine usaldusväärse ja turvalisena | H98: Panustab mitmetesse TERE teenustesse | I98: Puudub ülevaade, millisel määral on TTJA-s täidetud e-its nõuded | J98: e-its auditi hankimine ja läbiviimine | K98: Auditi raport on koostatud ja esitatud TTJA-le. | L98: ok | M98: 1 | O98: Ei | P98: SF 21-27 (taotletav raha) | Q98: 30,000 | R98: 0 | S98: 30,000 | T98: 0 | U98: 0 | V98: 0 | W98: 0 | AC98: 30,000 | AP98: Ühekordne töö. Maksumus on hinnanguline ja tugineb teiste asutuste kogemusele. | AQ98: 5. SF tegevus, mis ei vaja jätkusuutlikkuse kulusid (nt analüüs) | AS98: 5. Küberturvalisus.
A99: MKM | B99: TTJA | D99: Erko Kulu | E99: II: Ühenduvus | F99: 1.2.3. Tulevikukindlad digiriigi platvormid | G99: I: Infotehnoloogiliste lahenduste väljatöötamine ja arendamine | H99: TERE teenus Digivaldkonna Järelevalve | I99: Puudub võimalus riigiasutuste vahel ressurssi jagada | J99: Monitooringuvõrgu ühiskasutusplatvorm | K99: TTJA monitooringuvõrgu ressurss on jagatav riigi julgeolekuasutuste vahel | M99: 1 | P99: RES IKT (vaja juurde taotleda) | Q99: 100,000 | R99: 0 | S99: 0 | T99: 0 | U99: 100,000 | V99: 0 | W99: 0 | AG99: 100,000 | AP99: Investeering Monitooringuvõrgu ühiskasutusplatvorm. Projekti esimene faas on saanud heakskiidu 2024 SR vahenditest | AS99: 4. Baasi korrastamine.
A100: MKM | B100: TTJA | D100: Erko Kulu | E100: II: Ühenduvus | F100: 3.3. Suurem küberturvalisuse tagamise võimekus | G100: II: küberruumi hoidmine, arendamine ja juurutamine usaldusväärse ja turvalisena | H100: TERE teenus Digiühiskonna järelevalve | I100: Võib katkeda riiklik olukorra pilt GPS kasutamisest ja ei ole tuvastatavad küberründed GPS süsteemile | J100: GPS häirete reaalajas olukorra pildi teenus | K100: Riikliku olukorrapilldi saamine GPS navigatsioonisüsteemide kasutatavusest ja häiretes Eesti territooriumil | M100: 1 | P100: RES IKT (vaja juurde taotleda) | Q100: 200,000 | R100: 0 | S100: 0 | T100: 50,000 | U100: 50,000 | V100: 50,000 | W100: 50,000 | AF100: 50,000 | AI100: 50,000 | AL100: 50,000 | AO100: 50,000 | AP100: GPS häirete reaalajas olukorra pildi teenus,halduskulu | AS100: 5. Küberturvalisus.
A101: MKM | B101: TTJA | D101: Erko Kulu | E101: II: Ühenduvus | F101: 3.3. Suurem küberturvalisuse tagamise võimekus | G101: II: küberruumi hoidmine, arendamine ja juurutamine usaldusväärse ja turvalisena | H101: Investeering Digiühiskonna programm | I101: Väheneb võimekus tuvastada ja lokaliseerida piirialadel häireid sidevõrkudes, kuna olemaolev tehnika on amortiseerub | J101: Mobiilse monitooringujaama soetamine | K101: Mobiilse monitooringujaama uuendamine koos paigaldatavate positsioneerimisvahendite väljavahetamisega, paraneb oluliselt raadioeetri küberrünnete positsioneerimine ja pahalase tuvastamine | M101: 1 | P101: RES IKT (vaja juurde taotleda) | Q101: 235,000 | R101: 0 | S101: 0 | T101: 0 | U101: 0 | V101: 180,000 | W101: 55,000 | AJ101: 180,000 | AM101: 55,000 | AP101: Mobiilse monitooringujaama soetamine,mille käigus vahetatakse välja paigaldatud positsioneerimisvahendid, paraneb oluliselt raadioeetri küberrünnete positsioneerimine ja pahalase tuvastamine | AS101: 5. Küberturvalisus.
A102: MKM | B102: TTJA | D102: Oliver Gailan | E102: II: Ühenduvus | F102: 2.2. Juurdepääsuvõrkude väljaarendamine | G102: II: küberruumi hoidmine, arendamine ja juurutamine usaldusväärse ja turvalisena | H102: TERE teenus Digiühiskonna Järelevalve | I102: Puudub võimekus alates 2026 teha järelevalvet riigi ja EL toega rajatud kiire interneti võrkudele võrdse juurdepääsu tagamise üle | J102: Toetusmeetmetest rajatud kiire interneti võrkude juurdepääsutingimuste järelevalve | K102: Toetusmeetmetest rajavad operaatorineutraalseid võrke paljud sideettvõtted ning reeglite kohaselt jääb neile kestma võrkude juurdepääsu andmise ja hinnakohustus. Ohuprognoos ja esinenud näited kinnitavad, et tingimuste täitmisega on probleeme ning teha järelevalvet tulemuseks ühenduvuse säilimine. | M102: 1 | P102: RES IKT (vaja juurde taotleda) | Q102: 150,000 | R102: 0 | T102: 0 | U102: 50,000 | V102: 50,000 | W102: 50,000 | AH102: 50,000 | AK102: 50,000 | AN102: 50,000 | AP102: 1 töötaja tööjõukulu s.h. töökoha kulu | AS102: 6. Mittesõjalised riigikaitselised IKT vajadused.
A103: MKM | B103: TTJA | D103: Erko Kulu | E103: III: Küberturvalisus | F103: 3.1. Ajakohane küberturvalisuse riiklik korraldus | G103: II: küberruumi hoidmine, arendamine ja juurutamine usaldusväärse ja turvalisena | H103: Investeering Digiühiskonna programm | I103: Vajalik salastatud teabe vahetamiseks turvalise sidekanali kaudu | J103: Ametkondade vahelise andmesidevõrgu (ATA) krüptoseadme soetamine | K103: Asutuste vaheline RS teabe vahetamine on turvaline | M103: 1 | P103: RES IKT (vaja juurde taotleda) | Q103: 30,000 | R103: 0 | S103: 0 | T103: 0 | U103: 30,000 | V103: 0 | W103: 0 | AG103: 30,000 | AP103: Krüptoseade , hinnaguline maksumus | AS103: 6. Mittesõjalised riigikaitselised IKT vajadused.
Q104: =SUM(R104:W104) -> 18,919,067 | R104: 23,250 | S104: 1,807,000 | T104: 17,088,817 | U104: 0 | V104: 0 | W104: 0 | X104: =SUM(X35:X103) -> 0 | Y104: 16,074 | Z104: 7,176 | AA104: 838,000 | AB104: 502,000 | AC104: 467,000 | AD104: 1,425,000 | AE104: 8,346,336 | AF104: 7,317,481
X105: =SUM(X107+X110+X113+X116+X122+X125+X128+X131+X137+X140+X143+X146) -> 0 | Y105: 16,074 | Z105: 7,176 | AA105: 838,000 | AB105: 502,000 | AC105: 467,000 | AD105: 1,425,000 | AE105: 8,346,336 | AF105: 7,317,481
U106: SF 21-27 (taotletav raha)
E107: I: Digiriik | F107: 1.1.1. Üleminek sündmuspõhistele ja proaktiivsetele teenustele | G107: I: Infotehnoloogiliste lahenduste väljatöötamine ja arendamine | P107: Baaseelarve | U107: 1. Infotehnoloogiliste lahenduste väljatöötamine ja arendamine | X107: =SUMIFS($X$35:$X$103,$G$35:$G$103,$G$107,$P$35:$P$103,"SF 21-27 (taotletav raha)") -> 0 | Y107: =SUMIFS($Y$35:$Y$103,$G$35:$G$103,$G$107,$P$35:$P$103,"SF 21-27 (taotletav raha)") -> 0 | Z107: =SUMIFS($Z$35:$Z$103,$G$35:$G$103,$G$107,$P$35:$P$103,"SF 21-27 (taotletav raha)") -> 0 | AA107: =SUMIFS($AA$35:$AA$103,$G$35:$G$103,$G$107,$P$35:$P$103,"SF 21-27 (taotletav raha)") -> 688,000 | AB107: =SUMIFS($AB$35:$AB$103,$G$35:$G$103,$G$107,$P$35:$P$103,"SF 21-27 (taotletav raha)") -> 111000 | AC107: =SUMIFS($AC$35:$AC$103,$G$35:$G$103,$G$107,$P$35:$P$103,"SF 21-27 (taotletav raha)") -> 250000 | AD107: =SUMIFS($AD$35:$AD$103,$G$35:$G$103,$G$107,$P$35:$P$103,"SF 21-27 (taotletav raha)") -> 1425000 | AE107: =SUMIFS($AE$35:$AE$103,$G$35:$G$103,$G$107,$P$35:$P$103,"SF 21-27 (taotletav raha)") -> 111000 | AF107: =SUMIFS($AF$35:$AF$103,$G$35:$G$103,$G$107,$P$35:$P$103,"SF 21-27 (taotletav raha)") -> 50000 | AQ107: 1. Baaseelarve tegevus, mis sisaldab jätkusuutlikkuse kulusid ja need on samal real välja toodud
E108: II: Ühenduvus | F108: 1.1.2. Krativäeline riik | G108: II: küberruumi hoidmine, arendamine ja juurutamine usaldusväärse ja turvalisena | P108: Muu rahastus | U108: +km | X108: =X107*1.2 -> 0 | Y108: =Y107 -> 0 | Z108: =Z107*1.2 -> 0 | AA108: =AA107*1.22 -> 839,360 | AB108: =AB107 -> 111,000 | AC108: =AC107*1.22 -> 305,000 | AD108: =AD107*1.22 -> 1,738,500 | AE108: =AE107 -> 111,000 | AF108: =AF107*1.22 -> 61,000 | AQ108: 2. Tegevus on jätkusuutlikkuse kulu (baaseelarve, RES lisataotlus, muu allikas)
E109: III: Küberturvalisus | F109: 1.1.3. Inimkeskne Digiriik | G109: III: teadlikkuse tõstmine | P109: RES IKT (vaja juurde taotleda) | AQ109: 3. SF tegevus, mis vajab jätkusuutlikkuse kulusid ja need on eraldi real välja toodud
F110: 1.1.4. Roheline digiriik | G110: IV: muu digipöördega seotud otsene kulu | P110: Reserv (SR) | U110: 2. küberruumi hoidmine, arendamine ja juurutamine usaldusväärse ja turvalisena | X110: =SUMIFS(X35:X103,G35:G103,$G$108,P35:P103,"SF 21-27 (taotletav raha)") -> 0 | Y110: =SUMIFS(Y35:Y103,G35:G103,$G$108,P35:P103,"SF 21-27 (taotletav raha)") -> 0 | Z110: =SUMIFS(Z35:Z103,G35:G103,$G$108,P35:P103,"SF 21-27 (taotletav raha)") -> 0 | AA110: =SUMIFS(AA35:AA103,G35:G103,$G$108,P35:P103,"SF 21-27 (taotletav raha)") -> 0 | AB110: =SUMIFS(AB35:AB103,G35:G103,$G$108,P35:P103,"SF 21-27 (taotletav raha)") -> 0 | AC110: =SUMIFS(AC35:AC103,G35:G103,$G$108,P35:P103,"SF 21-27 (taotletav raha)") -> 30000 | AD110: =SUMIFS(AD35:AD103,G35:G103,$G$108,P35:P103,"SF 21-27 (taotletav raha)") -> 0 | AE110: =SUMIFS(AE35:AE103,G35:G103,$G$108,P35:P103,"SF 21-27 (taotletav raha)") -> 0 | AF110: =SUMIFS(AF35:AF103,G35:G103,$G$108,P35:P103,"SF 21-27 (taotletav raha)") -> 0 | AQ110: 4. SF tegevus, mis vajab jätkusuutlikkuse kulusid, aga neid pole välja arvutatud ja eraldi real välja toodud
F111: 1.2.1. Avalike teenuste juhtimise ja kasutajakesksuse juurutamine | P111: RRF | U111: +km | X111: =X110*1.2 -> 0 | Y111: =Y110 -> 0 | Z111: =Z110*1.2 -> 0 | AA111: =AA110*1.22 -> 0 | AB111: =AB110 -> 0 | AC111: =AC110*1.22 -> 36,600 | AD111: =AD110*1.22 -> 0 | AE111: =AE110 -> 0 | AF111: =AF110*1.22 -> 0 | AQ111: 5. SF tegevus, mis ei vaja jätkusuutlikkuse kulusid (nt analüüs)
F112: 1.2.2. Andmepõhine riigivalitsemine ja andmete taaskasutus | P112: SF 14-20 (töös olev projekt)
F113: 1.2.3. Tulevikukindlad digiriigi platvormid | P113: SF 21-27 (taotletav raha) | U113: 3. teadlikkuse tõstmine | X113: =SUMIFS(X35:X103,G35:G103,$G$109,P35:P103,"SF 21-27 (taotletav raha)") -> 0 | Y113: =SUMIFS(Y35:Y103,G35:G103,$G$109,P35:P103,"SF 21-27 (taotletav raha)") -> 16,074 | Z113: =SUMIFS(Z35:Z103,G35:G103,$G$109,P35:P103,"SF 21-27 (taotletav raha)") -> 7,176 | AA113: =SUMIFS(AA35:AA103,G35:G103,$G$109,P35:P103,"SF 21-27 (taotletav raha)") -> 0 | AB113: =SUMIFS(AB35:AB103,G35:G103,$G$109,P35:P103,"SF 21-27 (taotletav raha)") -> 391000 | AC113: =SUMIFS(AC35:AC103,G35:G103,$G$109,P35:P103,"SF 21-27 (taotletav raha)") -> 137000 | AD113: =SUMIFS(AD35:AD103,G35:G103,$G$109,P35:P103,"SF 21-27 (taotletav raha)") -> 0 | AE113: =SUMIFS(AE35:AE103,G35:G103,$G$109,P35:P103,"SF 21-27 (taotletav raha)") -> 514550 | AF113: =SUMIFS(AF35:AF103,G35:G103,$G$109,P35:P103,"SF 21-27 (taotletav raha)") -> 60000
F114: 1.2.4. Keskselt osutatud IT-alusteenused | U114: +km | X114: =X113*1.2 -> 0 | Y114: =Y113 -> 16,074 | Z114: =Z113*1.2 -> 8,611 | AA114: =AA113*1.22 -> 0 | AB114: =AB113 -> 391,000 | AC114: =AC113*1.22 -> 167,140 | AD114: =AD113*1.22 -> 0 | AE114: =AE113 -> 514,550 | AF114: =AF113*1.22 -> 73,200
F115: 1.2.5. Uute lähenemisviiside pidev katsetamine
F116: 1.2.6. Avatud innovatsioon ja digiriigi kogukonna arendamine | U116: 4. muu digipöördega seotud otsene kulu | X116: =SUMIFS(X35:X103,G35:G103,$G$110,P35:P103,"SF 21-27 (taotletav raha)") -> 0 | Y116: =SUMIFS(Y35:Y103,G35:G103,$G$110,P35:P103,"SF 21-27 (taotletav raha)") -> 0 | Z116: =SUMIFS(Z35:Z103,G35:G103,$G$110,P35:P103,"SF 21-27 (taotletav raha)") -> 0 | AA116: =SUMIFS(AA35:AA103,G35:G103,$G$110,P35:P103,"SF 21-27 (taotletav raha)") -> 150000 | AB116: =SUMIFS(AB35:AB103,G35:G103,$G$110,P35:P103,"SF 21-27 (taotletav raha)") -> 0 | AC116: =SUMIFS(AC35:AC103,G35:G103,$G$110,P35:P103,"SF 21-27 (taotletav raha)") -> 50000 | AD116: =SUMIFS(AD35:AD103,G35:G103,$G$110,P35:P103,"SF 21-27 (taotletav raha)") -> 0 | AE116: =SUMIFS(AE35:AE103,G35:G103,$G$110,P35:P103,"SF 21-27 (taotletav raha)") -> 0 | AF116: =SUMIFS(AF35:AF103,G35:G103,$G$110,P35:P103,"SF 21-27 (taotletav raha)") -> 0
F117: 1.2.7. Avaliku sektori digimuutuste võimendamine | U117: +km | X117: =X116*1.2 -> 0 | Y117: =Y116 -> 0 | Z117: =Z116*1.2 -> 0 | AA117: =AA116*1.22 -> 183,000 | AB117: =AB116 -> 0 | AC117: =AC116*1.22 -> 61,000 | AD117: =AD116*1.22 -> 0 | AE117: =AE116 -> 0 | AF117: =AF116*1.22 -> 0
F118: 1.2.8. Sihitud väliskoostöö
F119: 2.1. Ajakohane ja ettevaatav õigusruum
F120: 2.2. Juurdepääsuvõrkude väljaarendamine
F121: 2.3. 5G- ja 6G-baastaristu arendamine | U121: Olemasolevad vahendid
F122: 2.4. Uudsete sisu- ja äriteenuste arendus | U122: 1. Infotehnoloogiliste lahenduste väljatöötamine ja arendamine | X122: =SUMIFS(X$35:X$103, $G$35:$G$103, $G$107, $P$35:$P$103, "Baaseelarve")+SUMIFS(X$35:X$103, $G$35:$G$103, $G$107, $P$35:$P$103, "Muu rahastus")+SUMIFS(X$35:X$103, $G$35:$G$103, $G$107, $P$35:$P$103, "Reserv (SR)")+SUMIFS(X$35:X$103, $G$35:$G$103, $G$107, $P$35:$P$103, "RRF")+SUMIFS(X$35:X$103, $G$35:$G$103, $G$107, $P$35:$P$103, "SF 14-20 (töös olev projekt)") -> 0 | Y122: 0 | Z122: 0 | AA122: 0 | AB122: 0 | AC122: 0 | AD122: 0 | AE122: 0 | AF122: 0
F123: 3.1. Ajakohane küberturvalisuse riiklik korraldus | U123: +km | X123: =X122*1.2 -> 0 | Y123: =Y122 -> 0 | Z123: =Z122*1.2 -> 0 | AA123: =AA122*1.22 -> 0 | AB123: =AB122 -> 0 | AC123: =AC122*1.22 -> 0 | AD123: =AD122*1.22 -> 0 | AE123: =AE122 -> 0 | AF123: =AF122*1.22 -> 0
F124: 3.2. Suundumiste, riskide ja mõjude analüüsivõime
F125: 3.3. Suurem küberturvalisuse tagamise võimekus | U125: 2. küberruumi hoidmine, arendamine ja juurutamine usaldusväärse ja turvalisena | X125: =SUMIFS(X$35:X$103, $G$35:$G$103, $G$108, $P$35:$P$103, "Baaseelarve")+SUMIFS(X$35:X$103, $G$35:$G$103, $G$108, $P$35:$P$103, "Muu rahastus")+SUMIFS(X$35:X$103, $G$35:$G$103, $G$108, $P$35:$P$103, "Reserv (SR)")+SUMIFS(X$35:X$103, $G$35:$G$103, $G$108, $P$35:$P$103, "RRF")+SUMIFS(X$35:X$103, $G$35:$G$103, $G$108, $P$35:$P$103, "SF 14-20 (töös olev projekt)") -> 0 | Y125: 0 | Z125: 0 | AA125: 0 | AB125: 0 | AC125: 0 | AD125: 0 | AE125: 171,000 | AF125: 512,625
U126: +km | X126: =X125*1.2 -> 0 | Y126: =Y125 -> 0 | Z126: =Z125*1.2 -> 0 | AA126: =AA125*1.22 -> 0 | AB126: =AB125 -> 0 | AC126: =AC125*1.22 -> 0 | AD126: =AD125*1.22 -> 0 | AE126: =AE125 -> 171,000 | AF126: =AF125*1.22 -> 625,403
U128: 3. teadlikkuse tõstmine | X128: =SUMIFS(X$35:X$103, $G$35:$G$103, $G$109, $P$35:$P$103, "Baaseelarve")+SUMIFS(X$35:X$103, $G$35:$G$103, $G$109, $P$35:$P$103, "Muu rahastus")+SUMIFS(X$35:X$103, $G$35:$G$103, $G$109, $P$35:$P$103, "Reserv (SR)")+SUMIFS(X$35:X$103, $G$35:$G$103, $G$109, $P$35:$P$103, "RRF")+SUMIFS(X$35:X$103, $G$35:$G$103, $G$109, $P$35:$P$103, "SF 14-20 (töös olev projekt)") -> 0 | Y128: 0 | Z128: 0 | AA128: 0 | AB128: 0 | AC128: 0 | AD128: 0 | AE128: 0 | AF128: 0
U129: +km | X129: =X128*1.2 -> 0 | Y129: =Y128 -> 0 | Z129: =Z128*1.2 -> 0 | AA129: =AA128*1.22 -> 0 | AB129: =AB128 -> 0 | AC129: =AC128*1.22 -> 0 | AD129: =AD128*1.22 -> 0 | AE129: =AE128 -> 0 | AF129: =AF128*1.22 -> 0
U131: 4. muu digipöördega seotud otsene kulu | X131: =SUMIFS(X$35:X$103, $G$35:$G$103, $G$110, $P$35:$P$103, "Baaseelarve")+SUMIFS(X$35:X$103, $G$35:$G$103, $G$110, $P$35:$P$103, "Muu rahastus")+SUMIFS(X$35:X$103, $G$35:$G$103, $G$110, $P$35:$P$103, "Reserv (SR)")+SUMIFS(X$35:X$103, $G$35:$G$103, $G$110, $P$35:$P$103, "RRF")+SUMIFS(X$35:X$103, $G$35:$G$103, $G$110, $P$35:$P$103, "SF 14-20 (töös olev projekt)") -> 0 | Y131: 0 | Z131: 0 | AA131: 0 | AB131: 0 | AC131: 0 | AD131: 0 | AE131: 0 | AF131: 0
U132: +km | X132: =X131*1.2 -> 0 | Y132: =Y131 -> 0 | Z132: =Z131*1.2 -> 0 | AA132: =AA131*1.22 -> 0 | AB132: =AB131 -> 0 | AC132: =AC131*1.22 -> 0 | AD132: =AD131*1.22 -> 0 | AE132: =AE131 -> 0 | AF132: =AF131*1.22 -> 0
U136: RES IKT (vaja juurde taotleda)
U137: 1. Infotehnoloogiliste lahenduste väljatöötamine ja arendamine | X137: =SUMIFS(X$35:X$103,$G$35:$G$103,$G$107,$P$35:$P$103,$P$109) -> 0 | Y137: 0 | Z137: 0 | AA137: 0 | AB137: 0 | AC137: 0 | AD137: 0 | AE137: 241,500 | AF137: 121,000
U138: +km | X138: =X137*1.2 -> 0 | Y138: =Y137 -> 0 | Z138: =Z137*1.2 -> 0 | AA138: =AA137*1.22 -> 0 | AB138: =AB137 -> 0 | AC138: =AC137*1.22 -> 0 | AD138: =AD137*1.22 -> 0 | AE138: =AE137 -> 241,500 | AF138: =AF137*1.22 -> 147,620
U140: 2. küberruumi hoidmine, arendamine ja juurutamine usaldusväärse ja turvalisena | X140: =SUMIFS(X$35:X$103,$G$35:$G$103,$G$108,$P$35:$P$103,$P$109) -> 0 | Y140: 0 | Z140: 0 | AA140: 0 | AB140: 0 | AC140: 0 | AD140: 0 | AE140: 372,750 | AF140: 175,000
U141: +km | X141: =X140*1.2 -> 0 | Y141: =Y140 -> 0 | Z141: =Z140*1.2 -> 0 | AA141: =AA140*1.22 -> 0 | AB141: =AB140 -> 0 | AC141: =AC140*1.22 -> 0 | AD141: =AD140*1.22 -> 0 | AE141: =AE140 -> 372,750 | AF141: =AF140*1.22 -> 213,500
U143: 3. teadlikkuse tõstmine | X143: =SUMIFS(X$35:X$103,$G$35:$G$103,$G$109,$P$35:$P$103,$P$109) -> 0 | Y143: 0 | Z143: 0 | AA143: 0 | AB143: 0 | AC143: 0 | AD143: 0 | AE143: 74,904 | AF143: 76,040
U144: +km | X144: =X143*1.2 -> 0 | Y144: =Y143 -> 0 | Z144: =Z143*1.2 -> 0 | AA144: =AA143*1.22 -> 0 | AB144: =AB143 -> 0 | AC144: =AC143*1.22 -> 0 | AD144: =AD143*1.22 -> 0 | AE144: =AE143 -> 74,904 | AF144: =AF143*1.22 -> 92,769
U146: 4. muu digipöördega seotud otsene kulu | X146: =SUMIFS(X$35:X$103,$G$35:$G$103,$G$110,$P$35:$P$103,$P$109) -> 0 | Y146: 0 | Z146: 0 | AA146: 0 | AB146: 0 | AC146: 0 | AD146: 0 | AE146: 6,860,632 | AF146: 6,322,816
U147: +km | X147: =X146*1.2 -> 0 | Y147: =Y146 -> 0 | Z147: =Z146*1.2 -> 0 | AA147: =AA146*1.22 -> 0 | AB147: =AB146 -> 0 | AC147: =AC146*1.22 -> 0 | AD147: =AD146*1.22 -> 0 | AE147: =AE146 -> 6,860,632 | AF147: =AF146*1.22 -> 7,713,836

Sheet Seirearuanne (hidden)
A1: Valdkonna digipööre
A2: Elluviija: | B2: Majandus-ja Kommunikatsiooniministeerium
A3: Eelarve: | B3: Kokku | C3: 2023 | D3: 2024
A4: KOKKU: | B4: =SUM(C4:D4) -> 1,483,648 | C4: =SUM(C5+C12) -> 227,148 | D4: =SUM(D5+D12) -> 1,256,500
A5: Digipöörde olemasolevad rahalised vahedid | B5: =SUM(C5:D5) -> 0 | C5: =SUM(C6:C11) -> 0 | D5: =SUM(D6:D11) -> 0
A6: sh baaseelarve | B6: =SUM(C6:D6) -> 0 | C6: =SUMIFS(Q35:Q94,O35:O94,"Baaseelarve") -> 0 | D6: =SUMIFS(R35:R94,O35:O94,"Baaseelarve") -> 0
A7: sh muu rahastus | B7: 0 | C7: =SUMIFS(Q35:Q94,O35:O94,"Muu rahastus") -> 0 | D7: =SUMIFS(R35:R94,O35:O94,"Muu rahastus") -> 0
A8: sh reserv (SR) | B8: 0 | C8: =SUMIFS(Q35:Q94,O35:O94,"Reserv (SR)") -> 0 | D8: =SUMIFS(R35:R94,O35:O94,"Reserv (SR)") -> 0
A9: sh RRF | B9: 0 | C9: =SUMIFS(Q35:Q94,O35:O94,"RRF") -> 0 | D9: =SUMIFS(R35:R94,O35:O94,"RRF") -> 0
A10: sh SF 14-20 (töös olev projekt) | B10: 0 | C10: =SUMIFS(Q35:Q94,O35:O94,"SF 14-20 (töös olev projekt)") -> 0 | D10: =SUMIFS(R35:R94,O35:O94,"SF 14-20 (töös olev projekt)") -> 0
A11: RRF | B11: =SUM(C11:D11) -> 0
A12: Digipöörde puuduolevad rahalised vahendid | B12: 1,483,648 | C12: =SUM(C13:C14) -> 227,148 | D12: =SUM(D13:D14) -> 1,256,500
A13: sh RES IKT (vaja juurde taotleda) | B13: 0 | C13: =SUMIFS(Q35:Q95,O35:O95,"RES IKT (vaja juurde taotleda)") -> 0 | D13: =SUMIFS(R35:R95,O35:O95,"RES IKT (vaja juurde taotleda)") -> 0 | E13: Puudu olev jätkusuutlikkuse RES rahastus
A14: sh SF 21-27 (taotletav raha) | B14: 1,483,648 | C14: =SUMIFS(Q35:Q94,O35:O94,"SF 21-27 (taotletav raha)") -> 227,148 | D14: =SUMIFS(R35:R94,O35:O94,"SF 21-27 (taotletav raha)") -> 1,256,500
A16: NB! Mõõdikud tuleb täita ainult SF 2021-2027 rahastuse puhul.
A17: Meetmete nimekirja tulemusnäitaja: | B17: Uute ja uuendatud avalike digiteenuste, -toodete ja -protsesside kasutajad. Mõõtühik: lõppkasutajaid aastas. | J17: Elluviija kommentaar | K17: Käskkirjas välja toodud elluviijate peale kokku on mõõdiku 2029 sihttase 2 000 000. Välja tuua, milline on teie panus selle mõõdiku täitmisse.
A18: Algtase | B18: 2023 algtase | C18: 2024 sihttase | D18: 2025 sihttase | E18: 2026 sihttase | F18: 2027 sihttase | G18: 2028 sihttase | H18: 2029 sihttase | I18: 2030 lõpptase
A19: Lõpptase | B19: 0 | C19: 1,400 | I19: 30,000 | K19: Sisestada tuleb täisarv.
A20: Meetmete nimekirja väljundnäitaja: | B20: Uued või uuendatud digiteenused, -tooted ja -protsessid. Mõõtühik: arv | K20: Käskkirjas välja toodud elluviijate peale kokku on mõõdiku 2029 sihttase 35. Välja tuua, milline on teie panus selle mõõdiku täitmisse. Siia tuleb kokku lugeda lõpule viidud uued või uuendatud digiteenused, - tooted ja -protsessid.
A21: Algtase | B21: 2023 algtase | C21: 2024 sihttase | D21: 2025 sihttase | E21: 2026 sihttase | F21: 2027 sihttase | G21: 2028 sihttase | H21: 2029 sihttase | I21: 2030 lõpptase
A22: Lõpptase | B22: 0 | C22: 11 | I22: 84 | K22: Kasutuskordade kokku lugemise metoodika määrab elluviija ise arvestades oma valdkonda. Sisestada tuleb täisarv.
A23: Meetmete nimekirja väljundnäitaja: | B23: Avaliku sektori asutused, keda toetatakse digiteenuste, -toodete ja -protsesside väljatöötamiseks. Mõõtühik: Avaliku sektori asutused. | K23: Käskkirjas välja toodud elluviijate peale kokku on mõõdiku 2029 sihttase 35. Välja tuua, milline on teie panus selle mõõdiku täitmisse. Siia tuleb kokku lugeda asutused, kes teie digipöörde raames SF toetust kasutavad (elluviija ja partnerid).
A24: Algtase | B24: 2023 algtase | C24: 2024 sihttase | D24: 2025 sihttase | E24: 2026 sihttase | F24: 2027 sihttase | G24: 2028 sihttase | H24: 2029 sihttase | I24: 2030 lõpptase
A25: Lõpptase | B25: 0 | C25: 3 | I25: 7 | K25: Tükkide kokku lugemise metoodika määrab elluviija ise arvestades oma valdkonda. Sisestada tuleb täisarv.
A26: Projektispetsiifiline näitaja (Eesti digiühiskonna arengukava 2030 (DA 2030) mõõdik): | B26: Avalike digiteenustega rahulolu. Mõõtühik: % | K26: Riigiüleselt avalike digiteenustega rahululu peab 2030. aastaks tõusma 90%-le. Välja tuua, milline on teie panus selle mõõdiku täitmisse.
A27: Algtase | B27: 2023 algtase | C27: 2024 sihttase | D27: 2025 sihttase | E27: 2026 sihttase | F27: 2027 sihttase | G27: 2028 sihttase | H27: 2029 sihttase | I27: 2030 lõpptase
A28: Lõpptase 2030 | B28: 0 | I28: 95 | K28: Rahulolu kokku lugemise metoodika määrab elluviija ise arvestades oma valdkonda
V32: NB! Kõik summad kajastada ilma käibemaksuta! | AO32: NB! Kõik summad kajastada ilma käibemaksuta!
A33: Elluviija/ministeerium | B33: Struktuuriüksus | C33: Partner/Asutus | D33: Teenuse vastutaja | E33: DÜAK plokk | F33: Panustab arengukava suundadesse | G33: Meetme toetatavad tegevused | H33: TERE teenus | I33: Probleem | J33: Algatuse nimi | K33: Tulemus | L33: Valdkonna prioriteet | M33: Slaid/allikas | N33: Paneeli vajadus | O33: Rahastuse allikas | P33: Summa kokku | Q33: 2023 | R33: 2024 | S33: 2025 | T33: 2026 | U33: 2027 | V33: 2023 eelarve | Y33: 2024 | AB33: 2025 | AE33: 2026 | AH33: 2027 | AK33: Kalkulatsioon ja allika põhjendus | AL33: Jätkusuutlikkuse kulu | AM33: Kommentaar | AO33: 2023 eelarve täitmine | AR33: 2023 täitmise aruanne / sisu kirjeldus / põhjendused
A34: Punkt 5.3.1. „Toetuse andmise tingimused valdkondlike digipöörete toetamiseks“ | B34: Valdkond, osakond, kes elluviija juures teema eest vastutab. | C34: Partner/asutus, kelle eelarvest algatusi teostatakse Punkt 5.6. „Toetuse andmise tingimused valdkondlike digipöörete toetamiseks“ | D34: Vastutav teenuseomanik/ projektijuht | E34: (valida rippmenüüst) | F34: (valida rippmenüüst) | G34: (valida rippmenüüst, SF TAT käskkirja punkt 3.1. neli tegevust) | H34: Kirjutada välja TERE teenuse nimetus | I34: Täita kõikide ridade puhul | J34: Täita kõikide ridade puhul (Kui tegmist jätkusuutlikkuse tagamise tegevusega, siis see nimes välja tuua.) | K34: Täita kõikide ridade puhul. Kui mitme aastane tegevus/projekt, siis kirjutada välja vähemalt 2024. ja 2025. aasta tulemus ning lõpptulemus. RES lisavajadustel tuua välja, mida mingi aasta RES rahade eest ära tehakse. Kui lisavajadus on kogu perioodiks ja kulud on aasta-aastalt sama, siis näiteks: 2025-2028 - SF-st arendatu hoolduskulu, väikearendused, majutus riigipilves, jne. Kui tegevused on aastati erinevad, siis tuua need välja järgmiselt: 2025 - 2026 - 2027 - 2028 - | L34: Unikaalne prioriteet | M34: Esitatud slaidi number, või viide allikale, kus on võimalik tutvuda vajadusel sisuga, sh täpsemate kalkulatsioonidega | N34: Anda hinnang, kas on vajadus äri-, andmete-, arhitektuuri-, või muu paneeli järele | O34: (valida rippmenüüst) | V34: Investeering (15) | W34: Tööjõukulu (50) | X34: Majandamiskulu (55) | Y34: Investeering (15) | Z34: Tööjõukulu (50) | AA34: Majandamiskulu (55) | AB34: Investeering (15) | AC34: Tööjõukulu (50) | AD34: Majandamiskulu (55) | AE34: Investeering (15) | AF34: Tööjõukulu (50) | AG34: Majandamiskulu (55) | AH34: Investeering (15) | AI34: Tööjõukulu (50) | AJ34: Majandamiskulu (55) | AK34: Välja peab olema toodud tegevuste maksumuste arvutused, koos tundide hinna, tundide arvu ja tunnihinna selgitustega. Arenduste puhul lisada tunnihinna põhjendus varasemate hangetega. Inimeste palkamisel peab lähtuma Fontese palgauuringust ja viitama vastavale tööperele. | AL34: (valida rippmenüüst) | AO34: Investeering (15) | AP34: Tööjõukulu (50) | AQ34: Majandamiskulu (55) | AR34: Seireküsimused (SF tegevustele): 1. Mis sai 2023. aastal tehtud? 2. Mis jäi 2023. aastal tegemata? Miks jäi tegemata? 3. Kas tegemata jäänud tegevus jäetaksegi tegemata, või lükkub edasi järgmisse perioodi? 4. Mis oli paneeli (andme-, äri, arhitektuuri-) tagasiside ja kas paneeli nõuded on täidetud? 5. Mis ettevalmistavaid tegevusi tehti 2023. aastal 2024, või hiljem algavate algatuste/tegevuste tarvis? 6. Mida on jõutud teha 2024. aasta alguses?
A35: Majandus- ja Kommunikatsiooniministeerium | B35: Majandus- ja Kommunikatsiooniministeerium | D35: Kaire Kasearu | E35: I: Digiriik | F35: 1.2.1. Avalike teenuste juhtimise ja kasutajakesksuse juurutamine | G35: 3. teadlikkuse tõstmine | H35: Panustab mitmetesse TERE teenustesse | I35: Puudub ühine standard ja raamistik, kuidas teenuste kogu elukaare jooksul juhitakse ning arendatakse, arvestades 6 suunda | J35: Teenuse elukaare juhtimise strateegia, sh mõõdikute kokku panemine, sh eksperdiga koostöös (Analüüsist: Luua VA strateegilisi eesmärke toetav IKT strateegia ja rakendusplaan, organisatsiooni plaan ja riskiplaan.) | K35: Teenuse elukaare juhtimise strateegia on koostatud ja mõõdikud olemas | L35: 9 | N35: Ei | O35: SF 21-27 (taotletav raha) | P35: =SUM(Q35:U35) -> 15,000 | Q35: =SUM(V35:X35) -> 0 | R35: =SUM(Y35:AA35) -> 15,000 | S35: =SUM(AB35:AD35) -> 0 | T35: =SUM(AE35:AG35) -> 0 | U35: =SUM(AH35:AJ35) -> 0 | AA35: =15000 -> 15,000 | AQ35: 802 | AR35: Tegime TTJA ja KEMITiga ühise ajurünnaku. Koostöös teiste valitsemisaladega oleme ka mõtteid vahetanud, nt SOM teeb seda. MKMil oleks plaan see võimalusel üle võtta või mustandiks saada. Teenusepõhisele juhtimisele üleminek ootab juhtkonna accepti.
A36: Majandus- ja Kommunikatsiooniministeerium | B36: Majandus- ja Kommunikatsiooniministeerium | D36: Kaire Kasearu | E36: I: Digiriik | F36: 1.2.1. Avalike teenuste juhtimise ja kasutajakesksuse juurutamine | G36: 3. teadlikkuse tõstmine | H36: Panustab mitmetesse TERE teenustesse | I36: Kuna MKMis varasemalt digipöörde juhtimismudelit ei olnud, siis ühste eesmärgi jaoks peab olema juhtimismudel käivitatud ja juurutatud. | J36: Juhtimismudeli käivitamine ja juurutamine (nõukogu, juhtrühma ja võrgustikuga seotud tegevused) | K36: Nõukogu, juhtrühm ja võrgustiku tegevused on korraldatud. | L36: 10 | N36: Ei | O36: SF 21-27 (taotletav raha) | P36: 7,000 | Q36: 0 | R36: 7,000 | S36: 0 | T36: 0 | U36: 0 | AA36: =7000 -> 7,000 | AR36: Hetkel ei ole vajadust olnud raha planeerida ja on oma vahenditest tehtud. Lisaks ka muutused asekantsleriga on tinginud tegevuste planeerimist.
A37: Majandus- ja Kommunikatsiooniministeerium | B37: Majandus- ja Kommunikatsiooniministeerium | D37: Kaire Kasearu | E37: I: Digiriik | F37: 1.2.7. Avaliku sektori digimuutuste võimendamine | G37: 3. teadlikkuse tõstmine | H37: Panustab mitmetesse TERE teenustesse | I37: MKMi valitsemisala digipöörde suundade hetkeolukord on kaardistatud ja probleemkohad leitud. | J37: MKMi valitsemisala digipöörde suundade (teenuse juhtimine, andmed, arhitektuur, küberturvalisus, kestlikkus, oskused ja võimekus) võimestamise tegevused | K37: Hetkeolukorrast lähtuvalt aasta 2023/2024 kriitilised tegevused on tehtud. | L37: 3 | O37: SF 21-27 (taotletav raha) | P37: 30,000 | Q37: 0 | R37: 30,000 | S37: 0 | T37: 0 | U37: 0 | AA37: =30000 -> 30,000 | AR37: Täpsemad tegevused veel selguvad.
A38: Majandus- ja Kommunikatsiooniministeerium | B38: TTJA | D38: Raul Kallas | E38: I: Digiriik | F38: 1.2.5. Uute lähenemisviiside pidev katsetamine | G38: 1. Infotehnoloogiliste lahenduste väljatöötamine ja arendamine | H38: Panustab mitmetesse TERE teenustesse | I38: Puudub võimekus protsessimootor mikroarhitektuuri integreerida. | J38: Protsessimootri kasutuselevõtu lahenduse väljatöötamine (2021-27 SF) | K38: On valminud protsessi juhtimise tarkvarade võrdlev analüüs | L38: 5 | N38: Ei | O38: SF 21-27 (taotletav raha) | P38: 25,000 | Q38: 0 | R38: 25,000 | S38: 0 | T38: 0 | U38: 0 | AA38: =SUM(25000) -> 25,000 | AR38: Tähtaeg on 30.04. Zip failis on vahearuanne.
A39: Majandus- ja Kommunikatsiooniministeerium | B39: TTJA | D39: Raul Kallas | E39: I: Digiriik | F39: 1.2.7. Avaliku sektori digimuutuste võimendamine | G39: 3. teadlikkuse tõstmine | H39: Panustab mitmetesse TERE teenustesse | I39: TTJAl puudub võimekus analüütiku ja koolituste osas | J39: TTJA võimestamine digipöörde elluviimiseks (nt analüütikud, disainer, koolitused) (2021-27 SF) | K39: Digipöörde elluviimiseks on värvatud nt analüütikud, disainer, kompetentsid on tugevdatud | L39: 2 | N39: Ei | O39: SF 21-27 (taotletav raha) | P39: 1,224,100 | Q39: =SUM(V39:X39) -> 223,000 | R39: =SUM(Y39:AA39) -> 233,000 | S39: 244,150 | T39: 255,800 | U39: 268,150 | W39: 223,000 | Z39: 223,000 | AA39: 10,000 | AC39: 234,150 | AD39: 10,000 | AF39: 245,800 | AG39: 10,000 | AI39: 258,150 | AJ39: 10,000 | AP39: 11,926.45 | AQ39: 7176 | AR39: Värvatud on teenuste valdkonna juht. Kuna analüütikute konkurss esmalt kukkus läbi, siis kasutati sihtotsingu firmat ning analüütikud alustasid jaanuaris 2024 tööd.
A40: Majandus- ja Kommunikatsiooniministeerium | B40: TTJA | D40: Raul Kallas | E40: I: Digiriik | F40: 1.2.5. Uute lähenemisviiside pidev katsetamine | G40: 1. Infotehnoloogiliste lahenduste väljatöötamine ja arendamine | H40: Panustab mitmetesse TERE teenustesse | I40: Teenuste portfelli nõuded ei ole vastavuses suundade ja nõuetega | J40: TTJA teenuste portfelli ärianalüüs, tegevuskava teenuste vastavusse viimiseks haldusala üldiste suundade/nõuetega | K40: Ärianalüüs ja tegevuskava olemas | L40: 5 | N40: Ei | O40: SF 21-27 (taotletav raha) | P40: 5,000 | Q40: 0 | R40: 5,000 | S40: 0 | T40: 0 | U40: 0 | AA40: =SUM(5000) -> 5,000 | AR40: Tegevus käib jaa esmane visoon on tekkinud. TERE teenuste sisend ja 0-eelarvest sisendit on arvestatud. Ajakavas on muutunud kuna DÜAKi uuendamise nihkumisega seotud programmipuu muudatusi ei saa teha, enne kui uus DÜAK on olemas.
A41: Majandus- ja Kommunikatsiooniministeerium | B41: TTJA | D41: Raul Kallas | E41: I: Digiriik | F41: 1.2.5. Uute lähenemisviiside pidev katsetamine | G41: 1. Infotehnoloogiliste lahenduste väljatöötamine ja arendamine | H41: Panustab mitmetesse TERE teenustesse | I41: Klienditoe teenus on killustatud ja pole ühtselt hallatud. | J41: klienditoe teenuse I etapi käivitamine | K41: Klienditoe I etapp on käivitatud | L41: 4 | N41: Ei | O41: SF 21-27 (taotletav raha) | P41: 5,000 | Q41: 0 | R41: 5,000 | S41: 0 | T41: 0 | U41: 0 | AA41: =SUM(5000) -> 5,000 | AR41: On käivitatud ja raha ei ole kulutatud.
A42: Majandus- ja Kommunikatsiooniministeerium | B42: TTJA | D42: Raul Kallas | E42: I: Digiriik | F42: 1.2.5. Uute lähenemisviiside pidev katsetamine | G42: 1. Infotehnoloogiliste lahenduste väljatöötamine ja arendamine | H42: Panustab mitmetesse TERE teenustesse | I42: E-teenuste infosüsteemi tootestamiseks puudub hea sisend, mille alusel arendusi tellida. | J42: e-teenuste infosüsteemi tootestamise analüüs | K42: e-teenuste analüüs on olemas | L42: 7 | N42: Ei | O42: SF 21-27 (taotletav raha) | P42: 10,000 | Q42: 0 | R42: 10,000 | S42: 0 | T42: 0 | U42: 0 | AA42: =SUM(10000) -> 10,000 | AR42: Kristo Vaher konsulteeris ja toote strukuur on loodud. Info zip failis.
A43: Majandus- ja Kommunikatsiooniministeerium | B43: KEMIT | D43: Kristjan Kaiklem | E43: I: Digiriik | F43: 1.2.5. Uute lähenemisviiside pidev katsetamine | G43: 1. Infotehnoloogiliste lahenduste väljatöötamine ja arendamine | H43: Panustab mitmetesse TERE teenustesse | I43: Direktiivide ülevõtmiseks ja andmete liidestumiseks puudub selge teadmine. | J43: EU direktiivinõuete täitmiseks andmeliidestuse mikroteenuse analüüs ja arendus | K43: Teostatud on arendusprojekt liidestuste loomiseks | L43: 8 | N43: Ei | O43: SF 21-27 (taotletav raha) | P43: 60,000 | Q43: 0 | R43: 60,000 | S43: 0 | T43: 0 | U43: 0 | Y43: =SUM(60000) -> 60,000 | AR43: Olemas on arendushanke sisend, aga pakkumist ei tulnud. Nüüd tehakse hange ringi, vähendame hanke mahtu, et jõuda tähtaega, mis on 16.06.
A44: Majandus- ja Kommunikatsiooniministeerium | B44: Majandus- ja Kommunikatsiooniministeerium | D44: Kaire Kasearu | E44: I: Digiriik | F44: 1.2.1. Avalike teenuste juhtimise ja kasutajakesksuse juurutamine | G44: 3. teadlikkuse tõstmine | H44: Panustab mitmetesse TERE teenustesse | I44: Digipöörde käivitamine eeldab uusi kompetentse ja keskseid koordineerivad rolle teemades IT arhitektuur, teenused, andmed, kestlikkus, oskused, mida hetkel valitsemisalas pole | J44: Kesksete rollide loomine valitsemisalas | K44: On olemas valitsemisala teenused, arhitektuur, andmed, kestlikkus, oskused teemade vastuatajate kompetentsid. | L44: 1 | N44: Ei | O44: SF 21-27 (taotletav raha) | P44: 863,148 | Q44: 4,148 | R44: 231,000 | S44: 308,000 | T44: 320,000 | U44: 0 | W44: 4,148 | Z44: 216,000 | AA44: =15000 -> 15,000 | AC44: 288,000 | AD44: =20000 -> 20,000 | AF44: 300,000 | AG44: =20000 -> 20,000 | AQ44: 4148 | AR44: Teenuste valdkonna juht on värvatud
A45: Majandus- ja Kommunikatsiooniministeerium | B45: KEMIT | D45: Kristjan Kaiklem | E45: I: Digiriik | F45: 1.2.1. Avalike teenuste juhtimise ja kasutajakesksuse juurutamine | G45: 1. Infotehnoloogiliste lahenduste väljatöötamine ja arendamine | H45: Panustab mitmetesse TERE teenustesse | I45: Teenused aeglased, kliendile ebamugavad, automatiseerimata; süsteemides esineb palju vigu | J45: Uue kasutajaliidese disaini väljatöötamine | K45: Teostatud loateenuste kasutajateekondade analüüs ja loodud uus UX disain loateenuste kasutajateekondade jaoks | N45: Ei | O45: SF 21-27 (taotletav raha) | P45: 120,000 | Q45: 0 | R45: 120,000 | S45: 0 | T45: 0 | U45: 0 | AA45: =SUM(120000) -> 120,000 | AR45: Hange on üleval registris.
A46: Majandus- ja Kommunikatsiooniministeerium | B46: KEMIT | D46: Kristjan Kaiklem | E46: I: Digiriik | F46: 1.2.1. Avalike teenuste juhtimise ja kasutajakesksuse juurutamine | G46: 1. Infotehnoloogiliste lahenduste väljatöötamine ja arendamine | H46: Ettevõtluskeskkonna toimimise tagamine | I46: Teenused aeglased, kliendile ebamugavad, automatiseerimata; süsteemides esineb palju vigu | J46: Loateenuste piloot ja välisinvesteeringute usaldusväärsuse hindamise rakendus | K46: Välisinvesteeringute usaldusväärsuse hindamise teenuse detailanalüüs teostatud ja loataotluse rakendus toimib kliendikeskkonna tootes koos majandustegevuse teadetega toodangukeskkonnas | N46: Ei | O46: SF 21-27 (taotletav raha) | P46: 280,000 | Q46: 0 | R46: 200,000 | S46: 80,000 | T46: 0 | U46: 0 | Y46: =SUM(200000) -> 200,000 | AB46: =SUM(80000) -> 80,000 | AR46: Hange on kokku pandud ja ootab KEMITis õigusosakonna kinnitust.
A47: Majandus- ja Kommunikatsiooniministeerium | B47: TTJA | D47: Raul Kallas | E47: I: Digiriik | F47: 1.2.1. Avalike teenuste juhtimise ja kasutajakesksuse juurutamine | G47: 1. Infotehnoloogiliste lahenduste väljatöötamine ja arendamine | H47: Panustab mitmetesse TERE teenustesse | I47: Teenused aeglased, kliendile ebamugavad, automatiseerimata; süsteemides esineb palju vigu | J47: Projektijuht* | K47: Digipörde teostamine toimib vastavalt aja- ja tegevusplaanile | N47: Ei | O47: SF 21-27 (taotletav raha) | P47: 254,500 | Q47: 0 | R47: 57,500 | S47: 60,400 | T47: 66,500 | U47: 70,100 | W47: 0 | Z47: 57,500 | AC47: 60,400 | AF47: 66,500 | AI47: 70,100 | AR47: Projektijuht värvati, alustas tööd 15.04 ja töösuhe lõppes 19.04 (sai parema pakkumise).
A48: Majandus- ja Kommunikatsiooniministeerium | B48: KEMIT | D48: Kristjan Kaklem | E48: I: Digiriik | F48: 1.2.1. Avalike teenuste juhtimise ja kasutajakesksuse juurutamine | G48: 4. muu digipöördega seotud otsene kulu | H48: Panustab mitmetesse TERE teenustesse | I48: Teenused aeglased, kliendile ebamugavad, automatiseerimata; süsteemides esineb palju vigu | J48: e-teenuste tehnoloogilise platvormi baaskulu | K48: Tehnoloogiline taristu ja teenused on hallatud | N48: Ei | O48: SF 21-27 (taotletav raha) | P48: 646,300 | Q48: 0 | R48: 150,000 | S48: 157,500 | T48: 165,300 | U48: 173,500 | Y48: =SUM(150000) -> 150,000 | AB48: =SUM(157500) -> 157,500 | AE48: =SUM(165300) -> 165,300 | AH48: =SUM(173500) -> 173,500 | AR48: Tavahaldus on töös.
A49: Majandus- ja Kommunikatsiooniministeerium | B49: TTJA | D49: Raul Kallas | E49: I: Digiriik | F49: 1.2.5. Uute lähenemisviiside pidev katsetamine | G49: 1. Infotehnoloogiliste lahenduste väljatöötamine ja arendamine | H49: Panustab mitmetesse TERE teenustesse | I49: Teenused aeglased, kliendile ebamugavad, automatiseerimata; süsteemides esineb palju vigu | J49: Rakendusadministraator protsessijuhtimise tarkvara jaoks | K49: Protsessijuhtimise tarkvara on testitud, toimib jätkusuutlikult e-teenuste platvormil | N49: Ei | O49: SF 21-27 (taotletav raha) | P49: 232,000 | Q49: 0 | R49: 58,000 | S49: 58,000 | T49: 58,000 | U49: 58,000 | Z49: 58,000 | AC49: 58,000 | AF49: 58,000 | AI49: 58,000 | AR49: Pole veel otsima hakatud. Eeldus värbamisele on, et lõppeb protsessitarkvara ostmise analüüs ja valiku alusel saab inimest otsida. (vt rida 38)
A50: Majandus- ja Kommunikatsiooniministeerium | B50: Kemit | D50: Kristjan Kaklem | E50: I: Digiriik | F50: 1.2.1. Avalike teenuste juhtimise ja kasutajakesksuse juurutamine | G50: 4. muu digipöördega seotud otsene kulu | H50: Panustab mitmetesse TERE teenustesse | I50: Teenused aeglased, kliendile ebamugavad, automatiseerimata; süsteemides esineb palju vigu | J50: Protsessijuhtimise tarkvara haldus (litsentsid, serverid jm) 50 TEUR/aastas | K50: Vajalik taristu on olemas protsessitarkvara kasutamiseks | N50: Ei | O50: SF 21-27 (taotletav raha) | P50: 200,000 | Q50: 0 | R50: 50,000 | S50: 50,000 | T50: 50,000 | U50: 50,000 | AA50: =SUM(50000) -> 50,000 | AD50: =SUM(50000) -> 50,000 | AG50: =SUM(50000) -> 50,000 | AJ50: =SUM(50000) -> 50,000 | AR50: Vt rida 49
P51: 0 | Q51: 0 | R51: 0 | S51: 0 | T51: 0 | U51: 0
P52: 0 | Q52: 0 | R52: 0 | S52: 0 | T52: 0 | U52: 0
P53: 0 | Q53: 0 | R53: 0 | S53: 0 | T53: 0 | U53: 0
P54: 0 | Q54: 0 | R54: 0 | S54: 0 | T54: 0 | U54: 0
P55: 0 | Q55: 0 | R55: 0 | S55: 0 | T55: 0 | U55: 0
P56: 0 | Q56: 0 | R56: 0 | S56: 0 | T56: 0 | U56: 0
P57: 0 | Q57: 0 | R57: 0 | S57: 0 | T57: 0 | U57: 0
P58: 0 | Q58: 0 | R58: 0 | S58: 0 | T58: 0 | U58: 0
P59: 0 | Q59: 0 | R59: 0 | S59: 0 | T59: 0 | U59: 0
P60: 0 | Q60: 0 | R60: 0 | S60: 0 | T60: 0 | U60: 0
P61: 0 | Q61: 0 | R61: 0 | S61: 0 | T61: 0 | U61: 0
P62: 0 | Q62: 0 | R62: 0 | S62: 0 | T62: 0 | U62: 0
P63: 0 | Q63: 0 | R63: 0 | S63: 0 | T63: 0 | U63: 0
P64: 0 | Q64: 0 | R64: 0 | S64: 0 | T64: 0 | U64: 0
P65: 0 | Q65: 0 | R65: 0 | S65: 0 | T65: 0 | U65: 0
P66: 0 | Q66: 0 | R66: 0 | S66: 0 | T66: 0 | U66: 0
P67: =SUM(Q67:U67) -> 0 | Q67: 0 | R67: =SUM(Y67:AA67) -> 0 | S67: =SUM(AB67:AD67) -> 0 | T67: =SUM(AE67:AG67) -> 0 | U67: =SUM(AH67:AJ67) -> 0
P68: 0 | Q68: 0 | R68: 0 | S68: 0 | T68: 0 | U68: 0
P69: 0 | Q69: 0 | R69: 0 | S69: 0 | T69: 0 | U69: 0
P70: 0 | Q70: 0 | R70: 0 | S70: 0 | T70: 0 | U70: 0
P71: 0 | Q71: 0 | R71: 0 | S71: 0 | T71: 0 | U71: 0
P72: 0 | Q72: 0 | R72: 0 | S72: 0 | T72: 0 | U72: 0
P73: 0 | Q73: 0 | R73: 0 | S73: 0 | T73: 0 | U73: 0
P74: 0 | Q74: 0 | R74: 0 | S74: 0 | T74: 0 | U74: 0
P75: 0 | Q75: 0 | R75: 0 | S75: 0 | T75: 0 | U75: 0
P76: 0 | Q76: 0 | R76: 0 | S76: 0 | T76: 0 | U76: 0
P77: 0 | Q77: 0 | R77: 0 | S77: 0 | T77: 0 | U77: 0
P78: 0 | Q78: 0 | R78: 0 | S78: 0 | T78: 0 | U78: 0
P79: 0 | Q79: 0 | R79: 0 | S79: 0 | T79: 0 | U79: 0
P80: 0 | Q80: 0 | R80: 0 | S80: 0 | T80: 0 | U80: 0
P81: 0 | Q81: 0 | R81: 0 | S81: 0 | T81: 0 | U81: 0
P82: 0 | Q82: 0 | R82: 0 | S82: 0 | T82: 0 | U82: 0
P83: 0 | Q83: 0 | R83: 0 | S83: 0 | T83: 0 | U83: 0
P84: 0 | Q84: 0 | R84: 0 | S84: 0 | T84: 0 | U84: 0
P85: 0 | Q85: 0 | R85: 0 | S85: 0 | T85: 0 | U85: 0
P86: 0 | Q86: 0 | R86: 0 | S86: 0 | T86: 0 | U86: 0
P87: 0 | Q87: 0 | R87: 0 | S87: 0 | T87: 0 | U87: 0
P88: 0 | Q88: 0 | R88: 0 | S88: 0 | T88: 0 | U88: 0
P89: 0 | Q89: 0 | R89: 0 | S89: 0 | T89: 0 | U89: 0
P90: 0 | Q90: 0 | R90: 0 | S90: 0 | T90: 0 | U90: 0
P91: 0 | Q91: 0 | R91: 0 | S91: 0 | T91: 0 | U91: 0
P92: 0 | Q92: 0 | R92: 0 | S92: 0 | T92: 0 | U92: 0
P93: 0 | Q93: 0 | R93: 0 | S93: 0 | T93: 0 | U93: 0
P94: 0 | Q94: 0 | R94: 0 | S94: 0 | T94: 0 | U94: 0
E97: I: Digiriik | F97: 1.1.1. Üleminek sündmuspõhistele ja proaktiivsetele teenustele | G97: 1. Infotehnoloogiliste lahenduste väljatöötamine ja arendamine | O97: Baaseelarve | AL97: 1. Tegevus sisaldab jätkusuutlikkuse kulusid ja need on samal real välja toodud.
E98: II: Ühenduvus | F98: 1.1.2. Krativäeline riik | G98: 2. küberruumi hoidmine, arendamine ja juurutamine usaldusväärse ja turvalisena | O98: Muu rahastus | AL98: 2. Tegevus on jätkusuutlikkuse kulu
E99: III: Küberturvalisus | F99: 1.1.3. Inimkeskne Digiriik | G99: 3. teadlikkuse tõstmine | O99: RES IKT (vaja juurde taotleda) | AL99: 3. Tegevus, mis vajab jätkusuutlikkuse kulusid ja need on eraldi real välja toodud
F100: 1.1.4. Roheline digiriik | G100: 4. muu digipöördega seotud otsene kulu | O100: Reserv (SR) | AL100: 4. Tegevus, mis vajab jätkusuutlikkuse kulusid, aga neid pole välja arvutatud ja eraldi real välja toodud
F101: 1.2.1. Avalike teenuste juhtimise ja kasutajakesksuse juurutamine | O101: RRF | AL101: 5. Tegevus, mis ei vaja jätkusuutlikkuse kulusid.
F102: 1.2.2. Andmepõhine riigivalitsemine ja andmete taaskasutus | O102: SF 14-20 (töös olev projekt)
F103: 1.2.3. Tulevikukindlad digiriigi platvormid | O103: SF 21-27 (taotletav raha)
F104: 1.2.4. Keskselt osutatud IT-alusteenused
F105: 1.2.5. Uute lähenemisviiside pidev katsetamine
F106: 1.2.6. Avatud innovatsioon ja digiriigi kogukonna arendamine
F107: 1.2.7. Avaliku sektori digimuutuste võimendamine
F108: 1.2.8. Sihitud väliskoostöö
F109: 2.1. Ajakohane ja ettevaatav õigusruum
F110: 2.2. Juurdepääsuvõrkude väljaarendamine
F111: 2.3. 5G- ja 6G-baastaristu arendamine
F112: 2.4. Uudsete sisu- ja äriteenuste arendus
F113: 3.1. Ajakohane küberturvalisuse riiklik korraldus
F114: 3.2. Suundumiste, riskide ja mõjude analüüsivõime
F115: 3.3. Suurem küberturvalisuse tagamise võimekus

Sheet KK_lisa (hidden)
A3: Majandus-ja Kommunikatsiooniministeeriumi valdkondlik digipööre | B3: Kokku | C3: 2023 | D3: 2024 | E3: 2025 | F3: Panus Eesti 2035 näitajatesse: Sooline võrdõiguslikkus, hoolivus ja koostöömeelsus, ligipääsevatus, KOV rahulolu teenusega | G3: Seos DA 2030 arengukavaga -peab olema välja toodud DA 2030 rahulolu mõõdik ning metoodika, kuidas parim kasutajakogemus saavutatakse. | H3: Seos vastava valdkonna arengukavaga | I3: Tegevuse seos rakenduskava poliitikaeesmärk 1 „Nutikam Eesti“ erieesmärgi „digitaliseerimisest kasu toomine kodanike, ettevõtjate, teadusasutuste ja avaliku sektori asutuste jaoks" kasusaajaga | J3: Tegevuse põhjendatus - tegevus on seotud TAT eesmärkide ja tulemuste saavutamisega ning on läbinud koordineerija nõustamise kontroll-lehtede alusel | K3: Tegevuse kuluefektiivsus -tegevuse hinnastamisel on arvestatud parimaid praktikaid ja üldist tava (nt hangete raamlepingu hindasid, personalil Fontese uuringuid jms) | L3: Tegevuse elluviija suutlikkus tegevust ellu viia - arvestatud on elluviija või partneri varasemat kogemusi ja võimekust
A4: Elluviija: Majandus-ja Kommunikatsiooniministeerium
A5: 1. Infotehnoloogiliste lahenduste väljatöötamine ja arendamine | B5: =SUM(C5:E5) -> 3,165,860 | C5: =Tegevuskava!D23 -> 0 | D5: =Tegevuskava!E23 -> 1,255,360 | E5: =Tegevuskava!F23 -> 1,910,500 | F5: x | G5: x | H5: x | I5: x | J5: x | K5: x | L5: x
A6: 2. Küberruumi hoidmine, arendamine ja juurutamine usaldusväärse ja turvalisena | B6: =SUM(C6:E6) -> 36,600 | C6: =Tegevuskava!D24 -> 0 | D6: =Tegevuskava!E24 -> 36,600 | E6: =Tegevuskava!F24 -> 0 | F6: x | G6: x | H6: x | I6: x | J6: x | K6: x | L6: x
A7: 3. Teadlikkuse tõstmine (teadlikkuse tõstmine punktides 3.1.1., 3.1.2. ja 3.1.4. nimetatud tegevuste osas, sealhulgas elluviija ja partnerite teadlikkuse tõstmine ) | B7: 1,170,575 | C7: =Tegevuskava!D25 -> 24,685 | D7: =Tegevuskava!E25 -> 558,140 | E7: =Tegevuskava!F25 -> 587,750 | F7: x | G7: x | H7: x | I7: x | J7: x | K7: x | L7: x
A8: 4. Muu digipöördega seotud otsene kulu (valdkondliku digipöörde elluviimisega seotud tegevused) | B8: 244,000 | C8: =Tegevuskava!D26 -> 0 | D8: =Tegevuskava!E26 -> 244,000 | E8: =Tegevuskava!F26 -> 0 | F8: x | G8: x | H8: x | I8: x | J8: x | K8: x | L8: x
A9: EELARVE KOKKU | B9: =SUM(B5:B8) -> 4,617,035 | C9: =SUM(C5:C8) -> 24,685 | D9: =SUM(D5:D8) -> 2,094,100 | E9: =SUM(E5:E8) -> 2,498,250
A11: Meetmete nimekirja tulemusnäitaja: | B11: Uute ja uuendatud avalike digiteenuste, -toodete ja -protsesside kasutajad. Mõõtühik: lõppkasutajaid aastas.
A12: Periood | B12: 2023 algtase | C12: 2024 sihttase | D12: 2025 sihttase | E12: 2026 sihttase | F12: 2027 sihttase | G12: 2028 sihttase | H12: 2029 sihttase | I12: 2030 lõpptase
A13: Väärtus | B13: ='kuni 2025 detsember tegevuskava'!B19 -> 0 | C13: ='kuni 2025 detsember tegevuskava'!C19 -> 5,000 | D13: ='kuni 2025 detsember tegevuskava'!D19 -> 10,000 | E13: ='kuni 2025 detsember tegevuskava'!E19 -> 18,000 | F13: ='kuni 2025 detsember tegevuskava'!F19 -> 28,000 | G13: ='kuni 2025 detsember tegevuskava'!G19 -> 30,000 | H13: ='kuni 2025 detsember tegevuskava'!H19 -> 30,000 | I13: ='kuni 2025 detsember tegevuskava'!I19 -> 30,000
A14: Meetmete nimekirja väljundnäitaja: | B14: Uued või uuendatud digiteenused, -tooted ja -protsessid. Mõõtühik: arv
A15: Periood | B15: 2023 algtase | C15: 2024 sihttase | D15: 2025 sihttase | E15: 2026 sihttase | F15: 2027 sihttase | G15: 2028 sihttase | H15: 2029 sihttase | I15: 2030 lõpptase
A16: Väärtus | B16: ='kuni 2025 detsember tegevuskava'!B22 -> 0 | C16: ='kuni 2025 detsember tegevuskava'!C22 -> 2 | D16: ='kuni 2025 detsember tegevuskava'!D22 -> 30 | E16: ='kuni 2025 detsember tegevuskava'!E22 -> 50 | F16: ='kuni 2025 detsember tegevuskava'!F22 -> 80 | G16: ='kuni 2025 detsember tegevuskava'!G22 -> 84 | H16: ='kuni 2025 detsember tegevuskava'!H22 -> 84 | I16: ='kuni 2025 detsember tegevuskava'!I22 -> 84
A17: Meetmete nimekirja väljundnäitaja: | B17: Avaliku sektori asutused, keda toetatakse digiteenuste, -toodete ja -protsesside väljatöötamiseks. Mõõtühik: Avaliku sektori asutused.
A18: Periood | B18: 2023 algtase | C18: 2024 sihttase | D18: 2025 sihttase | E18: 2026 sihttase | F18: 2027 sihttase | G18: 2028 sihttase | H18: 2029 sihttase | I18: 2030 lõpptase
A19: Väärtus | B19: 1 | C19: ='kuni 2025 detsember tegevuskava'!C25 -> 4 | D19: ='kuni 2025 detsember tegevuskava'!D25 -> 5 | E19: ='kuni 2025 detsember tegevuskava'!E25 -> 5 | F19: ='kuni 2025 detsember tegevuskava'!F25 -> 6 | G19: ='kuni 2025 detsember tegevuskava'!G25 -> 7 | H19: ='kuni 2025 detsember tegevuskava'!H25 -> 7 | I19: ='kuni 2025 detsember tegevuskava'!I25 -> 7
A20: Projektispetsiifiline näitaja (Eesti digiühiskonna arengukava 2030 (DA 2030) mõõdik): | B20: Avalike digiteenustega rahulolu. Mõõtühik: %
A21: Periood | B21: 2023 algtase | C21: 2024 sihttase | D21: 2025 sihttase | E21: 2026 sihttase | F21: 2027 sihttase | G21: 2028 sihttase | H21: 2029 sihttase | I21: 2030 lõpptase
A22: Väärtus | B22: ='kuni 2025 detsember tegevuskava'!B28&"%" -> 0% | C22: ='kuni 2025 detsember tegevuskava'!C28&"%" -> 0% | D22: ='kuni 2025 detsember tegevuskava'!D28&"%" -> 70% | E22: ='kuni 2025 detsember tegevuskava'!E28&"%" -> 80% | F22: ='kuni 2025 detsember tegevuskava'!F28&"%" -> 82% | G22: ='kuni 2025 detsember tegevuskava'!G28&"%" -> 85% | H22: ='kuni 2025 detsember tegevuskava'!H28&"%" -> 88% | I22: ='kuni 2025 detsember tegevuskava'!I28&"%" -> 90%

Sheet Tegevuskava
B2: Tulenevalt majandus- ja infotehnoloogiaministri 25. augusti 2023. a käskkirjast „Toetuse andmise tingimused valdkondlike digipöörete toetamiseks“ allkirjastan/kinnitan Majandus- ja Kommunikatsiooniministeeriumi digipöörde tegevuskava.
B4: Valdkondliku digipöörde tegevuskava – Majandus-ja Kommunikatsiooniministeerium
B6: Digipöörde eesmärk:
B7: Digipööre: - MKMi digipöörde toel jõuavad aastaks 2030 avalikud teenused kasutajateni optimaalse väärtusega ja on tõhusa riigivalitsemise tulemusena jätkusuutlikult rahastatud (ka ilma välisvahenditeta). - Strateegilise taseme tehnoloogia juhtimise võimekus on tõusnud ning IT-arendus lähtub ärivajadustest. - Kvaliteet on tagatud ja mõõdetav. - Teenuseid arendatakse pidevalt, kriisis on uusi teenuseid võimalik päevadega käima saada. - Teenused peegeldavad hea avaliku teenuse põhimõtteid.
B9: Digipöörde tegevuskava eesmärk:
B10: 2024-2025 tegevuskava on kõikide digipöörde suundade osas vastavalt hetkeolukorrale 2024 tegevused ellu viia. Tegevused on planeeritud ka asutuste 2024 tööplaanidesse. Lisaks on TTJA piloodis ning 2024 kliendikeskkonnad arendamine vastavalt teekaardile.
B12: Majandus-ja Kommunikatsiooniministeeriumi valdkondliku digipöörde 2023-2024 maksumus ilma käibemaksuta:
C13: Kokku | D13: 2023 | E13: 2024 | F13: 2025
B14: Kokku | C14: =SUM(D14:F14) -> 18,919,067 | D14: =SUM(D15:D17) -> 23,250 | E14: =SUM(E15:E17) -> 1,807,000 | F14: 17,088,817
B15: Olemasolevad vahendid | C15: =SUM(D15:F15) -> 683,625 | D15: =SUM('kuni 2025 detsember tegevuskava'!X122:Z122+'kuni 2025 detsember tegevuskava'!X125:Z125+'kuni 2025 detsember tegevuskava'!X128:Z128+'kuni 2025 detsember tegevuskava'!X131:Z131) -> 0 | E15: =SUM('kuni 2025 detsember tegevuskava'!AA122:AC122+'kuni 2025 detsember tegevuskava'!AA125:AC125+'kuni 2025 detsember tegevuskava'!AA128:AC128+'kuni 2025 detsember tegevuskava'!AA131:AC131) -> 0 | F15: =SUM('kuni 2025 detsember tegevuskava'!AD122:AF122+'kuni 2025 detsember tegevuskava'!AD125:AF125+'kuni 2025 detsember tegevuskava'!AD128:AF128+'kuni 2025 detsember tegevuskava'!AD131:AF131) -> 683,625
B16: SF 2021-2027 | C16: 3,990,800 | D16: =SUM('kuni 2025 detsember tegevuskava'!X107:Z107+'kuni 2025 detsember tegevuskava'!X110:Z110+'kuni 2025 detsember tegevuskava'!X113:Z113+'kuni 2025 detsember tegevuskava'!X116:Z116) -> 23,250 | E16: =SUM('kuni 2025 detsember tegevuskava'!AA107:AC107+'kuni 2025 detsember tegevuskava'!AA110:AC110+'kuni 2025 detsember tegevuskava'!AA113:AC113+'kuni 2025 detsember tegevuskava'!AA116:AC116) -> 1,807,000 | F16: =SUM('kuni 2025 detsember tegevuskava'!AD107:AF107+'kuni 2025 detsember tegevuskava'!AD110:AF110+'kuni 2025 detsember tegevuskava'!AD113:AF113+'kuni 2025 detsember tegevuskava'!AD116:AF116) -> 2,160,550
B17: RES 2024-2027 | C17: 14,244,642 | D17: =SUM('kuni 2025 detsember tegevuskava'!X137:Z137+'kuni 2025 detsember tegevuskava'!X140:Z140+'kuni 2025 detsember tegevuskava'!X143:Z143+'kuni 2025 detsember tegevuskava'!X146:Z146) -> 0 | E17: =SUM('kuni 2025 detsember tegevuskava'!AA137:AC137+'kuni 2025 detsember tegevuskava'!AA140:AC140+'kuni 2025 detsember tegevuskava'!AA143:AC143+'kuni 2025 detsember tegevuskava'!AA146:AC146) -> 0 | F17: =SUM('kuni 2025 detsember tegevuskava'!AD137:AF137+'kuni 2025 detsember tegevuskava'!AD140:AF140+'kuni 2025 detsember tegevuskava'!AD143:AF143+'kuni 2025 detsember tegevuskava'!AD146:AF146) -> 14,244,642
B20: Majandus-ja Kommunikatsiooniministeeriumi valdkondliku digipöörde 2023-2025 SF 2021-2027 toetuse summa koos käibemaksuga
C21: Kokku | D21: 2023 | E21: 2024 | F21: 2025
B22: SF 2021-2027 | C22: =SUM(D22:F22) -> 4,617,035 | D22: =SUM(D23:D26) -> 24,685 | E22: =SUM(E23:E26) -> 2,094,100 | F22: 2,498,250
B23: 1. Infotehnoloogiliste lahenduste väljatöötamine ja arendamine | C23: =SUM(D23:F23) -> 3,165,860 | D23: =SUM('kuni 2025 detsember tegevuskava'!X108:Z108) -> 0 | E23: =SUM('kuni 2025 detsember tegevuskava'!AA108:AC108) -> 1,255,360 | F23: =SUM('kuni 2025 detsember tegevuskava'!AD108:AF108) -> 1,910,500
B24: 2. Küberruumi hoidmine, arendamine ja juurutamine usaldusväärse ja turvalisena | C24: =SUM(D24:F24) -> 36,600 | D24: =SUM('kuni 2025 detsember tegevuskava'!X111:Z111) -> 0 | E24: =SUM('kuni 2025 detsember tegevuskava'!AA111:AC111) -> 36,600 | F24: =SUM('kuni 2025 detsember tegevuskava'!AD111:AF111) -> 0
B25: 3. Teadlikkuse tõstmine (teadlikkuse tõstmine punktides 3.1.1., 3.1.2. ja 3.1.4. nimetatud tegevuste osas, sealhulgas elluviija ja partnerite teadlikkuse tõstmine ) | C25: 1,170,575 | D25: =SUM('kuni 2025 detsember tegevuskava'!X114:Z114) -> 24,685 | E25: =SUM('kuni 2025 detsember tegevuskava'!AA114:AC114) -> 558,140 | F25: =SUM('kuni 2025 detsember tegevuskava'!AD114:AF114) -> 587,750
B26: 4. Muu digipöördega seotud otsene kulu (valdkondliku digipöörde elluviimisega seotud tegevused) | C26: 244,000 | D26: =SUM('kuni 2025 detsember tegevuskava'!X117:Z117) -> 0 | E26: =SUM('kuni 2025 detsember tegevuskava'!AA117:AC117) -> 244,000 | F26: =SUM('kuni 2025 detsember tegevuskava'!AD117:AF117) -> 0
B29: Ministeerium (elluviija) / partner | C29: Probleem | D29: Tegevuse (algatuse) nimi | E29: Tulemus | F29: Rahastuse allikas / meetme tegevus (SF) | I29: Summa kokku | K29: 2023 kokku | M29: 2024 kokku | O29: 2025 kokku
I30: (EA konto) | K30: (EA konto) | M30: (EA konto) | O30: (EA konto)
B31: KOKKU | I31: =SUM(I32:I34) -> 18,909,067 | K31: =SUM(K32:K34) -> 23,250 | M31: =SUM(M32:M34) -> 1,797,000 | O31: =SUM(O32:O34) -> 17,088,817
I32: =SUM(I78+I95+I105+I184+I213+I227+I236) -> 2,263,000 | J32: ="(15)" -> (15) | K32: =SUM(K78+K95+K105+K184+K213) -> 0 | L32: ="(15)" -> (15) | M32: =SUM(M78+M95+M105+M184+M213+M227+M236) -> 838,000 | N32: ="(15)" -> (15) | O32: =SUM(O78+O95+O105+O184+O213+O227+O236) -> 1,425,000 | P32: ="(15)" -> (15)
I33: =SUM(I56+I83+I100+I110+I122+I129+I136+I143+I150+I167+I172+I179+I185+I203+I220+I228+I237) -> 8,864,410 | J33: ="(50)" -> (50) | K33: =SUM(K56+K83+K100+K110+K122+K129+K136+K143+K150+K167+K172+K179+K185+K203+K220+K228+K237) -> 16,074 | L33: ="(50)" -> (50) | M33: =SUM(M56+M83+M100+M110+M122+M129+M136+M143+M150+M167+M172+M179+M185+M203+M220+M228+M237) -> 502,000 | N33: ="(50)" -> (50) | O33: =SUM(O56+O83+O100+O110+O122+O129+O136+O143+O150+O167+O172+O179+O185+O203+O220+O228+O242) -> 8,346,336 | P33: ="(50)" -> (50)
I34: =SUM(I36+I41+I46+I51+I57+I63+I68+I73+I84+I90+I111+I117+I123+I130+I137+I144+I151+I157+I162+I173+I186+I193+I198+I208+I214+I221+I229+I238+I245+I250) -> 7,781,657 | J34: ="(55)" -> (55) | K34: =SUM(K36+K41+K46+K51+K57+K63+K68+K73+K84+K90+K111+K117+K123+K130+K137+K229+K238+K245+K250+K144+K151+K157+K162+K173+K186+K193+K198+K208+K214+K221) -> 7,176 | L34: ="(55)" -> (55) | M34: =SUM(M36+M41+M46+M51+M57+M63+M68+M73+M84+M90+M111+M117+M123+M130+M137+M144+M151+M157+M162+M173+M186+M193+M198+M208+M214+M221+M229+M238+M245+M250) -> 457,000 | N34: ="(55)" -> (55) | O34: =SUM(O36+O41+O46+O51+O57+O63+O68+O73+O84+O90+O111+O123+O130+O137+O144+O151+O157+O162+O173+O186+O193+O198+O208+O214+O221+O229+O238+O245+O250) -> 7,317,481 | P34: ="(55)" -> (55)
B35: MKM | C35: ='kuni 2025 detsember tegevuskava'!I35 -> Puudub ühine standard ja raamistik, kuidas teenuste kogu elukaare jooksul juhitakse ning arendatakse, arvestades 6 suunda | D35: ='kuni 2025 detsember tegevuskava'!J35 -> Teenuse elukaare juhtimise strateegia, sh mõõdikute kokku panemine, sh eksperdiga koostöös (Analüüsist: Luua VA strateegilisi eesmärke toetav IKT strateegia ja rakendusplaan, organisatsiooni plaan ja riskiplaan.) | E35: ='kuni 2025 detsember tegevuskava'!K35 -> Teenuse elukaare juhtimise strateegia on koostatud ja mõõdikud olemas | F35: ='kuni 2025 detsember tegevuskava'!P35&"/" -> SF 21-27 (taotletav raha)/ | G35: =_xlfn.IFS('kuni 2025 detsember tegevuskava'!G35='kuni 2025 detsember tegevuskava'!$G$107,1,'kuni 2025 detsember tegevuskava'!G35='kuni 2025 detsember tegevuskava'!$G$108,2,'kuni 2025 detsember tegevuskava'!G35='kuni 2025 detsember tegevuskava'!$G$109,3,'kuni 2025 detsember tegevuskava'!G35='kuni 2025 detsember tegevuskava'!$G$110,4) -> 3 | H35: =_xlfn.IFS(OR('kuni 2025 detsember tegevuskava'!P35='kuni 2025 detsember tegevuskava'!$P$107,'kuni 2025 detsember tegevuskava'!P35='kuni 2025 detsember tegevuskava'!$P$109,'kuni 2025 detsember tegevuskava'!P35='kuni 2025 detsember tegevuskava'!$P$110,'kuni 2025 detsember tegevuskava'!P35='kuni 2025 detsember tegevuskava'!$P$111),1,'kuni 2025 detsember tegevuskava'!P35='kuni 2025 detsember tegevuskava'!$P$112,2,'kuni 2025 detsember tegevuskava'!P35='kuni 2025 detsember tegevuskava'!$P$113,2,'kuni 2025 detsember tegevuskava'!P35='kuni 2025 detsember tegevuskava'!$P$108,3) -> 2 | I35: =SUM(I36:I36) -> 15,000 | K35: =SUM(K36:K36) -> 0 | M35: =SUM(M36:M36) -> 15,000 | O35: =SUM(O36:O36) -> 0
I36: =SUM(K36+M36+O36) -> 15,000 | J36: ="(55)" -> (55) | K36: ='kuni 2025 detsember tegevuskava'!Z35 -> 0 | L36: ="(55)" -> (55) | M36: ='kuni 2025 detsember tegevuskava'!AC35 -> 15,000 | N36: ="(55)" -> (55) | O36: ='kuni 2025 detsember tegevuskava'!AF35 -> 0 | P36: ="(55)" -> (55)
I37: Summa koos käibemaksuga:
I38: =SUM(I39:I39) -> 18,300 | K38: =SUM(K39:K39) -> 0 | M38: =SUM(M39:M39) -> 18,300 | O38: =SUM(O39:O39) -> 0
I39: =SUM(K39+M39+O39) -> 18,300 | J39: ="(55)" -> (55) | K39: =SUM(K36*1.2) -> 0 | L39: ="(55)" -> (55) | M39: =SUM(M36*1.22) -> 18,300 | N39: ="(55)" -> (55) | O39: =SUM(O36*1.22) -> 0 | P39: ="(55)" -> (55)
B40: ='kuni 2025 detsember tegevuskava'!A36&"/"&'kuni 2025 detsember tegevuskava'!B36 -> MKM/ | C40: ='kuni 2025 detsember tegevuskava'!I36 -> Kuna MKMis varasemalt digipöörde juhtimismudelit ei olnud, siis ühste eesmärgi jaoks peab olema juhtimismudel käivitatud ja juurutatud. | D40: ='kuni 2025 detsember tegevuskava'!J36 -> Juhtimismudeli käivitamine ja juurutamine (nõukogu, juhtrühma ja võrgustikuga seotud tegevused) | E40: ='kuni 2025 detsember tegevuskava'!K36 -> Nõukogu, juhtrühm ja võrgustiku tegevused on korraldatud. | F40: ='kuni 2025 detsember tegevuskava'!P36&"/" -> SF 21-27 (taotletav raha)/ | G40: =_xlfn.IFS('kuni 2025 detsember tegevuskava'!G36='kuni 2025 detsember tegevuskava'!$G$107,1,'kuni 2025 detsember tegevuskava'!G36='kuni 2025 detsember tegevuskava'!$G$108,2,'kuni 2025 detsember tegevuskava'!G36='kuni 2025 detsember tegevuskava'!$G$109,3,'kuni 2025 detsember tegevuskava'!G36='kuni 2025 detsember tegevuskava'!$G$110,4) -> 3 | H40: =_xlfn.IFS(OR('kuni 2025 detsember tegevuskava'!P36='kuni 2025 detsember tegevuskava'!$P$107,'kuni 2025 detsember tegevuskava'!P36='kuni 2025 detsember tegevuskava'!$P$109,'kuni 2025 detsember tegevuskava'!P36='kuni 2025 detsember tegevuskava'!$P$110,'kuni 2025 detsember tegevuskava'!P36='kuni 2025 detsember tegevuskava'!$P$111),1,'kuni 2025 detsember tegevuskava'!P36='kuni 2025 detsember tegevuskava'!$P$112,2,'kuni 2025 detsember tegevuskava'!P36='kuni 2025 detsember tegevuskava'!$P$113,2,'kuni 2025 detsember tegevuskava'!P36='kuni 2025 detsember tegevuskava'!$P$108,3) -> 2 | I40: =SUM(I41:I41) -> 7,000 | K40: =SUM(K41:K41) -> 0 | M40: =SUM(M41:M41) -> 7,000 | O40: =SUM(O41:O41) -> 0
I41: =SUM(K41+M41+O41) -> 7,000 | J41: ="(55)" -> (55) | K41: ='kuni 2025 detsember tegevuskava'!Z36 -> 0 | L41: ="(55)" -> (55) | M41: ='kuni 2025 detsember tegevuskava'!AC36 -> 7,000 | N41: ="(55)" -> (55) | O41: ='kuni 2025 detsember tegevuskava'!AF36 -> 0 | P41: ="(55)" -> (55)
I42: Summa koos käibemaksuga:
I43: =SUM(I44:I44) -> 8,540 | K43: =SUM(K44:K44) -> 0 | M43: =SUM(M44:M44) -> 8,540 | O43: =SUM(O44:O44) -> 0
I44: =SUM(K44+M44+O44) -> 8,540 | J44: ="(55)" -> (55) | K44: =SUM(K41*1.2) -> 0 | L44: ="(55)" -> (55) | M44: =SUM(M41*1.22) -> 8,540 | N44: ="(55)" -> (55) | O44: =SUM(O41*1.22) -> 0 | P44: ="(55)" -> (55)
B45: ='kuni 2025 detsember tegevuskava'!A37&"/"&'kuni 2025 detsember tegevuskava'!B37 -> MKM/ | C45: ='kuni 2025 detsember tegevuskava'!I37 -> MKMi valitsemisala digipöörde suundade hetkeolukord on kaardistatud ja probleemkohad leitud. | D45: ='kuni 2025 detsember tegevuskava'!J37 -> MKMi valitsemisala digipöörde suundade (teenuse juhtimine, andmed, arhitektuur, küberturvalisus, kestlikkus, oskused ja võimekus) võimestamise tegevused | E45: ='kuni 2025 detsember tegevuskava'!K37 -> Hetkeolukorrast lähtuvalt aasta 2023/2024 kriitilised tegevused on tehtud. | F45: ='kuni 2025 detsember tegevuskava'!P37&"/" -> SF 21-27 (taotletav raha)/ | G45: =_xlfn.IFS('kuni 2025 detsember tegevuskava'!G37='kuni 2025 detsember tegevuskava'!$G$107,1,'kuni 2025 detsember tegevuskava'!G37='kuni 2025 detsember tegevuskava'!$G$108,2,'kuni 2025 detsember tegevuskava'!G37='kuni 2025 detsember tegevuskava'!$G$109,3,'kuni 2025 detsember tegevuskava'!G37='kuni 2025 detsember tegevuskava'!$G$110,4) -> 3 | H45: =_xlfn.IFS(OR('kuni 2025 detsember tegevuskava'!P37='kuni 2025 detsember tegevuskava'!$P$107,'kuni 2025 detsember tegevuskava'!P37='kuni 2025 detsember tegevuskava'!$P$109,'kuni 2025 detsember tegevuskava'!P37='kuni 2025 detsember tegevuskava'!$P$110,'kuni 2025 detsember tegevuskava'!P37='kuni 2025 detsember tegevuskava'!$P$111),1,'kuni 2025 detsember tegevuskava'!P37='kuni 2025 detsember tegevuskava'!$P$112,2,'kuni 2025 detsember tegevuskava'!P37='kuni 2025 detsember tegevuskava'!$P$113,2,'kuni 2025 detsember tegevuskava'!P37='kuni 2025 detsember tegevuskava'!$P$108,3) -> 2 | I45: =SUM(I46:I46) -> 30,000 | K45: =SUM(K46:K46) -> 0 | M45: =SUM(M46:M46) -> 30,000 | O45: =SUM(O46:O46) -> 0
I46: =SUM(K46+M46+O46) -> 30,000 | J46: ="(55)" -> (55) | K46: ='kuni 2025 detsember tegevuskava'!Z37 -> 0 | L46: ="(55)" -> (55) | M46: ='kuni 2025 detsember tegevuskava'!AC37 -> 30,000 | N46: ="(55)" -> (55) | O46: ='kuni 2025 detsember tegevuskava'!AF37 -> 0 | P46: ="(55)" -> (55)
I47: Summa koos käibemaksuga:
I48: =SUM(I49:I49) -> 36,600 | K48: =SUM(K49:K49) -> 0 | M48: =SUM(M49:M49) -> 36,600 | O48: =SUM(O49:O49) -> 0
I49: =SUM(K49+M49+O49) -> 36,600 | J49: ="(55)" -> (55) | K49: =SUM(K46*1.2) -> 0 | L49: ="(55)" -> (55) | M49: =SUM(M46*1.22) -> 36,600 | N49: ="(55)" -> (55) | O49: =SUM(O46*1.22) -> 0 | P49: ="(55)" -> (55)
B50: ='kuni 2025 detsember tegevuskava'!A38&"/"&'kuni 2025 detsember tegevuskava'!B38 -> MKM/TTJA | C50: ='kuni 2025 detsember tegevuskava'!I38 -> Puudub võimekus protsessimootor mikroarhitektuuri integreerida. | D50: ='kuni 2025 detsember tegevuskava'!J38 -> Protsessimootri kasutuselevõtu lahenduse väljatöötamine (2021-27 SF) | E50: ='kuni 2025 detsember tegevuskava'!K38 -> On valminud protsessi juhtimise tarkvarade võrdlev analüüs | F50: ='kuni 2025 detsember tegevuskava'!P38&"/" -> SF 21-27 (taotletav raha)/ | G50: =_xlfn.IFS('kuni 2025 detsember tegevuskava'!G38='kuni 2025 detsember tegevuskava'!$G$107,1,'kuni 2025 detsember tegevuskava'!G38='kuni 2025 detsember tegevuskava'!$G$108,2,'kuni 2025 detsember tegevuskava'!G38='kuni 2025 detsember tegevuskava'!$G$109,3,'kuni 2025 detsember tegevuskava'!G38='kuni 2025 detsember tegevuskava'!$G$110,4) -> 1 | H50: =_xlfn.IFS(OR('kuni 2025 detsember tegevuskava'!P38='kuni 2025 detsember tegevuskava'!$P$107,'kuni 2025 detsember tegevuskava'!P38='kuni 2025 detsember tegevuskava'!$P$109,'kuni 2025 detsember tegevuskava'!P38='kuni 2025 detsember tegevuskava'!$P$110,'kuni 2025 detsember tegevuskava'!P38='kuni 2025 detsember tegevuskava'!$P$111),1,'kuni 2025 detsember tegevuskava'!P38='kuni 2025 detsember tegevuskava'!$P$112,2,'kuni 2025 detsember tegevuskava'!P38='kuni 2025 detsember tegevuskava'!$P$113,2,'kuni 2025 detsember tegevuskava'!P38='kuni 2025 detsember tegevuskava'!$P$108,3) -> 2 | I50: =SUM(I51:I51) -> 25,000 | K50: =SUM(K51:K51) -> 0 | M50: =SUM(M51:M51) -> 25,000 | O50: =SUM(O51:O51) -> 0
I51: =SUM(K51+M51+O51) -> 25,000 | J51: ="(55)" -> (55) | K51: ='kuni 2025 detsember tegevuskava'!Z38 -> 0 | L51: ="(55)" -> (55) | M51: ='kuni 2025 detsember tegevuskava'!AC38 -> 25,000 | N51: ="(55)" -> (55) | O51: ='kuni 2025 detsember tegevuskava'!AF38 -> 0 | P51: ="(55)" -> (55)
I52: Summa koos käibemaksuga:
I53: =SUM(I54:I54) -> 30,500 | K53: =SUM(K54:K54) -> 0 | M53: =SUM(M54:M54) -> 30,500 | O53: =SUM(O54:O54) -> 0
I54: =SUM(K54+M54+O54) -> 30,500 | J54: ="(55)" -> (55) | K54: =SUM(K51*1.2) -> 0 | L54: ="(55)" -> (55) | M54: =SUM(M51*1.22) -> 30,500 | N54: ="(55)" -> (55) | O54: =SUM(O51*1.22) -> 0 | P54: ="(55)" -> (55)
B55: ='kuni 2025 detsember tegevuskava'!A39&"/"&'kuni 2025 detsember tegevuskava'!B39 -> MKM/TTJA | C55: ='kuni 2025 detsember tegevuskava'!I39 -> TTJAl puudub võimekus analüütiku ja koolituste osas | D55: ='kuni 2025 detsember tegevuskava'!J39 -> TTJA võimestamine digipöörde elluviimiseks (nt analüütikud, disainer, koolitused) (2021-27 SF) | E55: ='kuni 2025 detsember tegevuskava'!K39 -> Digipöörde elluviimiseks on värvatud nt analüütikud, disainer, kompetentsid on tugevdatud | F55: ='kuni 2025 detsember tegevuskava'!P39&"/" -> SF 21-27 (taotletav raha)/ | G55: =_xlfn.IFS('kuni 2025 detsember tegevuskava'!G39='kuni 2025 detsember tegevuskava'!$G$107,1,'kuni 2025 detsember tegevuskava'!G39='kuni 2025 detsember tegevuskava'!$G$108,2,'kuni 2025 detsember tegevuskava'!G39='kuni 2025 detsember tegevuskava'!$G$109,3,'kuni 2025 detsember tegevuskava'!G39='kuni 2025 detsember tegevuskava'!$G$110,4) -> 3 | H55: =_xlfn.IFS(OR('kuni 2025 detsember tegevuskava'!P39='kuni 2025 detsember tegevuskava'!$P$107,'kuni 2025 detsember tegevuskava'!P39='kuni 2025 detsember tegevuskava'!$P$109,'kuni 2025 detsember tegevuskava'!P39='kuni 2025 detsember tegevuskava'!$P$110,'kuni 2025 detsember tegevuskava'!P39='kuni 2025 detsember tegevuskava'!$P$111),1,'kuni 2025 detsember tegevuskava'!P39='kuni 2025 detsember tegevuskava'!$P$112,2,'kuni 2025 detsember tegevuskava'!P39='kuni 2025 detsember tegevuskava'!$P$113,2,'kuni 2025 detsember tegevuskava'!P39='kuni 2025 detsember tegevuskava'!$P$108,3) -> 2 | I55: =SUM(I56:I57) -> 467,102 | K55: =SUM(K56:K57) -> 19,102 | M55: =SUM(M56:M57) -> 224,000 | O55: =SUM(O56:O57) -> 224,000
I56: =SUM(K56+M56+O56) -> 439,926 | J56: ="(50)" -> (50) | K56: ='kuni 2025 detsember tegevuskava'!Y39 -> 11,926 | L56: ="(50)" -> (50) | M56: ='kuni 2025 detsember tegevuskava'!AB39 -> 214,000 | N56: ="(50)" -> (50) | O56: ='kuni 2025 detsember tegevuskava'!AE39 -> 214,000 | P56: ="(50)" -> (50)
I57: =SUM(K57+M57+O57) -> 27,176 | J57: ="(55)" -> (55) | K57: ='kuni 2025 detsember tegevuskava'!Z39 -> 7,176 | L57: ="(55)" -> (55) | M57: ='kuni 2025 detsember tegevuskava'!AC39 -> 10,000 | N57: ="(55)" -> (55) | O57: ='kuni 2025 detsember tegevuskava'!AF39 -> 10,000 | P57: ="(55)" -> (55)
I58: Summa koos käibemaksuga:
I59: =SUM(I60:I61) -> 472,937 | K59: =SUM(K60:K61) -> 20,537 | M59: =SUM(M60:M61) -> 226,200 | O59: =SUM(O60:O61) -> 226,200
I60: =SUM(K60+M60+O60) -> 439,926 | J60: ="(50)" -> (50) | K60: =K56 -> 11,926 | L60: ="(50)" -> (50) | M60: =M56 -> 214,000 | N60: ="(50)" -> (50) | O60: =O56 -> 214,000 | P60: ="(50)" -> (50)
I61: =SUM(K61+M61+O61) -> 33,011 | J61: ="(55)" -> (55) | K61: =SUM(K57*1.2) -> 8,611 | L61: ="(55)" -> (55) | M61: =SUM(M57*1.22) -> 12,200 | N61: ="(55)" -> (55) | O61: =SUM(O57*1.22) -> 12,200 | P61: ="(55)" -> (55)
B62: ='kuni 2025 detsember tegevuskava'!A40&"/"&'kuni 2025 detsember tegevuskava'!B40 -> MKM/TTJA | C62: ='kuni 2025 detsember tegevuskava'!I40 -> Teenuste portfelli nõuded ei ole vastavuses suundade ja nõuetega | D62: ='kuni 2025 detsember tegevuskava'!J40 -> TTJA teenuste portfelli ärianalüüs, tegevuskava teenuste vastavusse viimiseks haldusala üldiste suundade/nõuetega | E62: ='kuni 2025 detsember tegevuskava'!K40 -> Ärianalüüs ja tegevuskava olemas | F62: ='kuni 2025 detsember tegevuskava'!P40&"/" -> SF 21-27 (taotletav raha)/ | G62: =_xlfn.IFS('kuni 2025 detsember tegevuskava'!G40='kuni 2025 detsember tegevuskava'!$G$107,1,'kuni 2025 detsember tegevuskava'!G40='kuni 2025 detsember tegevuskava'!$G$108,2,'kuni 2025 detsember tegevuskava'!G40='kuni 2025 detsember tegevuskava'!$G$109,3,'kuni 2025 detsember tegevuskava'!G40='kuni 2025 detsember tegevuskava'!$G$110,4) -> 1 | H62: =_xlfn.IFS(OR('kuni 2025 detsember tegevuskava'!P40='kuni 2025 detsember tegevuskava'!$P$107,'kuni 2025 detsember tegevuskava'!P40='kuni 2025 detsember tegevuskava'!$P$109,'kuni 2025 detsember tegevuskava'!P40='kuni 2025 detsember tegevuskava'!$P$110,'kuni 2025 detsember tegevuskava'!P40='kuni 2025 detsember tegevuskava'!$P$111),1,'kuni 2025 detsember tegevuskava'!P40='kuni 2025 detsember tegevuskava'!$P$112,2,'kuni 2025 detsember tegevuskava'!P40='kuni 2025 detsember tegevuskava'!$P$113,2,'kuni 2025 detsember tegevuskava'!P40='kuni 2025 detsember tegevuskava'!$P$108,3) -> 2 | I62: =SUM(I63:I63) -> 5,000 | K62: =SUM(K63:K63) -> 0 | M62: =SUM(M63:M63) -> 5,000 | O62: =SUM(O63:O63) -> 0
I63: =SUM(K63+M63+O63) -> 5,000 | J63: ="(55)" -> (55) | K63: ='kuni 2025 detsember tegevuskava'!Z40 -> 0 | L63: ="(55)" -> (55) | M63: ='kuni 2025 detsember tegevuskava'!AC40 -> 5,000 | N63: ="(55)" -> (55) | O63: ='kuni 2025 detsember tegevuskava'!AF40 -> 0 | P63: ="(55)" -> (55)
I64: Summa koos käibemaksuga:
I65: =SUM(I66:I66) -> 6,100 | K65: =SUM(K66:K66) -> 0 | M65: =SUM(M66:M66) -> 6,100 | O65: =SUM(O66:O66) -> 0
I66: =SUM(K66+M66+O66) -> 6,100 | J66: ="(55)" -> (55) | K66: =SUM(K63*1.2) -> 0 | L66: ="(55)" -> (55) | M66: =SUM(M63*1.22) -> 6,100 | N66: ="(55)" -> (55) | O66: =SUM(O63*1.22) -> 0 | P66: ="(55)" -> (55)
B67: ='kuni 2025 detsember tegevuskava'!A41&"/"&'kuni 2025 detsember tegevuskava'!B41 -> MKM/TTJA | C67: ='kuni 2025 detsember tegevuskava'!I41 -> Klienditoe teenus on killustatud ja pole ühtselt hallatud. | D67: ='kuni 2025 detsember tegevuskava'!J41 -> klienditoe teenuse I etapi käivitamine | E67: ='kuni 2025 detsember tegevuskava'!K41 -> Klienditoe I etapp on käivitatud | F67: ='kuni 2025 detsember tegevuskava'!P41&"/" -> SF 21-27 (taotletav raha)/ | G67: =_xlfn.IFS('kuni 2025 detsember tegevuskava'!G41='kuni 2025 detsember tegevuskava'!$G$107,1,'kuni 2025 detsember tegevuskava'!G41='kuni 2025 detsember tegevuskava'!$G$108,2,'kuni 2025 detsember tegevuskava'!G41='kuni 2025 detsember tegevuskava'!$G$109,3,'kuni 2025 detsember tegevuskava'!G41='kuni 2025 detsember tegevuskava'!$G$110,4) -> 1 | H67: =_xlfn.IFS(OR('kuni 2025 detsember tegevuskava'!P41='kuni 2025 detsember tegevuskava'!$P$107,'kuni 2025 detsember tegevuskava'!P41='kuni 2025 detsember tegevuskava'!$P$109,'kuni 2025 detsember tegevuskava'!P41='kuni 2025 detsember tegevuskava'!$P$110,'kuni 2025 detsember tegevuskava'!P41='kuni 2025 detsember tegevuskava'!$P$111),1,'kuni 2025 detsember tegevuskava'!P41='kuni 2025 detsember tegevuskava'!$P$112,2,'kuni 2025 detsember tegevuskava'!P41='kuni 2025 detsember tegevuskava'!$P$113,2,'kuni 2025 detsember tegevuskava'!P41='kuni 2025 detsember tegevuskava'!$P$108,3) -> 2 | I67: =SUM(I68:I68) -> 5,000 | K67: =SUM(K68:K68) -> 0 | M67: =SUM(M68:M68) -> 5,000 | O67: =SUM(O68:O68) -> 0
I68: =SUM(K68+M68+O68) -> 5,000 | J68: ="(55)" -> (55) | K68: ='kuni 2025 detsember tegevuskava'!Z41 -> 0 | L68: ="(55)" -> (55) | M68: ='kuni 2025 detsember tegevuskava'!AC41 -> 5,000 | N68: ="(55)" -> (55) | O68: ='kuni 2025 detsember tegevuskava'!AF41 -> 0 | P68: ="(55)" -> (55)
I69: Summa koos käibemaksuga:
I70: =SUM(I71:I71) -> 6,100 | K70: =SUM(K71:K71) -> 0 | M70: =SUM(M71:M71) -> 6,100 | O70: =SUM(O71:O71) -> 0
I71: =SUM(K71+M71+O71) -> 6,100 | J71: ="(55)" -> (55) | K71: =SUM(K68*1.2) -> 0 | L71: ="(55)" -> (55) | M71: =SUM(M68*1.22) -> 6,100 | N71: ="(55)" -> (55) | O71: =SUM(O68*1.22) -> 0 | P71: ="(55)" -> (55)
B72: ='kuni 2025 detsember tegevuskava'!A42&"/"&'kuni 2025 detsember tegevuskava'!B42 -> MKM/TTJA | C72: ='kuni 2025 detsember tegevuskava'!I42 -> E-teenuste infosüsteemi tootestamiseks puudub hea sisend, mille alusel arendusi tellida. | D72: ='kuni 2025 detsember tegevuskava'!J42 -> e-teenuste infosüsteemi tootestamise analüüs | E72: ='kuni 2025 detsember tegevuskava'!K42 -> e-teenuste analüüs on olemas | F72: ='kuni 2025 detsember tegevuskava'!P42&"/" -> SF 21-27 (taotletav raha)/ | G72: =_xlfn.IFS('kuni 2025 detsember tegevuskava'!G42='kuni 2025 detsember tegevuskava'!$G$107,1,'kuni 2025 detsember tegevuskava'!G42='kuni 2025 detsember tegevuskava'!$G$108,2,'kuni 2025 detsember tegevuskava'!G42='kuni 2025 detsember tegevuskava'!$G$109,3,'kuni 2025 detsember tegevuskava'!G42='kuni 2025 detsember tegevuskava'!$G$110,4) -> 1 | H72: =_xlfn.IFS(OR('kuni 2025 detsember tegevuskava'!P42='kuni 2025 detsember tegevuskava'!$P$107,'kuni 2025 detsember tegevuskava'!P42='kuni 2025 detsember tegevuskava'!$P$109,'kuni 2025 detsember tegevuskava'!P42='kuni 2025 detsember tegevuskava'!$P$110,'kuni 2025 detsember tegevuskava'!P42='kuni 2025 detsember tegevuskava'!$P$111),1,'kuni 2025 detsember tegevuskava'!P42='kuni 2025 detsember tegevuskava'!$P$112,2,'kuni 2025 detsember tegevuskava'!P42='kuni 2025 detsember tegevuskava'!$P$113,2,'kuni 2025 detsember tegevuskava'!P42='kuni 2025 detsember tegevuskava'!$P$108,3) -> 2 | I72: =SUM(I73:I73) -> 10,000 | K72: =SUM(K73:K73) -> 0 | M72: =SUM(M73:M73) -> 10,000 | O72: =SUM(O73:O73) -> 0
I73: =SUM(K73+M73+O73) -> 10,000 | J73: ="(55)" -> (55) | K73: ='kuni 2025 detsember tegevuskava'!Z42 -> 0 | L73: ="(55)" -> (55) | M73: ='kuni 2025 detsember tegevuskava'!AC42 -> 10,000 | N73: ="(55)" -> (55) | O73: ='kuni 2025 detsember tegevuskava'!AF42 -> 0 | P73: ="(55)" -> (55)
I74: Summa koos käibemaksuga:
I75: =SUM(I76:I76) -> 12,200 | K75: =SUM(K76:K76) -> 0 | M75: =SUM(M76:M76) -> 12,200 | O75: =SUM(O76:O76) -> 0
I76: =SUM(K76+M76+O76) -> 12,200 | J76: ="(55)" -> (55) | K76: =SUM(K73*1.2) -> 0 | L76: ="(55)" -> (55) | M76: =SUM(M73*1.22) -> 12,200 | N76: ="(55)" -> (55) | O76: =SUM(O73*1.22) -> 0 | P76: ="(55)" -> (55)
B77: ='kuni 2025 detsember tegevuskava'!A43&"/"&'kuni 2025 detsember tegevuskava'!B43 -> MKM/KEMIT | C77: ='kuni 2025 detsember tegevuskava'!I43 -> Direktiivide ülevõtmiseks ja andmete liidestumiseks puudub selge teadmine. | D77: ='kuni 2025 detsember tegevuskava'!J43 -> EU direktiivinõuete täitmiseks andmeliidestuse mikroteenuse analüüs ja arendus | E77: ='kuni 2025 detsember tegevuskava'!K43 -> Teostatud on arendusprojekt liidestuste loomiseks | F77: ='kuni 2025 detsember tegevuskava'!P43&"/" -> SF 21-27 (taotletav raha)/ | G77: =_xlfn.IFS('kuni 2025 detsember tegevuskava'!G43='kuni 2025 detsember tegevuskava'!$G$107,1,'kuni 2025 detsember tegevuskava'!G43='kuni 2025 detsember tegevuskava'!$G$108,2,'kuni 2025 detsember tegevuskava'!G43='kuni 2025 detsember tegevuskava'!$G$109,3,'kuni 2025 detsember tegevuskava'!G43='kuni 2025 detsember tegevuskava'!$G$110,4) -> 1 | H77: =_xlfn.IFS(OR('kuni 2025 detsember tegevuskava'!P43='kuni 2025 detsember tegevuskava'!$P$107,'kuni 2025 detsember tegevuskava'!P43='kuni 2025 detsember tegevuskava'!$P$109,'kuni 2025 detsember tegevuskava'!P43='kuni 2025 detsember tegevuskava'!$P$110,'kuni 2025 detsember tegevuskava'!P43='kuni 2025 detsember tegevuskava'!$P$111),1,'kuni 2025 detsember tegevuskava'!P43='kuni 2025 detsember tegevuskava'!$P$112,2,'kuni 2025 detsember tegevuskava'!P43='kuni 2025 detsember tegevuskava'!$P$113,2,'kuni 2025 detsember tegevuskava'!P43='kuni 2025 detsember tegevuskava'!$P$108,3) -> 2 | I77: =SUM(I78:I78) -> 60,000 | K77: =SUM(K78:K78) -> 0 | M77: =SUM(M78:M78) -> 60,000 | O77: =SUM(O78:O78) -> 0
I78: =SUM(K78+M78+O78) -> 60,000 | J78: ="(15)" -> (15) | K78: ='kuni 2025 detsember tegevuskava'!X43 -> 0 | L78: ="(15)" -> (15) | M78: ='kuni 2025 detsember tegevuskava'!AA43 -> 60,000 | N78: ="(15)" -> (15) | O78: ='kuni 2025 detsember tegevuskava'!AD43 -> 0 | P78: ="(15)" -> (15)
I79: Summa koos käibemaksuga:
I80: =SUM(I81:I81) -> 73,200 | K80: =SUM(K81:K81) -> 0 | M80: =SUM(M81:M81) -> 73,200 | O80: =SUM(O81:O81) -> 0
I81: =SUM(K81+M81+O81) -> 73,200 | J81: ="(15)" -> (15) | K81: =SUM(K78*1.2) -> 0 | L81: ="(15)" -> (15) | M81: =SUM(M78*1.22) -> 73,200 | N81: ="(15)" -> (15) | O81: =SUM(O78*1.22) -> 0 | P81: ="(15)" -> (15)
B82: ='kuni 2025 detsember tegevuskava'!A44&"/"&'kuni 2025 detsember tegevuskava'!B44 -> MKM/ | C82: ='kuni 2025 detsember tegevuskava'!I44 -> Digipöörde käivitamine eeldab uusi kompetentse ja keskseid koordineerivad rolle teemades IT arhitektuur, teenused, andmed, kestlikkus, oskused, mida hetkel valitsemisalas pole | D82: ='kuni 2025 detsember tegevuskava'!J44 -> Kesksete rollide loomine valitsemisalas | E82: ='kuni 2025 detsember tegevuskava'!K44 -> On olemas valitsemisala teenused, arhitektuur, andmed, kestlikkus, oskused teemade vastuatajate kompetentsid. | F82: ='kuni 2025 detsember tegevuskava'!P44&"/" -> SF 21-27 (taotletav raha)/ | G82: =_xlfn.IFS('kuni 2025 detsember tegevuskava'!G44='kuni 2025 detsember tegevuskava'!$G$107,1,'kuni 2025 detsember tegevuskava'!G44='kuni 2025 detsember tegevuskava'!$G$108,2,'kuni 2025 detsember tegevuskava'!G44='kuni 2025 detsember tegevuskava'!$G$109,3,'kuni 2025 detsember tegevuskava'!G44='kuni 2025 detsember tegevuskava'!$G$110,4) -> 3 | H82: =_xlfn.IFS(OR('kuni 2025 detsember tegevuskava'!P44='kuni 2025 detsember tegevuskava'!$P$107,'kuni 2025 detsember tegevuskava'!P44='kuni 2025 detsember tegevuskava'!$P$109,'kuni 2025 detsember tegevuskava'!P44='kuni 2025 detsember tegevuskava'!$P$110,'kuni 2025 detsember tegevuskava'!P44='kuni 2025 detsember tegevuskava'!$P$111),1,'kuni 2025 detsember tegevuskava'!P44='kuni 2025 detsember tegevuskava'!$P$112,2,'kuni 2025 detsember tegevuskava'!P44='kuni 2025 detsember tegevuskava'!$P$113,2,'kuni 2025 detsember tegevuskava'!P44='kuni 2025 detsember tegevuskava'!$P$108,3) -> 2 | I82: =SUM(I83:I84) -> 229,148 | K82: =SUM(K83:K84) -> 4,148 | M82: =SUM(M83:M84) -> 90,000 | O82: =SUM(O83:O84) -> 135,000
I83: =SUM(K83+M83+O83) -> 194,148 | J83: ="(50)" -> (50) | K83: ='kuni 2025 detsember tegevuskava'!Y44 -> 4,148 | L83: ="(50)" -> (50) | M83: ='kuni 2025 detsember tegevuskava'!AB44 -> 75,000 | N83: ="(50)" -> (50) | O83: ='kuni 2025 detsember tegevuskava'!AE44 -> 115,000 | P83: ="(50)" -> (50)
I84: =SUM(K84+M84+O84) -> 35,000 | J84: ="(55)" -> (55) | K84: ='kuni 2025 detsember tegevuskava'!Z44 -> 0 | L84: ="(55)" -> (55) | M84: ='kuni 2025 detsember tegevuskava'!AC44 -> 15,000 | N84: ="(55)" -> (55) | O84: ='kuni 2025 detsember tegevuskava'!AF44 -> 20,000 | P84: ="(55)" -> (55)
I85: Summa koos käibemaksuga:
I86: =SUM(I87:I88) -> 236,848 | K86: =SUM(K87:K88) -> 4,148 | M86: =SUM(M87:M88) -> 93,300 | O86: =SUM(O87:O88) -> 139,400
I87: =SUM(K87+M87+O87) -> 194,148 | J87: ="(50)" -> (50) | K87: =K83 -> 4,148 | L87: ="(50)" -> (50) | M87: =M83 -> 75,000 | N87: ="(50)" -> (50) | O87: =O83 -> 115,000 | P87: ="(50)" -> (50)
I88: =SUM(K88+M88+O88) -> 42,700 | J88: ="(55)" -> (55) | K88: =SUM(K84*1.2) -> 0 | L88: ="(55)" -> (55) | M88: =SUM(M84*1.22) -> 18,300 | N88: ="(55)" -> (55) | O88: =SUM(O84*1.22) -> 24,400 | P88: ="(55)" -> (55)
B89: ='kuni 2025 detsember tegevuskava'!A45&"/"&'kuni 2025 detsember tegevuskava'!B45 -> MKM/KEMIT | C89: ='kuni 2025 detsember tegevuskava'!I45 -> Teenused aeglased, kliendile ebamugavad, automatiseerimata; süsteemides esineb palju vigu | D89: ='kuni 2025 detsember tegevuskava'!J45 -> Uue kasutajaliidese disaini väljatöötamine | E89: ='kuni 2025 detsember tegevuskava'!K45 -> Teostatud loateenuste kasutajateekondade analüüs ja loodud uus UX disain loateenuste kasutajateekondade jaoks | F89: ='kuni 2025 detsember tegevuskava'!P45&"/" -> SF 21-27 (taotletav raha)/ | G89: =_xlfn.IFS('kuni 2025 detsember tegevuskava'!G45='kuni 2025 detsember tegevuskava'!$G$107,1,'kuni 2025 detsember tegevuskava'!G45='kuni 2025 detsember tegevuskava'!$G$108,2,'kuni 2025 detsember tegevuskava'!G45='kuni 2025 detsember tegevuskava'!$G$109,3,'kuni 2025 detsember tegevuskava'!G45='kuni 2025 detsember tegevuskava'!$G$110,4) -> 1 | H89: =_xlfn.IFS(OR('kuni 2025 detsember tegevuskava'!P45='kuni 2025 detsember tegevuskava'!$P$107,'kuni 2025 detsember tegevuskava'!P45='kuni 2025 detsember tegevuskava'!$P$109,'kuni 2025 detsember tegevuskava'!P45='kuni 2025 detsember tegevuskava'!$P$110,'kuni 2025 detsember tegevuskava'!P45='kuni 2025 detsember tegevuskava'!$P$111),1,'kuni 2025 detsember tegevuskava'!P45='kuni 2025 detsember tegevuskava'!$P$112,2,'kuni 2025 detsember tegevuskava'!P45='kuni 2025 detsember tegevuskava'!$P$113,2,'kuni 2025 detsember tegevuskava'!P45='kuni 2025 detsember tegevuskava'!$P$108,3) -> 2 | I89: =SUM(I90:I90) -> 120,000 | K89: =SUM(K90:K90) -> 0 | M89: =SUM(M90:M90) -> 120,000 | O89: =SUM(O90:O90) -> 0
I90: =SUM(K90+M90+O90) -> 120,000 | J90: ="(55)" -> (55) | K90: ='kuni 2025 detsember tegevuskava'!Z45 -> 0 | L90: ="(55)" -> (55) | M90: ='kuni 2025 detsember tegevuskava'!AC45 -> 120,000 | N90: ="(55)" -> (55) | O90: ='kuni 2025 detsember tegevuskava'!AF45 -> 0 | P90: ="(55)" -> (55)
I91: Summa koos käibemaksuga:
I92: =SUM(I93:I93) -> 146,400 | K92: =SUM(K93:K93) -> 0 | M92: =SUM(M93:M93) -> 146,400 | O92: =SUM(O93:O93) -> 0
I93: =SUM(K93+M93+O93) -> 146,400 | J93: ="(55)" -> (55) | K93: =SUM(K90*1.2) -> 0 | L93: ="(55)" -> (55) | M93: =SUM(M90*1.22) -> 146,400 | N93: ="(55)" -> (55) | O93: =SUM(O90*1.22) -> 0 | P93: ="(55)" -> (55)
B94: ='kuni 2025 detsember tegevuskava'!A46&"/"&'kuni 2025 detsember tegevuskava'!B46 -> MKM/KEMIT | C94: ='kuni 2025 detsember tegevuskava'!I46 -> Teenused aeglased, kliendile ebamugavad, automatiseerimata; süsteemides esineb palju vigu | D94: ='kuni 2025 detsember tegevuskava'!J46 -> Loateenuste piloot ja välisinvesteeringute usaldusväärsuse hindamise rakendus | E94: ='kuni 2025 detsember tegevuskava'!K46 -> Välisinvesteeringute usaldusväärsuse hindamise teenuse detailanalüüs teostatud ja loataotluse rakendus toimib kliendikeskkonna tootes koos majandustegevuse teadetega toodangukeskkonnas | F94: ='kuni 2025 detsember tegevuskava'!P46&"/" -> SF 21-27 (taotletav raha)/ | G94: =_xlfn.IFS('kuni 2025 detsember tegevuskava'!G46='kuni 2025 detsember tegevuskava'!$G$107,1,'kuni 2025 detsember tegevuskava'!G46='kuni 2025 detsember tegevuskava'!$G$108,2,'kuni 2025 detsember tegevuskava'!G46='kuni 2025 detsember tegevuskava'!$G$109,3,'kuni 2025 detsember tegevuskava'!G46='kuni 2025 detsember tegevuskava'!$G$110,4) -> 1 | H94: =_xlfn.IFS(OR('kuni 2025 detsember tegevuskava'!P46='kuni 2025 detsember tegevuskava'!$P$107,'kuni 2025 detsember tegevuskava'!P46='kuni 2025 detsember tegevuskava'!$P$109,'kuni 2025 detsember tegevuskava'!P46='kuni 2025 detsember tegevuskava'!$P$110,'kuni 2025 detsember tegevuskava'!P46='kuni 2025 detsember tegevuskava'!$P$111),1,'kuni 2025 detsember tegevuskava'!P46='kuni 2025 detsember tegevuskava'!$P$112,2,'kuni 2025 detsember tegevuskava'!P46='kuni 2025 detsember tegevuskava'!$P$113,2,'kuni 2025 detsember tegevuskava'!P46='kuni 2025 detsember tegevuskava'!$P$108,3) -> 2 | I94: =SUM(I95:I95) -> 280,000 | K94: =SUM(K95:K95) -> 0 | M94: =SUM(M95:M95) -> 200,000 | O94: =SUM(O95:O95) -> 80,000
I95: =SUM(K95+M95+O95) -> 280,000 | J95: ="(15)" -> (15) | K95: ='kuni 2025 detsember tegevuskava'!X46 -> 0 | L95: ="(15)" -> (15) | M95: ='kuni 2025 detsember tegevuskava'!AA46 -> 200,000 | N95: ="(15)" -> (15) | O95: ='kuni 2025 detsember tegevuskava'!AD46 -> 80,000 | P95: ="(15)" -> (15)
I96: Summa koos käibemaksuga:
I97: =SUM(I98:I98) -> 341,600 | K97: =SUM(K98:K98) -> 0 | M97: =SUM(M98:M98) -> 244,000 | O97: =SUM(O98:O98) -> 97,600
I98: =SUM(K98+M98+O98) -> 341,600 | J98: ="(15)" -> (15) | K98: =SUM(K95*1.2) -> 0 | L98: ="(15)" -> (15) | M98: =SUM(M95*1.22) -> 244,000 | N98: ="(15)" -> (15) | O98: =SUM(O95*1.22) -> 97,600 | P98: ="(15)" -> (15)
B99: ='kuni 2025 detsember tegevuskava'!A47&"/"&'kuni 2025 detsember tegevuskava'!B47 -> MKM/TTJA | C99: ='kuni 2025 detsember tegevuskava'!I47 -> Teenused aeglased, kliendile ebamugavad, automatiseerimata; süsteemides esineb palju vigu | D99: ='kuni 2025 detsember tegevuskava'!J47 -> Projektijuht | E99: ='kuni 2025 detsember tegevuskava'!K47 -> Digipörde teostamine toimib vastavalt aja- ja tegevusplaanile | F99: ='kuni 2025 detsember tegevuskava'!P47&"/" -> SF 21-27 (taotletav raha)/ | G99: =_xlfn.IFS('kuni 2025 detsember tegevuskava'!G47='kuni 2025 detsember tegevuskava'!$G$107,1,'kuni 2025 detsember tegevuskava'!G47='kuni 2025 detsember tegevuskava'!$G$108,2,'kuni 2025 detsember tegevuskava'!G47='kuni 2025 detsember tegevuskava'!$G$109,3,'kuni 2025 detsember tegevuskava'!G47='kuni 2025 detsember tegevuskava'!$G$110,4) -> 1 | H99: =_xlfn.IFS(OR('kuni 2025 detsember tegevuskava'!P47='kuni 2025 detsember tegevuskava'!$P$107,'kuni 2025 detsember tegevuskava'!P47='kuni 2025 detsember tegevuskava'!$P$109,'kuni 2025 detsember tegevuskava'!P47='kuni 2025 detsember tegevuskava'!$P$110,'kuni 2025 detsember tegevuskava'!P47='kuni 2025 detsember tegevuskava'!$P$111),1,'kuni 2025 detsember tegevuskava'!P47='kuni 2025 detsember tegevuskava'!$P$112,2,'kuni 2025 detsember tegevuskava'!P47='kuni 2025 detsember tegevuskava'!$P$113,2,'kuni 2025 detsember tegevuskava'!P47='kuni 2025 detsember tegevuskava'!$P$108,3) -> 2 | I99: =SUM(I100:I100) -> 110,000 | K99: =SUM(K100:K100) -> 0 | M99: =SUM(M100:M100) -> 55,000 | O99: =SUM(O100:O100) -> 55,000
I100: =SUM(K100+M100+O100) -> 110,000 | J100: ="(50)" -> (50) | K100: ='kuni 2025 detsember tegevuskava'!Y47 -> 0 | L100: ="(50)" -> (50) | M100: ='kuni 2025 detsember tegevuskava'!AB47 -> 55,000 | N100: ="(50)" -> (50) | O100: ='kuni 2025 detsember tegevuskava'!AE47 -> 55,000 | P100: ="(50)" -> (50)
I101: Summa koos käibemaksuga:
I102: =SUM(I103:I103) -> 110,000 | K102: =SUM(K103:K103) -> 0 | M102: =SUM(M103:M103) -> 55,000 | O102: =SUM(O103:O103) -> 55,000
I103: =SUM(K103+M103+O103) -> 110,000 | J103: ="(50)" -> (50) | K103: =K100 -> 0 | L103: ="(50)" -> (50) | M103: =M100 -> 55,000 | N103: ="(50)" -> (50) | O103: =O100 -> 55,000 | P103: ="(50)" -> (50)
B104: ='kuni 2025 detsember tegevuskava'!A48&"/"&'kuni 2025 detsember tegevuskava'!B48 -> MKM/KEMIT | C104: ='kuni 2025 detsember tegevuskava'!I48 -> Teenused aeglased, kliendile ebamugavad, automatiseerimata; süsteemides esineb palju vigu | D104: ='kuni 2025 detsember tegevuskava'!J48 -> e-teenuste tehnoloogilise platvormi baaskulu | E104: ='kuni 2025 detsember tegevuskava'!K48 -> Tehnoloogiline taristu ja teenused on hallatud | F104: ='kuni 2025 detsember tegevuskava'!P48&"/" -> SF 21-27 (taotletav raha)/ | G104: =_xlfn.IFS('kuni 2025 detsember tegevuskava'!G48='kuni 2025 detsember tegevuskava'!$G$107,1,'kuni 2025 detsember tegevuskava'!G48='kuni 2025 detsember tegevuskava'!$G$108,2,'kuni 2025 detsember tegevuskava'!G48='kuni 2025 detsember tegevuskava'!$G$109,3,'kuni 2025 detsember tegevuskava'!G48='kuni 2025 detsember tegevuskava'!$G$110,4) -> 4 | H104: =_xlfn.IFS(OR('kuni 2025 detsember tegevuskava'!P48='kuni 2025 detsember tegevuskava'!$P$107,'kuni 2025 detsember tegevuskava'!P48='kuni 2025 detsember tegevuskava'!$P$109,'kuni 2025 detsember tegevuskava'!P48='kuni 2025 detsember tegevuskava'!$P$110,'kuni 2025 detsember tegevuskava'!P48='kuni 2025 detsember tegevuskava'!$P$111),1,'kuni 2025 detsember tegevuskava'!P48='kuni 2025 detsember tegevuskava'!$P$112,2,'kuni 2025 detsember tegevuskava'!P48='kuni 2025 detsember tegevuskava'!$P$113,2,'kuni 2025 detsember tegevuskava'!P48='kuni 2025 detsember tegevuskava'!$P$108,3) -> 2 | I104: =SUM(I105:I105) -> 150,000 | K104: =SUM(K105:K105) -> 0 | M104: =SUM(M105:M105) -> 150,000 | O104: =SUM(O105:O105) -> 0
I105: =SUM(K105+M105+O105) -> 150,000 | J105: ="(15)" -> (15) | K105: ='kuni 2025 detsember tegevuskava'!X48 -> 0 | L105: ="(15)" -> (15) | M105: ='kuni 2025 detsember tegevuskava'!AA48 -> 150,000 | N105: ="(15)" -> (15) | O105: ='kuni 2025 detsember tegevuskava'!AD48 -> 0 | P105: ="(15)" -> (15)
I106: Summa koos käibemaksuga:
I107: =SUM(I108:I108) -> 183,000 | K107: =SUM(K108:K108) -> 0 | M107: =SUM(M108:M108) -> 183,000 | O107: =SUM(O108:O108) -> 0
I108: =SUM(K108+M108+O108) -> 183,000 | J108: ="(15)" -> (15) | K108: =SUM(K105*1.2) -> 0 | L108: ="(15)" -> (15) | M108: =SUM(M105*1.22) -> 183,000 | N108: ="(15)" -> (15) | O108: =SUM(O105*1.22) -> 0 | P108: ="(15)" -> (15)
B109: ='kuni 2025 detsember tegevuskava'!A49&"/"&'kuni 2025 detsember tegevuskava'!B49 -> MKM/TTJA | C109: ='kuni 2025 detsember tegevuskava'!I49 -> Teenused aeglased, kliendile ebamugavad, automatiseerimata; süsteemides esineb palju vigu | D109: ='kuni 2025 detsember tegevuskava'!J49 -> Rakendusadministraator protsessijuhtimise tarkvara jaoks | E109: ='kuni 2025 detsember tegevuskava'!K49 -> Protsessijuhtimise tarkvara on testitud, toimib jätkusuutlikult e-teenuste platvormil | F109: ='kuni 2025 detsember tegevuskava'!P49&"/" -> SF 21-27 (taotletav raha)/ | G109: =_xlfn.IFS('kuni 2025 detsember tegevuskava'!G49='kuni 2025 detsember tegevuskava'!$G$107,1,'kuni 2025 detsember tegevuskava'!G49='kuni 2025 detsember tegevuskava'!$G$108,2,'kuni 2025 detsember tegevuskava'!G49='kuni 2025 detsember tegevuskava'!$G$109,3,'kuni 2025 detsember tegevuskava'!G49='kuni 2025 detsember tegevuskava'!$G$110,4) -> 1 | H109: =_xlfn.IFS(OR('kuni 2025 detsember tegevuskava'!P49='kuni 2025 detsember tegevuskava'!$P$107,'kuni 2025 detsember tegevuskava'!P49='kuni 2025 detsember tegevuskava'!$P$109,'kuni 2025 detsember tegevuskava'!P49='kuni 2025 detsember tegevuskava'!$P$110,'kuni 2025 detsember tegevuskava'!P49='kuni 2025 detsember tegevuskava'!$P$111),1,'kuni 2025 detsember tegevuskava'!P49='kuni 2025 detsember tegevuskava'!$P$112,2,'kuni 2025 detsember tegevuskava'!P49='kuni 2025 detsember tegevuskava'!$P$113,2,'kuni 2025 detsember tegevuskava'!P49='kuni 2025 detsember tegevuskava'!$P$108,3) -> 2 | I109: =SUM(I110:I111) -> 122,000 | K109: =SUM(K110:K111) -> 0 | M109: =SUM(M110:M111) -> 56,000 | O109: =SUM(O110:O111) -> 66,000
I110: =SUM(K110+M110+O110) -> 112,000 | J110: ="(50)" -> (50) | K110: ='kuni 2025 detsember tegevuskava'!Y49 -> 0 | L110: ="(50)" -> (50) | M110: ='kuni 2025 detsember tegevuskava'!AB49 -> 56,000 | N110: ="(50)" -> (50) | O110: ='kuni 2025 detsember tegevuskava'!AE49 -> 56,000 | P110: ="(50)" -> (50)
I111: =SUM(K111+M111+O111) -> 10,000 | J111: ="(55)" -> (55) | K111: ='kuni 2025 detsember tegevuskava'!Z49 -> 0 | L111: ="(55)" -> (55) | M111: ='kuni 2025 detsember tegevuskava'!AC48 -> 0 | N111: ="(55)" -> (55) | O111: ='kuni 2025 detsember tegevuskava'!AF49 -> 10,000 | P111: ="(55)" -> (55)
I112: Summa koos käibemaksuga:
I113: =SUM(I114:I115) -> 124,200 | K113: =SUM(K114:K115) -> 0 | M113: =SUM(M114:M115) -> 56,000 | O113: =SUM(O114:O115) -> 68,200
I114: =SUM(K114+M114+O114) -> 112,000 | J114: ="(50)" -> (50) | K114: =K110 -> 0 | L114: ="(50)" -> (50) | M114: =M110 -> 56,000 | N114: ="(50)" -> (50) | O114: =O110 -> 56,000 | P114: ="(50)" -> (50)
I115: =SUM(K115+M115+O115) -> 12,200 | J115: ="(55)" -> (55) | K115: =SUM(K111*1.2) -> 0 | L115: ="(55)" -> (55) | M115: =SUM(M111*1.22) -> 0 | N115: ="(55)" -> (55) | O115: =SUM(O111*1.22) -> 12,200 | P115: ="(55)" -> (55)
B116: ='kuni 2025 detsember tegevuskava'!A50&"/"&'kuni 2025 detsember tegevuskava'!B50 -> MKM/KEMIT | C116: ='kuni 2025 detsember tegevuskava'!I50 -> Teenused aeglased, kliendile ebamugavad, automatiseerimata; süsteemides esineb palju vigu | D116: ='kuni 2025 detsember tegevuskava'!J50 -> Protsessijuhtimise tarkvara haldus (litsentsid, serverid jm) 50 TEUR/aastas | E116: ='kuni 2025 detsember tegevuskava'!K50 -> Vajalik taristu on olemas protsessitarkvara kasutamiseks | F116: ='kuni 2025 detsember tegevuskava'!P50&"/" -> SF 21-27 (taotletav raha)/ | G116: =_xlfn.IFS('kuni 2025 detsember tegevuskava'!G50='kuni 2025 detsember tegevuskava'!$G$107,1,'kuni 2025 detsember tegevuskava'!G50='kuni 2025 detsember tegevuskava'!$G$108,2,'kuni 2025 detsember tegevuskava'!G50='kuni 2025 detsember tegevuskava'!$G$109,3,'kuni 2025 detsember tegevuskava'!G50='kuni 2025 detsember tegevuskava'!$G$110,4) -> 4 | H116: =_xlfn.IFS(OR('kuni 2025 detsember tegevuskava'!P50='kuni 2025 detsember tegevuskava'!$P$107,'kuni 2025 detsember tegevuskava'!P50='kuni 2025 detsember tegevuskava'!$P$109,'kuni 2025 detsember tegevuskava'!P50='kuni 2025 detsember tegevuskava'!$P$110,'kuni 2025 detsember tegevuskava'!P50='kuni 2025 detsember tegevuskava'!$P$111),1,'kuni 2025 detsember tegevuskava'!P50='kuni 2025 detsember tegevuskava'!$P$112,2,'kuni 2025 detsember tegevuskava'!P50='kuni 2025 detsember tegevuskava'!$P$113,2,'kuni 2025 detsember tegevuskava'!P50='kuni 2025 detsember tegevuskava'!$P$108,3) -> 2 | I116: =SUM(I117:I117) -> 50,000 | K116: =SUM(K117:K117) -> 0 | M116: =SUM(M117:M117) -> 50,000 | O116: =SUM(O117:O117) -> 0
I117: =SUM(K117+M117+O117) -> 50,000 | J117: ="(55)" -> (55) | K117: ='kuni 2025 detsember tegevuskava'!Z50 -> 0 | L117: ="(55)" -> (55) | M117: ='kuni 2025 detsember tegevuskava'!AC50 -> 50,000 | N117: ="(55)" -> (55) | O117: ='kuni 2025 detsember tegevuskava'!AF50 -> 0 | P117: ="(55)" -> (55)
I118: Summa koos käibemaksuga:
I119: =SUM(I120:I120) -> 61,000 | K119: =SUM(K120:K120) -> 0 | M119: =SUM(M120:M120) -> 61,000 | O119: =SUM(O120:O120) -> 0
I120: =SUM(K120+M120+O120) -> 61,000 | J120: ="(55)" -> (55) | K120: =SUM(K117*1.2) -> 0 | L120: ="(55)" -> (55) | M120: =SUM(M117*1.22) -> 61,000 | N120: ="(55)" -> (55) | O120: =SUM(O117*1.22) -> 0 | P120: ="(55)" -> (55)
B121: ='kuni 2025 detsember tegevuskava'!A51&"/"&'kuni 2025 detsember tegevuskava'!B51 -> MKM/RIKS | C121: ='kuni 2025 detsember tegevuskava'!I51 -> Kvantarvutikindlate võrguarhitektuuride teadmiste säilitamine, rahvusvaheline koostöö. | D121: ='kuni 2025 detsember tegevuskava'!J51 -> EuroQCI - Euroopa kvantvõrkude meede Eesti omaosalus. | E121: ='kuni 2025 detsember tegevuskava'!K51 -> Kvantvõtmevahetus Soomega. Partnerlus Läti ja Rootsiga ning teiste EU27 riikidega. | F121: ='kuni 2025 detsember tegevuskava'!P51&"/" -> RES IKT (vaja juurde taotleda)/ | G121: =_xlfn.IFS('kuni 2025 detsember tegevuskava'!G51='kuni 2025 detsember tegevuskava'!$G$107,1,'kuni 2025 detsember tegevuskava'!G51='kuni 2025 detsember tegevuskava'!$G$108,2,'kuni 2025 detsember tegevuskava'!G51='kuni 2025 detsember tegevuskava'!$G$109,3,'kuni 2025 detsember tegevuskava'!G51='kuni 2025 detsember tegevuskava'!$G$110,4) -> 1 | H121: =_xlfn.IFS(OR('kuni 2025 detsember tegevuskava'!P51='kuni 2025 detsember tegevuskava'!$P$107,'kuni 2025 detsember tegevuskava'!P51='kuni 2025 detsember tegevuskava'!$P$109,'kuni 2025 detsember tegevuskava'!P51='kuni 2025 detsember tegevuskava'!$P$110,'kuni 2025 detsember tegevuskava'!P51='kuni 2025 detsember tegevuskava'!$P$111),1,'kuni 2025 detsember tegevuskava'!P51='kuni 2025 detsember tegevuskava'!$P$112,2,'kuni 2025 detsember tegevuskava'!P51='kuni 2025 detsember tegevuskava'!$P$113,2,'kuni 2025 detsember tegevuskava'!P51='kuni 2025 detsember tegevuskava'!$P$108,3) -> 1 | I121: =SUM(I122:I123) -> 210,000 | K121: =SUM(K122:K123) -> 0 | M121: =SUM(M122:M123) -> 0 | O121: =SUM(O122:O123) -> 210,000
I122: =SUM(K122+M122+O122) -> 189,000 | J122: ="(50)" -> (50) | K122: ='kuni 2025 detsember tegevuskava'!Y51 -> 0 | L122: ="(50)" -> (50) | M122: ='kuni 2025 detsember tegevuskava'!AB51 -> 0 | N122: ="(50)" -> (50) | O122: ='kuni 2025 detsember tegevuskava'!AE51 -> 189,000 | P122: ="(50)" -> (50)
I123: =SUM(K123+M123+O123) -> 21,000 | J123: ="(55)" -> (55) | K123: ='kuni 2025 detsember tegevuskava'!Z51 -> 0 | L123: ="(55)" -> (55) | M123: ='kuni 2025 detsember tegevuskava'!AC51 -> 0 | N123: ="(55)" -> (55) | O123: ='kuni 2025 detsember tegevuskava'!AF51 -> 21,000 | P123: ="(55)" -> (55)
I124: Summa koos käibemaksuga:
I125: =SUM(I126:I127) -> 214,620 | K125: =SUM(K126:K127) -> 0 | M125: =SUM(M126:M127) -> 0 | O125: =SUM(O126:O127) -> 214,620
I126: =SUM(K126+M126+O126) -> 189,000 | J126: ="(50)" -> (50) | K126: =K122 -> 0 | L126: ="(50)" -> (50) | M126: =M122 -> 0 | N126: ="(50)" -> (50) | O126: =O122 -> 189,000 | P126: ="(50)" -> (50)
I127: =SUM(K127+M127+O127) -> 25,620 | J127: ="(55)" -> (55) | K127: =SUM(K123*1.2) -> 0 | L127: ="(55)" -> (55) | M127: =SUM(M123*1.22) -> 0 | N127: ="(55)" -> (55) | O127: =SUM(O123*1.22) -> 25,620 | P127: ="(55)" -> (55)
B128: ='kuni 2025 detsember tegevuskava'!A53&"/"&'kuni 2025 detsember tegevuskava'!B53 -> MKM/RIT | C128: ='kuni 2025 detsember tegevuskava'!I53 -> RRF toetuse lõppemine 2024. aasta lõpul, mis toob kaasa olukorra, kus RIT-i kasvuks vahendid (tehnoloogiline võlg+ teenuse igaaastane maksumus) puuduvad | D128: ='kuni 2025 detsember tegevuskava'!J53 -> Konsolideerimisreserv (RIT ATK standardteenuse klientide arvu kasvuks) | E128: ='kuni 2025 detsember tegevuskava'!K53 -> Perioodil 2025-2028 on RIT ATK standardteenusele toodud 14 862 uut kasutajat. Eelarve arvestatud eeldusel, et asutus katab olemasolevatest vahenditest vähemalt 25% std. teenuse kulust | F128: ='kuni 2025 detsember tegevuskava'!P53&"/" -> RES IKT (vaja juurde taotleda)/ | G128: =_xlfn.IFS('kuni 2025 detsember tegevuskava'!G53='kuni 2025 detsember tegevuskava'!$G$107,1,'kuni 2025 detsember tegevuskava'!G53='kuni 2025 detsember tegevuskava'!$G$108,2,'kuni 2025 detsember tegevuskava'!G53='kuni 2025 detsember tegevuskava'!$G$109,3,'kuni 2025 detsember tegevuskava'!G53='kuni 2025 detsember tegevuskava'!$G$110,4) -> 4 | H128: =_xlfn.IFS(OR('kuni 2025 detsember tegevuskava'!P53='kuni 2025 detsember tegevuskava'!$P$107,'kuni 2025 detsember tegevuskava'!P53='kuni 2025 detsember tegevuskava'!$P$109,'kuni 2025 detsember tegevuskava'!P53='kuni 2025 detsember tegevuskava'!$P$110,'kuni 2025 detsember tegevuskava'!P53='kuni 2025 detsember tegevuskava'!$P$111),1,'kuni 2025 detsember tegevuskava'!P53='kuni 2025 detsember tegevuskava'!$P$112,2,'kuni 2025 detsember tegevuskava'!P53='kuni 2025 detsember tegevuskava'!$P$113,2,'kuni 2025 detsember tegevuskava'!P53='kuni 2025 detsember tegevuskava'!$P$108,3) -> 1 | I128: =SUM(I129:I130) -> 7,655,327 | K128: =SUM(K129:K130) -> 0 | M128: =SUM(M129:M130) -> 0 | O128: =SUM(O129:O130) -> 7,655,327
I129: =SUM(K129+M129+O129) -> 2,344,897 | J129: ="(50)" -> (50) | K129: ='kuni 2025 detsember tegevuskava'!Y53 -> 0 | L129: ="(50)" -> (50) | M129: ='kuni 2025 detsember tegevuskava'!AB53 -> 0 | N129: ="(50)" -> (50) | O129: ='kuni 2025 detsember tegevuskava'!AE53 -> 2,344,897 | P129: ="(50)" -> (50)
I130: =SUM(K130+M130+O130) -> 5,310,430 | J130: ="(55)" -> (55) | K130: ='kuni 2025 detsember tegevuskava'!Z53 -> 0 | L130: ="(55)" -> (55) | M130: ='kuni 2025 detsember tegevuskava'!AC53 -> 0 | N130: ="(55)" -> (55) | O130: ='kuni 2025 detsember tegevuskava'!AF53 -> 5,310,430 | P130: ="(55)" -> (55)
I131: Summa koos käibemaksuga:
I132: =SUM(I133:I134) -> 8,823,622 | K132: =SUM(K133:K134) -> 0 | M132: =SUM(M133:M134) -> 0 | O132: =SUM(O133:O134) -> 8,823,622
I133: =SUM(K133+M133+O133) -> 2,344,897 | J133: ="(50)" -> (50) | K133: =K129 -> 0 | L133: ="(50)" -> (50) | M133: =M129 -> 0 | N133: ="(50)" -> (50) | O133: =O129 -> 2,344,897 | P133: ="(50)" -> (50)
I134: =SUM(K134+M134+O134) -> 6,478,724 | J134: ="(55)" -> (55) | K134: =SUM(K130*1.2) -> 0 | L134: ="(55)" -> (55) | M134: =SUM(M130*1.22) -> 0 | N134: ="(55)" -> (55) | O134: =SUM(O130*1.22) -> 6,478,724 | P134: ="(55)" -> (55)
B135: ='kuni 2025 detsember tegevuskava'!A54&"/"&'kuni 2025 detsember tegevuskava'!B54 -> MKM/RIT | C135: ='kuni 2025 detsember tegevuskava'!I54 -> RRF toetuse lõppemine 2024. aasta lõpul, mis toob kaasa olukorra, kus RIT-i kasvuks vahendid (tehnoloogiline võlg+ teenuse igaaastane maksumus) puuduvad | D135: ='kuni 2025 detsember tegevuskava'!J54 -> RRF JÄTK Konsolideerimisreserv (RIT ATK standardteenuse klientide arvu kasvuks). RRF-i jätk. 2024 on rahastatud konsolideerimisega seotud inimesed RRF-st. | E135: ='kuni 2025 detsember tegevuskava'!K54 -> Perioodil 2025-2028 on RIT ATK standardteenusele toodud 14 862 uut kasutajat. Eelarve arvestatud eeldusel, et asutus katab olemasolevatest vahenditest vähemalt 25% std. teenuse kulust | F135: ='kuni 2025 detsember tegevuskava'!P54&"/" -> RES IKT (vaja juurde taotleda)/ | G135: =_xlfn.IFS('kuni 2025 detsember tegevuskava'!G54='kuni 2025 detsember tegevuskava'!$G$107,1,'kuni 2025 detsember tegevuskava'!G54='kuni 2025 detsember tegevuskava'!$G$108,2,'kuni 2025 detsember tegevuskava'!G54='kuni 2025 detsember tegevuskava'!$G$109,3,'kuni 2025 detsember tegevuskava'!G54='kuni 2025 detsember tegevuskava'!$G$110,4) -> 4 | H135: =_xlfn.IFS(OR('kuni 2025 detsember tegevuskava'!P54='kuni 2025 detsember tegevuskava'!$P$107,'kuni 2025 detsember tegevuskava'!P54='kuni 2025 detsember tegevuskava'!$P$109,'kuni 2025 detsember tegevuskava'!P54='kuni 2025 detsember tegevuskava'!$P$110,'kuni 2025 detsember tegevuskava'!P54='kuni 2025 detsember tegevuskava'!$P$111),1,'kuni 2025 detsember tegevuskava'!P54='kuni 2025 detsember tegevuskava'!$P$112,2,'kuni 2025 detsember tegevuskava'!P54='kuni 2025 detsember tegevuskava'!$P$113,2,'kuni 2025 detsember tegevuskava'!P54='kuni 2025 detsember tegevuskava'!$P$108,3) -> 1 | I135: =SUM(I136:I137) -> 2,000,000 | K135: =SUM(K136:K137) -> 0 | M135: =SUM(M136:M137) -> 0 | O135: =SUM(O136:O137) -> 2,000,000
I136: =SUM(K136+M136+O136) -> 2,000,000 | J136: ="(50)" -> (50) | K136: ='kuni 2025 detsember tegevuskava'!Y54 -> 0 | L136: ="(50)" -> (50) | M136: ='kuni 2025 detsember tegevuskava'!AB54 -> 0 | N136: ="(50)" -> (50) | O136: ='kuni 2025 detsember tegevuskava'!AE54 -> 2,000,000 | P136: ="(50)" -> (50)
I137: =SUM(K137+M137+O137) -> 0 | J137: ="(55)" -> (55) | K137: ='kuni 2025 detsember tegevuskava'!Z54 -> 0 | L137: ="(55)" -> (55) | M137: ='kuni 2025 detsember tegevuskava'!AC54 -> 0 | N137: ="(55)" -> (55) | O137: ='kuni 2025 detsember tegevuskava'!AF60 -> 0 | P137: ="(55)" -> (55)
I138: Summa koos käibemaksuga:
I139: =SUM(I140:I141) -> 2,000,000 | K139: =SUM(K140:K141) -> 0 | M139: =SUM(M140:M141) -> 0 | O139: =SUM(O140:O141) -> 2,000,000
I140: =SUM(K140+M140+O140) -> 2,000,000 | J140: ="(50)" -> (50) | K140: =K136 -> 0 | L140: ="(50)" -> (50) | M140: =M136 -> 0 | N140: ="(50)" -> (50) | O140: =O136 -> 2,000,000 | P140: ="(50)" -> (50)
I141: =SUM(K141+M141+O141) -> 0 | J141: ="(55)" -> (55) | K141: =SUM(K137*1.2) -> 0 | L141: ="(55)" -> (55) | M141: =SUM(M137*1.22) -> 0 | N141: ="(55)" -> (55) | O141: =SUM(O137*1.22) -> 0 | P141: ="(55)" -> (55)
B142: ='kuni 2025 detsember tegevuskava'!A55&"/"&'kuni 2025 detsember tegevuskava'!B55 -> MKM/RIT | C142: ='kuni 2025 detsember tegevuskava'!I55 -> Eri-ja lisateenused, mida on rahastatud RRFst. Asutused on teenuste konsolideerimisega andnud eelarvet kaasa vähem, kui teenuseosutamiseks vajalik on | D142: ='kuni 2025 detsember tegevuskava'!J55 -> RRF JÄTK RIT klientide eri- ja lisateenused | E142: ='kuni 2025 detsember tegevuskava'!K55 -> Lisateenuste osutamine asutustele saab jätkuda. Peamised kulud on haldamisega seotud personalikulud | F142: ='kuni 2025 detsember tegevuskava'!P55&"/" -> RES IKT (vaja juurde taotleda)/ | G142: =_xlfn.IFS('kuni 2025 detsember tegevuskava'!G55='kuni 2025 detsember tegevuskava'!$G$107,1,'kuni 2025 detsember tegevuskava'!G55='kuni 2025 detsember tegevuskava'!$G$108,2,'kuni 2025 detsember tegevuskava'!G55='kuni 2025 detsember tegevuskava'!$G$109,3,'kuni 2025 detsember tegevuskava'!G55='kuni 2025 detsember tegevuskava'!$G$110,4) -> 4 | H142: =_xlfn.IFS(OR('kuni 2025 detsember tegevuskava'!P55='kuni 2025 detsember tegevuskava'!$P$107,'kuni 2025 detsember tegevuskava'!P55='kuni 2025 detsember tegevuskava'!$P$109,'kuni 2025 detsember tegevuskava'!P55='kuni 2025 detsember tegevuskava'!$P$110,'kuni 2025 detsember tegevuskava'!P55='kuni 2025 detsember tegevuskava'!$P$111),1,'kuni 2025 detsember tegevuskava'!P55='kuni 2025 detsember tegevuskava'!$P$112,2,'kuni 2025 detsember tegevuskava'!P55='kuni 2025 detsember tegevuskava'!$P$113,2,'kuni 2025 detsember tegevuskava'!P55='kuni 2025 detsember tegevuskava'!$P$108,3) -> 1 | I142: =SUM(I143:I144) -> 3,144,621 | K142: =SUM(K143:K144) -> 0 | M142: =SUM(M143:M144) -> 0 | O142: =SUM(O143:O144) -> 3,144,621
I143: =SUM(K143+M143+O143) -> 2,246,235 | J143: ="(50)" -> (50) | K143: ='kuni 2025 detsember tegevuskava'!Y55 -> 0 | L143: ="(50)" -> (50) | M143: ='kuni 2025 detsember tegevuskava'!AB55 -> 0 | N143: ="(50)" -> (50) | O143: ='kuni 2025 detsember tegevuskava'!AE55 -> 2,246,235 | P143: ="(50)" -> (50)
I144: =SUM(K144+M144+O144) -> 898,386 | J144: ="(55)" -> (55) | K144: ='kuni 2025 detsember tegevuskava'!Z55 -> 0 | L144: ="(55)" -> (55) | M144: ='kuni 2025 detsember tegevuskava'!AC55 -> 0 | N144: ="(55)" -> (55) | O144: ='kuni 2025 detsember tegevuskava'!AF55 -> 898,386 | P144: ="(55)" -> (55)
I145: Summa koos käibemaksuga:
I146: =SUM(I147:I148) -> 3,342,266 | K146: =SUM(K147:K148) -> 0 | M146: =SUM(M147:M148) -> 0 | O146: =SUM(O147:O148) -> 3,342,266
I147: =SUM(K147+M147+O147) -> 2,246,235 | J147: ="(50)" -> (50) | K147: =K143 -> 0 | L147: ="(50)" -> (50) | M147: =M143 -> 0 | N147: ="(50)" -> (50) | O147: =O143 -> 2,246,235 | P147: ="(50)" -> (50)
I148: =SUM(K148+M148+O148) -> 1,096,031 | J148: ="(55)" -> (55) | K148: =SUM(K144*1.2) -> 0 | L148: ="(55)" -> (55) | M148: =SUM(M144*1.22) -> 0 | N148: ="(55)" -> (55) | O148: =SUM(O144*1.22) -> 1,096,031 | P148: ="(55)" -> (55)
B149: ='kuni 2025 detsember tegevuskava'!A58&"/"&'kuni 2025 detsember tegevuskava'!B58 -> MKM/RIT | C149: ='kuni 2025 detsember tegevuskava'!I58 -> Riigiülene avalike pilvede kompetents ning keskve vaade puudub | D149: ='kuni 2025 detsember tegevuskava'!J58 -> Avalike pilvede kompetentsikeskuse loomine | E149: ='kuni 2025 detsember tegevuskava'!K58 -> Kompententsikeskus on loodud ning töötab. 2025 alustatakse välise partneriga ning värvatakse positsioonid RITi. | F149: ='kuni 2025 detsember tegevuskava'!P58&"/" -> RES IKT (vaja juurde taotleda)/ | G149: =_xlfn.IFS('kuni 2025 detsember tegevuskava'!G58='kuni 2025 detsember tegevuskava'!$G$107,1,'kuni 2025 detsember tegevuskava'!G58='kuni 2025 detsember tegevuskava'!$G$108,2,'kuni 2025 detsember tegevuskava'!G58='kuni 2025 detsember tegevuskava'!$G$109,3,'kuni 2025 detsember tegevuskava'!G58='kuni 2025 detsember tegevuskava'!$G$110,4) -> 4 | H149: =_xlfn.IFS(OR('kuni 2025 detsember tegevuskava'!P58='kuni 2025 detsember tegevuskava'!$P$107,'kuni 2025 detsember tegevuskava'!P58='kuni 2025 detsember tegevuskava'!$P$109,'kuni 2025 detsember tegevuskava'!P58='kuni 2025 detsember tegevuskava'!$P$110,'kuni 2025 detsember tegevuskava'!P58='kuni 2025 detsember tegevuskava'!$P$111),1,'kuni 2025 detsember tegevuskava'!P58='kuni 2025 detsember tegevuskava'!$P$112,2,'kuni 2025 detsember tegevuskava'!P58='kuni 2025 detsember tegevuskava'!$P$113,2,'kuni 2025 detsember tegevuskava'!P58='kuni 2025 detsember tegevuskava'!$P$108,3) -> 1 | I149: =SUM(I150:I151) -> 219,500 | K149: =SUM(K150:K151) -> 0 | M149: =SUM(M150:M151) -> 0 | O149: =SUM(O150:O151) -> 219,500
I150: =SUM(K150+M150+O150) -> 119,500 | J150: ="(50)" -> (50) | K150: ='kuni 2025 detsember tegevuskava'!Y58 -> 0 | L150: ="(50)" -> (50) | M150: ='kuni 2025 detsember tegevuskava'!AB58 -> 0 | N150: ="(50)" -> (50) | O150: ='kuni 2025 detsember tegevuskava'!AE58 -> 119,500 | P150: ="(50)" -> (50)
I151: =SUM(K151+M151+O151) -> 100,000 | J151: ="(55)" -> (55) | K151: ='kuni 2025 detsember tegevuskava'!Z58 -> 0 | L151: ="(55)" -> (55) | M151: ='kuni 2025 detsember tegevuskava'!AC58 -> 0 | N151: ="(55)" -> (55) | O151: ='kuni 2025 detsember tegevuskava'!AF58 -> 100,000 | P151: ="(55)" -> (55)
I152: Summa koos käibemaksuga:
I153: =SUM(I154:I155) -> 241,500 | K153: =SUM(K154:K155) -> 0 | M153: =SUM(M154:M155) -> 0 | O153: =SUM(O154:O155) -> 241,500
I154: =SUM(K154+M154+O154) -> 119,500 | J154: ="(50)" -> (50) | K154: =K150 -> 0 | L154: ="(50)" -> (50) | M154: =M150 -> 0 | N154: ="(50)" -> (50) | O154: =O150 -> 119,500 | P154: ="(50)" -> (50)
I155: =SUM(K155+M155+O155) -> 122,000 | J155: ="(55)" -> (55) | K155: =SUM(K151*1.2) -> 0 | L155: ="(55)" -> (55) | M155: =SUM(M151*1.22) -> 0 | N155: ="(55)" -> (55) | O155: =SUM(O151*1.22) -> 122,000 | P155: ="(55)" -> (55)
B156: ='kuni 2025 detsember tegevuskava'!A61&"/"&'kuni 2025 detsember tegevuskava'!B61 -> MKM/RIKS | C156: ='kuni 2025 detsember tegevuskava'!I61 -> Puuduvad ühtsed juhtimispõhimõtted ja on vajadus selgete juhtrollide defineerimiseks, sh juhtide digipädevuste defineerimiseks, et RIKS suudaks kiiremini reageerida digimuutustele ja kasutaksime töös kaasaegseid digitaalseid lahendusi, mis aitaksid juurutada andmete- ja teenusepõhise juhtimise | D156: ='kuni 2025 detsember tegevuskava'!J61 -> RIKS juhtide arenguprogramm: juhtimispõhimõtete loomine ja juhtide digipädevuste kaardistamine 2024 | E156: ='kuni 2025 detsember tegevuskava'!K61 -> RIKS juhtimispõhimõtted, sh juhtrollid kokku lepitud ja nende digipädevused kaardistatud. | F156: ='kuni 2025 detsember tegevuskava'!P61&"/" -> SF 21-27 (taotletav raha)/ | G156: =_xlfn.IFS('kuni 2025 detsember tegevuskava'!G61='kuni 2025 detsember tegevuskava'!$G$107,1,'kuni 2025 detsember tegevuskava'!G61='kuni 2025 detsember tegevuskava'!$G$108,2,'kuni 2025 detsember tegevuskava'!G61='kuni 2025 detsember tegevuskava'!$G$109,3,'kuni 2025 detsember tegevuskava'!G61='kuni 2025 detsember tegevuskava'!$G$110,4) -> 3 | H156: =_xlfn.IFS(OR('kuni 2025 detsember tegevuskava'!P61='kuni 2025 detsember tegevuskava'!$P$107,'kuni 2025 detsember tegevuskava'!P61='kuni 2025 detsember tegevuskava'!$P$109,'kuni 2025 detsember tegevuskava'!P61='kuni 2025 detsember tegevuskava'!$P$110,'kuni 2025 detsember tegevuskava'!P61='kuni 2025 detsember tegevuskava'!$P$111),1,'kuni 2025 detsember tegevuskava'!P61='kuni 2025 detsember tegevuskava'!$P$112,2,'kuni 2025 detsember tegevuskava'!P61='kuni 2025 detsember tegevuskava'!$P$113,2,'kuni 2025 detsember tegevuskava'!P61='kuni 2025 detsember tegevuskava'!$P$108,3) -> 2 | I156: =SUM(I157:I157) -> 15,000 | K156: =SUM(K157:K157) -> 0 | M156: =SUM(M157:M157) -> 15,000 | O156: =SUM(O157:O157) -> 0
I157: =SUM(K157+M157+O157) -> 15,000 | J157: ="(55)" -> (55) | K157: ='kuni 2025 detsember tegevuskava'!Z61 -> 0 | L157: ="(55)" -> (55) | M157: ='kuni 2025 detsember tegevuskava'!AC61 -> 15,000 | N157: ="(55)" -> (55) | O157: ='kuni 2025 detsember tegevuskava'!AF61 -> 0 | P157: ="(55)" -> (55)
I158: Summa koos käibemaksuga:
I159: =SUM(I160:I160) -> 18,300 | K159: =SUM(K160:K160) -> 0 | M159: =SUM(M160:M160) -> 18,300 | O159: =SUM(O160:O160) -> 0
I160: =SUM(K160+M160+O160) -> 18,300 | J160: ="(55)" -> (55) | K160: =SUM(K157*1.2) -> 0 | L160: ="(55)" -> (55) | M160: =SUM(M157*1.22) -> 18,300 | N160: ="(55)" -> (55) | O160: =SUM(O157*1.22) -> 0 | P160: ="(55)" -> (55)
B161: ='kuni 2025 detsember tegevuskava'!A62&"/"&'kuni 2025 detsember tegevuskava'!B62 -> MKM/MKM | C161: ='kuni 2025 detsember tegevuskava'!I62 -> MKM kui digioskuste näidisasutus ei oska kasutada kasutuselolevaid Microsoft tööriistu ja uut tööplaani keskkonda Viva Goals. | D161: ='kuni 2025 detsember tegevuskava'!J62 -> Microsofti keskkonna koolitused (sh tööplaani keskkond) MKM teenistujatele | E161: ='kuni 2025 detsember tegevuskava'!K62 -> Koolituste tulemusena oskavad MKMi teenistujad kasutada Microsofti keskkondi paremini kasutada, oskavad täita tööplaani. Microsofti keskkonnale üleminek toetab teenus- ja andmepõhisele juhtimisele üleminekut. | F161: ='kuni 2025 detsember tegevuskava'!P62&"/" -> SF 21-27 (taotletav raha)/ | G161: =_xlfn.IFS('kuni 2025 detsember tegevuskava'!G62='kuni 2025 detsember tegevuskava'!$G$107,1,'kuni 2025 detsember tegevuskava'!G62='kuni 2025 detsember tegevuskava'!$G$108,2,'kuni 2025 detsember tegevuskava'!G62='kuni 2025 detsember tegevuskava'!$G$109,3,'kuni 2025 detsember tegevuskava'!G62='kuni 2025 detsember tegevuskava'!$G$110,4) -> 3 | H161: =_xlfn.IFS(OR('kuni 2025 detsember tegevuskava'!P62='kuni 2025 detsember tegevuskava'!$P$107,'kuni 2025 detsember tegevuskava'!P62='kuni 2025 detsember tegevuskava'!$P$109,'kuni 2025 detsember tegevuskava'!P62='kuni 2025 detsember tegevuskava'!$P$110,'kuni 2025 detsember tegevuskava'!P62='kuni 2025 detsember tegevuskava'!$P$111),1,'kuni 2025 detsember tegevuskava'!P62='kuni 2025 detsember tegevuskava'!$P$112,2,'kuni 2025 detsember tegevuskava'!P62='kuni 2025 detsember tegevuskava'!$P$113,2,'kuni 2025 detsember tegevuskava'!P62='kuni 2025 detsember tegevuskava'!$P$108,3) -> 2 | I161: =SUM(I162:I162) -> 45,000 | K161: =SUM(K162:K162) -> 0 | M161: =SUM(M162:M162) -> 30,000 | O161: =SUM(O162:O162) -> 15,000
I162: =SUM(K162+M162+O162) -> 45,000 | J162: ="(55)" -> (55) | K162: ='kuni 2025 detsember tegevuskava'!Z62 -> 0 | L162: ="(55)" -> (55) | M162: ='kuni 2025 detsember tegevuskava'!AC62 -> 30,000 | N162: ="(55)" -> (55) | O162: ='kuni 2025 detsember tegevuskava'!AF62 -> 15,000 | P162: ="(55)" -> (55)
I163: Summa koos käibemaksuga:
I164: =SUM(I165:I165) -> 54,900 | K164: =SUM(K165:K165) -> 0 | M164: =SUM(M165:M165) -> 36,600 | O164: =SUM(O165:O165) -> 18,300
I165: =SUM(K165+M165+O165) -> 54,900 | J165: ="(55)" -> (55) | K165: =SUM(K162*1.2) -> 0 | L165: ="(55)" -> (55) | M165: =SUM(M162*1.22) -> 36,600 | N165: ="(55)" -> (55) | O165: =SUM(O162*1.22) -> 18,300 | P165: ="(55)" -> (55)
B166: ='kuni 2025 detsember tegevuskava'!A63&"/"&'kuni 2025 detsember tegevuskava'!B63 -> MKM/RIA | C166: ='kuni 2025 detsember tegevuskava'!I63 -> Tootejuhid täidavad projektijuhtide ülesandeid pigem kui et jõuavad tegeleda tootejuhtimisega. Tootejuhid täna juhivad arendusmeeskondi, kirjutavad täismahus ise hankeid jne. Mis tähendab, et toote elukaare eest hoolitsemine on teisejärguline, kuna lihtsalt inimlikult ei jää aega üle arenduste juhtimise kõrvalt. | D166: ='kuni 2025 detsember tegevuskava'!J63 -> eesti.ee arendusprotsessi toimimise tagamine, 2x tehniline projektijuhi FTE | E166: ='kuni 2025 detsember tegevuskava'!K63 -> Nii toote elukaar on juhitud kui ka aktiivsed arendusprojektid. | F166: ='kuni 2025 detsember tegevuskava'!P63&"/" -> RES IKT (vaja juurde taotleda)/ | G166: =_xlfn.IFS('kuni 2025 detsember tegevuskava'!G63='kuni 2025 detsember tegevuskava'!$G$107,1,'kuni 2025 detsember tegevuskava'!G63='kuni 2025 detsember tegevuskava'!$G$108,2,'kuni 2025 detsember tegevuskava'!G63='kuni 2025 detsember tegevuskava'!$G$109,3,'kuni 2025 detsember tegevuskava'!G63='kuni 2025 detsember tegevuskava'!$G$110,4) -> 1 | H166: =_xlfn.IFS(OR('kuni 2025 detsember tegevuskava'!P63='kuni 2025 detsember tegevuskava'!$P$107,'kuni 2025 detsember tegevuskava'!P63='kuni 2025 detsember tegevuskava'!$P$109,'kuni 2025 detsember tegevuskava'!P63='kuni 2025 detsember tegevuskava'!$P$110,'kuni 2025 detsember tegevuskava'!P63='kuni 2025 detsember tegevuskava'!$P$111),1,'kuni 2025 detsember tegevuskava'!P63='kuni 2025 detsember tegevuskava'!$P$112,2,'kuni 2025 detsember tegevuskava'!P63='kuni 2025 detsember tegevuskava'!$P$113,2,'kuni 2025 detsember tegevuskava'!P63='kuni 2025 detsember tegevuskava'!$P$108,3) -> 1 | I166: =SUM(I167:I167) -> 52,500 | K166: =SUM(K167:K167) -> 0 | M166: =SUM(M167:M167) -> 0 | O166: =SUM(O167:O167) -> 52,500
I167: =SUM(K167+M167+O167) -> 52,500 | J167: ="(50)" -> (50) | K167: ='kuni 2025 detsember tegevuskava'!Y63 -> 0 | L167: ="(50)" -> (50) | M167: ='kuni 2025 detsember tegevuskava'!AB63 -> 0 | N167: ="(50)" -> (50) | O167: ='kuni 2025 detsember tegevuskava'!AE63 -> 52,500 | P167: ="(50)" -> (50)
I168: Summa koos käibemaksuga:
I169: =SUM(I170:I170) -> 52,500 | K169: =SUM(K170:K170) -> 0 | M169: =SUM(M170:M170) -> 0 | O169: =SUM(O170:O170) -> 52,500
I170: =SUM(K170+M170+O170) -> 52,500 | J170: ="(50)" -> (50) | K170: ='kuni 2025 detsember tegevuskava'!Y63 -> 0 | L170: ="(50)" -> (50) | M170: =M167 -> 0 | N170: ="(50)" -> (50) | O170: =O167 -> 52,500 | P170: ="(50)" -> (50)
B171: ='kuni 2025 detsember tegevuskava'!A67&"/"&'kuni 2025 detsember tegevuskava'!B67 -> MKM/RIA | C171: ='kuni 2025 detsember tegevuskava'!I67 -> Eesti ja Euroopa küberturvalisuse kompetents on fragmenteerunud, spetsialiste on puudu, teadlased ja ettevõtjad tegutsevad suuresti oma silodes, turul pole teenusepakkujate vahelist konkurentsi ning võrreldavaid teenuseid, küberiduettevõtted kaovad digi-idude vahele ära. Tulevikutehnoloogiate turvalisusega tegeletakse alles tagantjärgi ning tihti loodetakse välisele (sh ELi-välisele) kompetentsile, kust tellida küberturvalisuse teenuseid (koolitusi, uuringuid, ohuteavet, praktilist konsultatsiooni). Euroopa küberturvalisuse kompetentsikeskuse ja riiklike koordineerimisüksuste (mille rolli täidab RIA) võrgustik lahendab probleemi Euroopa-üleselt. Euroopa küberkompetentsikeskus on valmis riiklikke koordineerimisüksuseid edaspidigi toetama (2025+), riigieelarvelise omaosaluse olemasolul. Et Eesti koordineerimisüksus saaks täita ELi regulatsioonist tulenevaid ülesandeid ja Eesti küberkompetents kasvaks, on vaja täiendavat püsirahastust-omaosalust aastateks 2025+ | D171: ='kuni 2025 detsember tegevuskava'!J67 -> Euroopa küberkompetentsikeskuse Eesti koordinatsioonikeskuse jätkusuutlikkuse tagamise tegevus (omaosalus ELi projektist 50% taotlemisel) | E171: ='kuni 2025 detsember tegevuskava'!K67 -> Vajadus on 2025-2028. Kululiigid: personalikulu, toetused kolmandatele osapooltele (küberpööre EASiga, küberiduettevõtted), koolitused ja treeningud, teadmussiirdeprojektid, ürituste korraldamise kulu. Tulemuseks järgmised sihid, et senisest enam ettevõtteid pakub ja tarbib küberturvalisuse teenuseid; digitaliseerivatel ja uusi tehnoloogiaid rakendavatel ettevõtetel on juhendeid turvalisuse osas; et senisest enam naisi ja tüdrukuid osaleb küberturvalisuse õppes (spetsialistidest kuni juhtideni), et võtmetähtsusega mitte-IT valdkondade väljaõppes (ärijuhid, ettevõtjad, õpetajad, avaliku halduse, sotsiaalia, aga ka loomemajanduse ja põllumajanduse spetsialistid) on integreeritud küberturvalisuse õpiväljundid, et senisest enam konverteeritakse küberturvalisuse akadeemilise teadustöö tulemeid iduettevõtete teenusteks ja toodeteks, et senisest enam Eesti ettevõtteid ja teadusasutusi osaleb küberturvalisuse Euroopa projektivoorudes ning on sealt saanud positiivse rahastusotsuse | F171: ='kuni 2025 detsember tegevuskava'!P67&"/" -> Muu rahastus/ | G171: =_xlfn.IFS('kuni 2025 detsember tegevuskava'!G67='kuni 2025 detsember tegevuskava'!$G$107,1,'kuni 2025 detsember tegevuskava'!G67='kuni 2025 detsember tegevuskava'!$G$108,2,'kuni 2025 detsember tegevuskava'!G67='kuni 2025 detsember tegevuskava'!$G$109,3,'kuni 2025 detsember tegevuskava'!G67='kuni 2025 detsember tegevuskava'!$G$110,4) -> 2 | H171: =_xlfn.IFS(OR('kuni 2025 detsember tegevuskava'!P67='kuni 2025 detsember tegevuskava'!$P$107,'kuni 2025 detsember tegevuskava'!P67='kuni 2025 detsember tegevuskava'!$P$109,'kuni 2025 detsember tegevuskava'!P67='kuni 2025 detsember tegevuskava'!$P$110,'kuni 2025 detsember tegevuskava'!P67='kuni 2025 detsember tegevuskava'!$P$111),1,'kuni 2025 detsember tegevuskava'!P67='kuni 2025 detsember tegevuskava'!$P$112,2,'kuni 2025 detsember tegevuskava'!P67='kuni 2025 detsember tegevuskava'!$P$113,2,'kuni 2025 detsember tegevuskava'!P67='kuni 2025 detsember tegevuskava'!$P$108,3) -> 3 | I171: =SUM(I172:I173) -> 683,625 | K171: =SUM(K172:K173) -> 0 | M171: =SUM(M172:M173) -> 0 | O171: =SUM(O172:O173) -> 683,625
I172: =SUM(K172+M172+O172) -> 171,000 | J172: ="(50)" -> (50) | K172: ='kuni 2025 detsember tegevuskava'!Y67 -> 0 | L172: ="(50)" -> (50) | M172: ='kuni 2025 detsember tegevuskava'!AB67 -> 0 | N172: ="(50)" -> (50) | O172: ='kuni 2025 detsember tegevuskava'!AE67 -> 171,000 | P172: ="(50)" -> (50)
I173: =SUM(K173+M173+O173) -> 512,625 | J173: ="(55)" -> (55) | K173: ='kuni 2025 detsember tegevuskava'!Z67 -> 0 | L173: ="(55)" -> (55) | M173: ='kuni 2025 detsember tegevuskava'!AC67 -> 0 | N173: ="(55)" -> (55) | O173: ='kuni 2025 detsember tegevuskava'!AF67 -> 512,625 | P173: ="(55)" -> (55)
I174: Summa koos käibemaksuga:
I175: =SUM(I176:I177) -> 796,403 | K175: =SUM(K176:K177) -> 0 | M175: =SUM(M176:M177) -> 0 | O175: =SUM(O176:O177) -> 796,403
I176: =SUM(K176+M176+O176) -> 171,000 | J176: ="(50)" -> (50) | K176: =K172 -> 0 | L176: ="(50)" -> (50) | M176: =M172 -> 0 | N176: ="(50)" -> (50) | O176: =O172 -> 171,000 | P176: ="(50)" -> (50)
I177: =SUM(K177+M177+O177) -> 625,403 | J177: ="(55)" -> (55) | K177: =SUM(K173*1.2) -> 0 | L177: ="(55)" -> (55) | M177: =SUM(M173*1.22) -> 0 | N177: ="(55)" -> (55) | O177: =SUM(O173*1.22) -> 625,403 | P177: ="(55)" -> (55)
B178: ='kuni 2025 detsember tegevuskava'!A70&"/"&'kuni 2025 detsember tegevuskava'!B70 -> MKM/RIA | C178: ='kuni 2025 detsember tegevuskava'!I70 -> Tänane võimekus ei ole piisav RS-süsteemide haldamiseks ei tava- ega kriisiolukorras. | D178: ='kuni 2025 detsember tegevuskava'!J70 -> Kriisivalmiduse tagamine RS-süsteemides | E178: ='kuni 2025 detsember tegevuskava'!K70 -> • Tekib 24/7 võimekus kriisihalduseks lühikese perioodi vältel. • Töötlussüsteemid on hallatud, intsidente ei esine. • Tagatud on RIA kui küberturvalisuse kompetentsikeskuse töö kriisiolukorras, sh operatiivinfo vahetamine partneritega. | F178: ='kuni 2025 detsember tegevuskava'!P70&"/" -> RES IKT (vaja juurde taotleda)/ | G178: =_xlfn.IFS('kuni 2025 detsember tegevuskava'!G70='kuni 2025 detsember tegevuskava'!$G$107,1,'kuni 2025 detsember tegevuskava'!G70='kuni 2025 detsember tegevuskava'!$G$108,2,'kuni 2025 detsember tegevuskava'!G70='kuni 2025 detsember tegevuskava'!$G$109,3,'kuni 2025 detsember tegevuskava'!G70='kuni 2025 detsember tegevuskava'!$G$110,4) -> 2 | H178: =_xlfn.IFS(OR('kuni 2025 detsember tegevuskava'!P70='kuni 2025 detsember tegevuskava'!$P$107,'kuni 2025 detsember tegevuskava'!P70='kuni 2025 detsember tegevuskava'!$P$109,'kuni 2025 detsember tegevuskava'!P70='kuni 2025 detsember tegevuskava'!$P$110,'kuni 2025 detsember tegevuskava'!P70='kuni 2025 detsember tegevuskava'!$P$111),1,'kuni 2025 detsember tegevuskava'!P70='kuni 2025 detsember tegevuskava'!$P$112,2,'kuni 2025 detsember tegevuskava'!P70='kuni 2025 detsember tegevuskava'!$P$113,2,'kuni 2025 detsember tegevuskava'!P70='kuni 2025 detsember tegevuskava'!$P$108,3) -> 1 | I178: =SUM(I179:I179) -> 222,750 | K178: =SUM(K179:K179) -> 0 | M178: =SUM(M179:M179) -> 0 | O178: =SUM(O179:O179) -> 222,750
I179: =SUM(K179+M179+O179) -> 222,750 | J179: ="(50)" -> (50) | K179: ='kuni 2025 detsember tegevuskava'!Y70 -> 0 | L179: ="(50)" -> (50) | M179: ='kuni 2025 detsember tegevuskava'!AB70 -> 0 | N179: ="(50)" -> (50) | O179: ='kuni 2025 detsember tegevuskava'!AE70 -> 222,750 | P179: ="(50)" -> (50)
I180: Summa koos käibemaksuga:
I181: =SUM(I182:I182) -> 222,750 | K181: =SUM(K182:K182) -> 0 | M181: =SUM(M182:M182) -> 0 | O181: =SUM(O182:O182) -> 222,750
I182: =SUM(K182+M182+O182) -> 222,750 | J182: ="(50)" -> (50) | K182: =K179 -> 0 | L182: ="(50)" -> (50) | M182: =M179 -> 0 | N182: ="(50)" -> (50) | O182: =O179 -> 222,750 | P182: ="(50)" -> (50)
B183: ='kuni 2025 detsember tegevuskava'!A77&"/"&'kuni 2025 detsember tegevuskava'!B77 -> MKM/DAO | C183: ='kuni 2025 detsember tegevuskava'!I77 -> SF rahastusest väljumine. Riigiasutused ja kohalikud omavalitsused on loonud teenistujate ning laiema avalikkuse koolitamise eesmärgil e-kursuseid, mis vajavad kättesaadavuseks veebiplatvormi. Keskse ning turvalist autentimist võimaldava platvormi olemasolu aitab hoida kokku ressursse, mis vastasel juhul kuluks sarnaste platvormide paralleelsele ülalhoiule asutuste poolt. Kui iga asutus looks eraldiseisva e-õppe platvormi, siis hinnanguline kulu aastas asutuse kohta oleks 40 000 eurot aastas. (Liitunuid asutusi 6, 2024 liituda soovijaid 7). Rahastuse puudumisel tuleb keskkond sulgeda, mis toob olemasolevate e-kursuste ümberkolimise vajaduse, kuid riigiülese platvormi puudumisel ei ole kursuseid kuhugi majutada. Lisaks olemasolevate e-kursuste majutamise probleemile tuleb taas hakata rohkem klassiruumi koolitusi korraldama, mis ei ole kuluefektiivne. | D183: ='kuni 2025 detsember tegevuskava'!J77 -> Digiriigi Akadeemia kui avaliku sektori keskse e-õppe platvormi ülalhoid ning käideldavuse parandamine | E183: ='kuni 2025 detsember tegevuskava'!K77 -> 2025-2028 - varem SF-st arendatu ülalhoid ning hooldamine (platvormi hoolduse täisteenus ühelt IT-majalt, sh server, Kubernetes, kasutajalitsentsid e-kursuste loomiseks, tootejuhi, süsteemiadministraatori, klienditoe spetsialisti ja arendaja palgafond). Planeeritud tegevused võimaldavad tagada platvormi käideldavuse ja kvaliteedi kasvava kliendibaasi tingimustes (lisanduvad asutused ning kasutajad). Läbi ressursside kokkuhoiu, paindlikkuse ja strateegiliselt oluliste teadmiste koondamise, toetab Digiriigi Akadeemia ühtse standardi abil avaliku sektori töötajate arendamist. | F183: ='kuni 2025 detsember tegevuskava'!P77&"/" -> RES IKT (vaja juurde taotleda)/ | G183: =_xlfn.IFS('kuni 2025 detsember tegevuskava'!G77='kuni 2025 detsember tegevuskava'!$G$107,1,'kuni 2025 detsember tegevuskava'!G77='kuni 2025 detsember tegevuskava'!$G$108,2,'kuni 2025 detsember tegevuskava'!G77='kuni 2025 detsember tegevuskava'!$G$109,3,'kuni 2025 detsember tegevuskava'!G77='kuni 2025 detsember tegevuskava'!$G$110,4) -> 3 | H183: =_xlfn.IFS(OR('kuni 2025 detsember tegevuskava'!P77='kuni 2025 detsember tegevuskava'!$P$107,'kuni 2025 detsember tegevuskava'!P77='kuni 2025 detsember tegevuskava'!$P$109,'kuni 2025 detsember tegevuskava'!P77='kuni 2025 detsember tegevuskava'!$P$110,'kuni 2025 detsember tegevuskava'!P77='kuni 2025 detsember tegevuskava'!$P$111),1,'kuni 2025 detsember tegevuskava'!P77='kuni 2025 detsember tegevuskava'!$P$112,2,'kuni 2025 detsember tegevuskava'!P77='kuni 2025 detsember tegevuskava'!$P$113,2,'kuni 2025 detsember tegevuskava'!P77='kuni 2025 detsember tegevuskava'!$P$108,3) -> 1 | I183: =SUM(I184:I186) -> 150,944 | K183: =SUM(K184:K186) -> 0 | M183: =SUM(M184:M186) -> 0 | O183: =SUM(O184:O186) -> 150,944
I184: =SUM(K184+M184+O184) -> 0 | J184: ="(15)" -> (15) | K184: ='kuni 2025 detsember tegevuskava'!X77 -> 0 | L184: ="(15)" -> (15) | M184: ='kuni 2025 detsember tegevuskava'!AA77 -> 0 | N184: ="(15)" -> (15) | O184: ='kuni 2025 detsember tegevuskava'!AD77 -> 0 | P184: ="(15)" -> (15)
I185: =SUM(K185+M185+O185) -> 74,904 | J185: ="(50)" -> (50) | K185: ='kuni 2025 detsember tegevuskava'!Y77 -> 0 | L185: ="(50)" -> (50) | M185: ='kuni 2025 detsember tegevuskava'!AB77 -> 0 | N185: ="(50)" -> (50) | O185: ='kuni 2025 detsember tegevuskava'!AE77 -> 74,904 | P185: ="(50)" -> (50)
I186: =SUM(K186+M186+O186) -> 76,040 | J186: ="(55)" -> (55) | K186: ='kuni 2025 detsember tegevuskava'!Z77 -> 0 | L186: ="(55)" -> (55) | M186: ='kuni 2025 detsember tegevuskava'!AC77 -> 0 | N186: ="(55)" -> (55) | O186: ='kuni 2025 detsember tegevuskava'!AF77 -> 76,040 | P186: ="(55)" -> (55)
I187: Summa koos käibemaksuga:
I188: =SUM(I189:I191) -> 167,673 | K188: =SUM(K189:K191) -> 0 | M188: =SUM(M189:M191) -> 0 | O188: =SUM(O189:O191) -> 167,673
I189: =SUM(K189+M189+O189) -> 0 | J189: ="(15)" -> (15) | K189: =SUM(K184*1.2) -> 0 | L189: ="(15)" -> (15) | M189: =SUM(M184*1.22) -> 0 | N189: ="(15)" -> (15) | O189: =SUM(O184*1.22) -> 0 | P189: ="(15)" -> (15)
I190: =SUM(K190+M190+O190) -> 74,904 | J190: ="(50)" -> (50) | K190: =K185 -> 0 | L190: ="(50)" -> (50) | M190: =M185 -> 0 | N190: ="(50)" -> (50) | O190: =O185 -> 74,904 | P190: ="(50)" -> (50)
I191: =SUM(K191+M191+O191) -> 92,769 | J191: ="(55)" -> (55) | K191: =SUM(K186*1.2) -> 0 | L191: ="(55)" -> (55) | M191: =SUM(M186*1.22) -> 0 | N191: ="(55)" -> (55) | O191: =SUM(O186*1.22) -> 92,769 | P191: ="(55)" -> (55)
B192: ='kuni 2025 detsember tegevuskava'!A79&"/"&'kuni 2025 detsember tegevuskava'!B79 -> MKM/RKO | C192: ='kuni 2025 detsember tegevuskava'!I79 -> Rahastuse puudumisel võib tekkida olukord, kus küberturvalisuse strateegiad ja otsused tuginevad pelgalt isiklikele arvamustele, mitte põhjalikele teaduslikele uuringutele ja analüüsidele. RRFi rahastusest väljumine: Vajadus on hoida silma peal edaspidigi uutel tehnoloogiatel, uutel ohtudel ja nende jaoks vajalikke meetmeid rakendada | D192: ='kuni 2025 detsember tegevuskava'!J79 -> Riigisektori seisukohalt strateegiliselt oluliste uuringute ja analüüside tellimine, et tagada valdkonna süsteemne areng | E192: ='kuni 2025 detsember tegevuskava'!K79 -> Riigisektoril on kõrge teadlikkus uusimatest tehnoloogiatest, uutest ohtudest ja vajalikest meetmetest ohtude maandamiseks. | F192: ='kuni 2025 detsember tegevuskava'!P79&"/" -> RES IKT (vaja juurde taotleda)/ | G192: =_xlfn.IFS('kuni 2025 detsember tegevuskava'!G79='kuni 2025 detsember tegevuskava'!$G$107,1,'kuni 2025 detsember tegevuskava'!G79='kuni 2025 detsember tegevuskava'!$G$108,2,'kuni 2025 detsember tegevuskava'!G79='kuni 2025 detsember tegevuskava'!$G$109,3,'kuni 2025 detsember tegevuskava'!G79='kuni 2025 detsember tegevuskava'!$G$110,4) -> 2 | H192: =_xlfn.IFS(OR('kuni 2025 detsember tegevuskava'!P79='kuni 2025 detsember tegevuskava'!$P$107,'kuni 2025 detsember tegevuskava'!P79='kuni 2025 detsember tegevuskava'!$P$109,'kuni 2025 detsember tegevuskava'!P79='kuni 2025 detsember tegevuskava'!$P$110,'kuni 2025 detsember tegevuskava'!P79='kuni 2025 detsember tegevuskava'!$P$111),1,'kuni 2025 detsember tegevuskava'!P79='kuni 2025 detsember tegevuskava'!$P$112,2,'kuni 2025 detsember tegevuskava'!P79='kuni 2025 detsember tegevuskava'!$P$113,2,'kuni 2025 detsember tegevuskava'!P79='kuni 2025 detsember tegevuskava'!$P$108,3) -> 1 | I192: =SUM(I193:I193) -> 100,000 | K192: =SUM(K193:K193) -> 0 | M192: =SUM(M193:M193) -> 0 | O192: =SUM(O193:O193) -> 100,000
I193: =SUM(K193+M193+O193) -> 100,000 | J193: ="(55)" -> (55) | K193: ='kuni 2025 detsember tegevuskava'!Z79 -> 0 | L193: ="(55)" -> (55) | M193: ='kuni 2025 detsember tegevuskava'!AC79 -> 0 | N193: ="(55)" -> (55) | O193: ='kuni 2025 detsember tegevuskava'!AF79 -> 100,000 | P193: ="(55)" -> (55)
I194: Summa koos käibemaksuga:
I195: =SUM(I196:I196) -> 122,000 | K195: =SUM(K196:K196) -> 0 | M195: =SUM(M196:M196) -> 0 | O195: =SUM(O196:O196) -> 122,000
I196: =SUM(K196+M196+O196) -> 122,000 | J196: ="(55)" -> (55) | K196: =SUM(K193*1.2) -> 0 | L196: ="(55)" -> (55) | M196: =SUM(M193*1.22) -> 0 | N196: ="(55)" -> (55) | O196: =SUM(O193*1.22) -> 122,000 | P196: ="(55)" -> (55)
B197: ='kuni 2025 detsember tegevuskava'!A80&"/"&'kuni 2025 detsember tegevuskava'!B80 -> MKM/RKO | C197: ='kuni 2025 detsember tegevuskava'!I80 -> Rahastuse puudumisel ei pruugi digitaliseerimisega seotud riskid piisavalt maandatud saama. RRFi rahastusest väljumine: vajadus on parandada avaliku sektori, sh KOVide, teadlikkust riski- ja turbejuhtimisest | D197: ='kuni 2025 detsember tegevuskava'!J80 -> Töötoad või koolitused avalikule sektorile, sh KOVidele, riski- ja turbejuhtimise tõhustamiseks, varukoopiate taastamise testimiseks | E197: ='kuni 2025 detsember tegevuskava'!K80 -> Digitaliseerimisega seotud riskid on maandatud | F197: ='kuni 2025 detsember tegevuskava'!P80&"/" -> RES IKT (vaja juurde taotleda)/ | G197: =_xlfn.IFS('kuni 2025 detsember tegevuskava'!G80='kuni 2025 detsember tegevuskava'!$G$107,1,'kuni 2025 detsember tegevuskava'!G80='kuni 2025 detsember tegevuskava'!$G$108,2,'kuni 2025 detsember tegevuskava'!G80='kuni 2025 detsember tegevuskava'!$G$109,3,'kuni 2025 detsember tegevuskava'!G80='kuni 2025 detsember tegevuskava'!$G$110,4) -> 2 | H197: =_xlfn.IFS(OR('kuni 2025 detsember tegevuskava'!P80='kuni 2025 detsember tegevuskava'!$P$107,'kuni 2025 detsember tegevuskava'!P80='kuni 2025 detsember tegevuskava'!$P$109,'kuni 2025 detsember tegevuskava'!P80='kuni 2025 detsember tegevuskava'!$P$110,'kuni 2025 detsember tegevuskava'!P80='kuni 2025 detsember tegevuskava'!$P$111),1,'kuni 2025 detsember tegevuskava'!P80='kuni 2025 detsember tegevuskava'!$P$112,2,'kuni 2025 detsember tegevuskava'!P80='kuni 2025 detsember tegevuskava'!$P$113,2,'kuni 2025 detsember tegevuskava'!P80='kuni 2025 detsember tegevuskava'!$P$108,3) -> 1 | I197: =SUM(I198:I198) -> 25,000 | K197: =SUM(K198:K198) -> 0 | M197: =SUM(M198:M198) -> 0 | O197: =SUM(O198:O198) -> 25,000
I198: =SUM(K198+M198+O198) -> 25,000 | J198: ="(55)" -> (55) | K198: ='kuni 2025 detsember tegevuskava'!Z80 -> 0 | L198: ="(55)" -> (55) | M198: ='kuni 2025 detsember tegevuskava'!AC80 -> 0 | N198: ="(55)" -> (55) | O198: ='kuni 2025 detsember tegevuskava'!AF80 -> 25,000 | P198: ="(55)" -> (55)
I199: Summa koos käibemaksuga:
I200: =SUM(I201:I201) -> 30,500 | K200: =SUM(K201:K201) -> 0 | M200: =SUM(M201:M201) -> 0 | O200: =SUM(O201:O201) -> 30,500
I201: =SUM(K201+M201+O201) -> 30,500 | J201: ="(55)" -> (55) | K201: =SUM(K198*1.2) -> 0 | L201: ="(55)" -> (55) | M201: =SUM(M198*1.22) -> 0 | N201: ="(55)" -> (55) | O201: =SUM(O198*1.22) -> 30,500 | P201: ="(55)" -> (55)
B202: ='kuni 2025 detsember tegevuskava'!A81&"/"&'kuni 2025 detsember tegevuskava'!B81 -> MKM/RKO | C202: ='kuni 2025 detsember tegevuskava'!I81 -> Rahastuse puudumisel MKM RKO enam proaktiivse lähenemisega tulevikutehnoloogiate, tehnoloogiliste ohtude hindamise, tehnoloogiliste riskide halduse korraldamisega riigis, küber- ja riikliku ohupildi loomisega, arendustegevuste/uuringute lähteülesannete ja seisukohtade võtmisega ei tegele kuna puuduvad inimesed. Võib tekkida olukord, kus küberturvalisuse strateegiad ja otsused tuginevad pelgalt isiklikele arvamustele, mitte põhjalikele teaduslikele uuringutele ja analüüsidele, samuti ei ole EL-i teemad piisaval määral ülevõetud siseriiklikul tasemel. Näiteks EL tasemel kehtestatakse sertifitseerimisskeem, mis võib Eestis arendatud ja kasutusele võetud digitoote või üldse laiemalt EE “digiökosüsteemi” mitte sobivaks muuta (nt ID-kaartide sertifikaadid ja eIDAS teema). Osalisel rahastusel tuleb valida, millega riigiüleselt tegeletakse ja millega mitte. | D202: ='kuni 2025 detsember tegevuskava'!J81 -> Proaktiivne valdkonna juhtimine, sh tehnoloogiate, ohtude hindamine, sh tulevikutehnoloogiate uuringute, analüüside jm projektijuhtimine, tehnoloogiliste meetmete väljatöötamine, infoturbearengu seire, küpsushindamine, kriisijuhtimise tugi. | E202: ='kuni 2025 detsember tegevuskava'!K81 -> Proaktiivne valdkonna juhtimine, mis tagab digiteenuste turvalist arendamist ja kasutuselevõtmist. Tehnoloogiliste ohtude hindamine, tehnoloogiliste riskide halduse korraldamine riigis, küber- ja riikliku ohupildi loomine ja võimeid adresseerivate tehnoloogiliste meetmete väljatöötamine, infoturbe arengu seire ja küpsushindamine, kriisijuhtimise tugi. Proaktiivne lähenemine küberturvalisuse strateegiate loomiseks, tulevikukindluse tagamiseks, mis põhineb põhjalikel teaduslikel uuringutel ja analüüsidel, juhendmaterjalide ja analüüside läbiviimise tugi. | F202: ='kuni 2025 detsember tegevuskava'!P81&"/" -> RES IKT (vaja juurde taotleda)/ | G202: =_xlfn.IFS('kuni 2025 detsember tegevuskava'!G81='kuni 2025 detsember tegevuskava'!$G$107,1,'kuni 2025 detsember tegevuskava'!G81='kuni 2025 detsember tegevuskava'!$G$108,2,'kuni 2025 detsember tegevuskava'!G81='kuni 2025 detsember tegevuskava'!$G$109,3,'kuni 2025 detsember tegevuskava'!G81='kuni 2025 detsember tegevuskava'!$G$110,4) -> 2 | H202: =_xlfn.IFS(OR('kuni 2025 detsember tegevuskava'!P81='kuni 2025 detsember tegevuskava'!$P$107,'kuni 2025 detsember tegevuskava'!P81='kuni 2025 detsember tegevuskava'!$P$109,'kuni 2025 detsember tegevuskava'!P81='kuni 2025 detsember tegevuskava'!$P$110,'kuni 2025 detsember tegevuskava'!P81='kuni 2025 detsember tegevuskava'!$P$111),1,'kuni 2025 detsember tegevuskava'!P81='kuni 2025 detsember tegevuskava'!$P$112,2,'kuni 2025 detsember tegevuskava'!P81='kuni 2025 detsember tegevuskava'!$P$113,2,'kuni 2025 detsember tegevuskava'!P81='kuni 2025 detsember tegevuskava'!$P$108,3) -> 1 | I202: =SUM(I203:I203) -> 150,000 | K202: =SUM(K203:K203) -> 0 | M202: =SUM(M203:M203) -> 0 | O202: =SUM(O203:O203) -> 150,000
I203: =SUM(K203+M203+O203) -> 150,000 | J203: ="(50)" -> (50) | K203: ='kuni 2025 detsember tegevuskava'!Y81 -> 0 | L203: ="(50)" -> (50) | M203: ='kuni 2025 detsember tegevuskava'!AB81 -> 0 | N203: ="(50)" -> (50) | O203: ='kuni 2025 detsember tegevuskava'!AE81 -> 150,000 | P203: ="(50)" -> (50)
I204: Summa koos käibemaksuga:
I205: =SUM(I206:I206) -> 150,000 | K205: =SUM(K206:K206) -> 0 | M205: =SUM(M206:M206) -> 0 | O205: =SUM(O206:O206) -> 150,000
I206: =SUM(K206+M206+O206) -> 150,000 | J206: ="(50)" -> (50) | K206: =K203 -> 0 | L206: ="(50)" -> (50) | M206: =M203 -> 0 | N206: ="(50)" -> (50) | O206: =O203 -> 150,000 | P206: ="(50)" -> (50)
B207: ='kuni 2025 detsember tegevuskava'!A82&"/"&'kuni 2025 detsember tegevuskava'!B82 -> MKM/DAO | C207: ='kuni 2025 detsember tegevuskava'!I82 -> Andmesaatkonna rendikulud koos elektriga on MKM kanda. Kuna ettenähtud eelarvest jäi puudu MKM-il 2023, siis 2024 saime ühekordselt raha juurde, aga tulevikuks oleks vaja püsikulude katmiseks tõsta olemasolevat eelarvet. Kulu suureneb, kuna elektrihind on läinud aastatega kallimaks ja lisaks paigaldatakse 2024 aasta rohkem riistvra saatkonna ruumidesse, mis kõiks tarbivad voolu. Andmesaatkonna teenuse kulusid teistelt haldusaladelt ei küsita ja seda makstakse MKM poolt keskselt kinni. Mis juhtub, kui raha ei saa - Riistvara on ostetud eurorahade eest ja peab olema töös veel järgnevad viis aastat. Kui me ei suuda maksta halduskulusi näiteks elektri arveid, ei saa ka teenused püsti olla nende serverite peal. | D207: ='kuni 2025 detsember tegevuskava'!J82 -> Andmesaatkonna püsikulude suurendamiseks kulude kate | E207: ='kuni 2025 detsember tegevuskava'!K82 -> Andmesaatkonnal toimub 2024 oluline riistvra suurendamine, mis tähendab, et põüsikulud kasvavad. Seadmed tarbivad rohkem vool näiteks. | F207: ='kuni 2025 detsember tegevuskava'!P82&"/" -> RES IKT (vaja juurde taotleda)/ | G207: =_xlfn.IFS('kuni 2025 detsember tegevuskava'!G82='kuni 2025 detsember tegevuskava'!$G$107,1,'kuni 2025 detsember tegevuskava'!G82='kuni 2025 detsember tegevuskava'!$G$108,2,'kuni 2025 detsember tegevuskava'!G82='kuni 2025 detsember tegevuskava'!$G$109,3,'kuni 2025 detsember tegevuskava'!G82='kuni 2025 detsember tegevuskava'!$G$110,4) -> 1 | H207: =_xlfn.IFS(OR('kuni 2025 detsember tegevuskava'!P82='kuni 2025 detsember tegevuskava'!$P$107,'kuni 2025 detsember tegevuskava'!P82='kuni 2025 detsember tegevuskava'!$P$109,'kuni 2025 detsember tegevuskava'!P82='kuni 2025 detsember tegevuskava'!$P$110,'kuni 2025 detsember tegevuskava'!P82='kuni 2025 detsember tegevuskava'!$P$111),1,'kuni 2025 detsember tegevuskava'!P82='kuni 2025 detsember tegevuskava'!$P$112,2,'kuni 2025 detsember tegevuskava'!P82='kuni 2025 detsember tegevuskava'!$P$113,2,'kuni 2025 detsember tegevuskava'!P82='kuni 2025 detsember tegevuskava'!$P$108,3) -> 1 | I207: =SUM(I208:I208) -> 100,000 | K207: =SUM(K208:K208) -> 0 | M207: =SUM(M208:M208) -> 0 | O207: =SUM(O208:O208) -> 100,000
I208: =SUM(K208+M208+O208) -> 100,000 | J208: ="(55)" -> (55) | K208: ='kuni 2025 detsember tegevuskava'!Z82 -> 0 | L208: ="(55)" -> (55) | M208: ='kuni 2025 detsember tegevuskava'!AC82 -> 0 | N208: ="(55)" -> (55) | O208: ='kuni 2025 detsember tegevuskava'!AF82 -> 100,000 | P208: ="(55)" -> (55)
I209: Summa koos käibemaksuga:
... 49 more rows

Sheet Ettekande arvutused (hidden)
A2: 2023 eelarve täitmine
B4: Liikide lõikes​ | C4: Eelarve täitmine 31.12.2023
C5: Eelarve​ | D5: Täitmine​ | E5: Jääk​ | F5: Täitmise %​
B6: Kokku​ | C6: =SUM(C7:C9) -> 45 | D6: =SUM(D7:D9) -> 36 | E6: 9 | F6: =SUM(D6/C6) -> 80%
B7: Riigieelarve​ | C7: 10 | D7: 8 | E7: =SUM(C7-D7) -> 2 | F7: =SUM(D7/C7) -> 80%
B8: Välistoetused​ | C8: 15 | D8: 12 | E8: =SUM(C8-D8) -> 3 | F8: =SUM(D8/C8) -> 80%
B9: Muud​ | C9: 20 | D9: 16 | E9: =SUM(C9-D9) -> 4 | F9: =SUM(D9/C9) -> 80%
B18: Majandusliku sisu lõikes​ | C18: Eelarve täitmine 31.12.2023
C19: Eelarve​ | D19: Täitmine​ | E19: Jääk​ | F19: Täitmise %​
B20: Kokku​ | C20: =SUM(C21:C24) -> 45 | D20: =SUM(D21:D24) -> 40 | E20: 5 | F20: =SUM(D20/C20) -> 89%
B21: Investeeringud​ | C21: 12 | D21: 11 | E21: =SUM(C21-D21) -> 1 | F21: =SUM(D21/C21) -> 92%
B22: Tööjõukulud | C22: 10 | D22: 10 | E22: =SUM(C22-D22) -> 0 | F22: =SUM(D22/C22) -> 100%
B23: ​Majandamiskulud​ | C23: 15 | D23: 13 | E23: =SUM(C23-D23) -> 2 | F23: =SUM(D23/C23) -> 87%
B24: ​Toetused ja muud | C24: 8 | D24: 6 | E24: =SUM(C24-D24) -> 2 | F24: =SUM(D24/C24) -> 75%
A33: 2024 eelarve
B35: Liikide lõikes​ | C35: 2024
B36: Kokku | C36: =SUM(C37:C39) -> 47
B37: Riigieelarve​ | C37: 20
B38: Välistoetused​ | C38: 15
B39: Muud​ | C39: 12
B41: Majandusliku sisu lõikes​ | C41: 2024
B42: Kokku | C42: =SUM(C43:C46) -> 47
B43: Investeeringud​ | C43: 13
B44: Tööjõukulud | C44: 11
B45: ​Majandamiskulud​ | C45: 15
B46: ​Toetused ja muud | C46: 8
A49: Personali muutus
B52: Valitsemisala IKT töötajate arv​ | C52: 2021-01-01 | D52: 2022-01-01 | E52: 2023-01-01 | F52: 2024-01-01 | G52: 01.01.2025*​ | H52: 01.01.2026*​ | I52: 01.01.2027*​
B53: Töötajate arv ​ | C53: 121 | D53: 125 | E53: 129 | F53: 140 | G53: 144 | H53: 149 | I53: 155
B54: Kasv​ (%, võrrelduna eelmise aastaga) | C54: 0 | D54: =SUM(((D53/C53)*100)-100) -> 3.3 | E54: 3.2 | F54: 8.5 | G54: 2.9 | H54: 3.5 | I54: 4.0
B55: * Prognoos
C69: Seisuga 01.01.2023 | F69: Seisuga 01.01.2024
B70: IKT Personal | C70: Täidetud/olemas | D70: Täitmata | E70: Kokku | F70: Täidetud/olemas | G70: Täitmata | H70: Kokku
B71: Kokku | C71: =SUM(C72:C83) -> 26 | D71: 9 | E71: 35 | F71: 28 | G71: 17 | H71: 45
B72: andmekorraldusanalüütik​ | C72: 2 | D72: 1 | E72: =SUM(C72:D72) -> 3 | F72: 2 | G72: 1 | H72: =SUM(F72:G72) -> 3
B73: andmekvaliteedi kontrolli spetsialist​ | C73: 3 | D73: 0 | E73: 3 | F73: 5 | G73: 0 | H73: 5
B74: andmelao arendaja​ | C74: 2 | D74: 0 | E74: 2 | F74: 2 | G74: 8 | H74: 10
B75: jurist - ei ole kavas lähiajal täita​ | C75: 2 | D75: 2 | E75: 4 | F75: 2 | G75: 2 | H75: 4
B76: projektijuht​ | C76: 4 | D76: 2 | E76: 6 | F76: 4 | G76: 2 | H76: 6
B77: rakenduste administraator​ | C77: 0 | D77: 0 | E77: 0 | F77: 0 | G77: 0 | H77: 0
B78: riskijuht​ | C78: 2 | D78: 0 | E78: 2 | F78: 2 | G78: 0 | H78: 2
B79: süsteemiadministraator​ | C79: 2 | D79: 1 | E79: 3 | F79: 2 | G79: 1 | H79: 3
B80: tarkvara arhitekt​ | C80: 1 | D80: 0 | E80: 1 | F80: 1 | G80: 0 | H80: 1
B81: testija​ | C81: 5 | D81: 2 | E81: 7 | F81: 5 | G81: 2 | H81: 7
B82: tooteomanik​ | C82: 3 | D82: 1 | E82: =SUM(C82:D82) -> 4 | F82: 3 | G82: 1 | H82: =SUM(F82:G82) -> 4
B83: … | E83: 0 | H83: 0
B84: NB! Tabelis tuua välja valitsemisala kõik IKT ametikohad. Vajadusel lisada ridu juurde.
B87: Andmeturve | C87: Analüütik (teabe)
B88: Arvutigraafika | C88: Andmeanalüüs
B89: Juhtimine | C89: Andmeanalüüs ja -seire
B90: Konsultandid | C90: Andmebaasiadministratsioon
B91: Projektijuhtimine | C91: Andmehaldur
B92: Süsteemiadministratsioon | C92: Andmeteadur (teabe)
B93: Süsteemianalüüs | C93: DEVOPS
B94: Süsteemiarhitektuur | C94: Haldus
B95: Tarkvara programmeerimine | C95: Helpdesk
B96: Teenuste tugi | C96: infoturbe logianalüütik
B97: Testimine | C97: Infoturbespetsialist
C98: IS haldur
C99: IS ärianalüütik
C100: IT analüütik
C101: Klienditeenindus
C102: küber pääsuhalduste spetsialist
C103: Küberinsener
C104: küberintsidentide haldur
C105: Küberkaitse spetsialist
C106: Masinõpe
C107: Rakenduse administraator
C108: Registripidaja
C109: Tarneinsener
C110: Teenuseomanik
C111: Tootejuhtimine

Sheet Personal (hidden)
A1: Projekti/tegevuse nimi | B1: Digipöörde elluviimisega seotud personal tööperede lõikes | C1: Digipöörde elluviimisega seotud personal tööperede lõikes | D1: Digipöörde elluviimisega seotud personal tööperede lõikes | E1: Mis aastal on plaanis värvata? | J1: Kas on võtmetähtsusega? | K1: Kas töötaja on olemas või tuleb värvata? | L1: Aastane palgakulu | M1: Või kas roll on plaanis teenusena sisse osta? | N1: Teenusena sisse ostmisel maksumus | O1: Kui pikaks ajaks inimene värvatakse, roll teenusena sisse ostetakse? | P1: Milline on koormus digipöördes? | Q1: Värvatud või teenusena sisse ostetutud töötaja rahastamise allikas
A2: ("2a tegevuskava" lehe J veerg) | B2: (Tööpere nimetus, iga töötaja eraldi real) | C2: (Tööpere taseme number) | D2: (Tööpere nimetuse täpsustav selgitus) | E2: (märkida x-ga) | J2: (Jah/Ei) | K2: (On olemas / Tuleb värvata tööjõukulu, 50) | L2: (olemasolev töötaja, või värvatav) | M2: (Jah / EI majandamiskulu, 55) | N2: Kui lühiajaline (alla aasta), siis kogu maksumus, kui pikemaajaline (üle 1 aasta), siis aasta maksumus) | O2: (kuuks ajaks, aastaks, kogu digipöörde ajaks, jne) | P2: (% tööajast) | Q2: (Baaseelarve/SF)
E3: 2023 | F3: 2024 | G3: 2025 | H3: 2026 | I3: 2027
A4: Kesksete rollide loomine valitsemisalas | B4: Täpsem tööpere selgub hetkeolukorra analüüsist | E4: 1 | F4: 2 | G4: 1 | J4: Jah | K4: Värvatud 1, Andmete valdkonna juht värbamisel 2024 | L4: 1 teenuse valdkonna juht ca 50 000 aastas, andmete valdkonnajuht värvatakse ja tema täpsem palgakulu alles selgub 2024 | M4: Ei | O4: 3 aastat, nagu hetkel lubatud | P4: 100%
A5: TTJA võimestamine digipöörde elluviimiseks (nt analüütikud, disainer, koolitused) (2021-27 SF) | B5: IT üldtööd | C5: 3 | D5: Tippspetsialistid analüütika, protsesside, testimise jmt osas | F5: 3 | J5: Jah | K5: Värvatud | L5: 3 analüütikut kokku 155000 eur/aastas | M5: ei | O5: 3 aastat, nagu hetkel lubatud | P5: 100%
A6: TTJA võimestamine digipöörde elluviimiseks (analüütikud, koolitused) (2021-27 SF) | B6: IT üldtööd | C6: 3 | D6: Tippspetsialistid analüütika, protsesside, testimise jmt osas | E6: 1 | J6: Jah | K6: Värvatud | L6: 1 teenuse valdkonna juht ca 65 000 (ei ole senditäpsusega) | M6: ei | O6: 3 aastat, nagu hetkel lubatud | P6: 100%
A7: Projektijuht* | B7: Projektijuhtimine | C7: 3 | D7: Tippspetsialistid analüütika, protsesside, testimise jmt osas | F7: 1 | J7: Jah | K7: Värbamisel | L7: 1 projektijuht ca 60 000 eur/aasta | M7: ei | O7: kogu digipöörde ajaks | P7: 100%
A8: Rakendusadministraator protsessijuhtimise tarkvara jaoks | B8: IT üldtööd | C8: 3 | D8: Tippspetsialistid analüütika, protsesside, testimise jmt osas | F8: 1 | J8: Jah | K8: Tuleb värvata | L8: 1 protsessijuhtimise tarkvara tooteomanik (administraator) 58000 eur/aasta (TTJA) | M8: Ei | O8: kogu digipöörde ajaks | P8: 100%
A9: Kasutajateekonna (UX) kompetentsi tõstmine | B9: IT üldtööd | C9: 3 | D9: Tippspetsialistid analüütika, protsesside, testimise jmt osas | F9: 1 | J9: Jah | K9: Tuleb värvata | L9: Kasutajateekonna (UX) spetsialist ca 65000 aastas (TTJA) | M9: Ei | O9: kogu digipöörde ajaks | P9: 100%
A10: TTJA pilooti jaoks võimekuse ja kompetentsi tõstmine KEMITis | B10: IT üldtööd | C10: 3 | D10: Tippspetsialistid analüütika, protsesside, testimise jmt osas | F10: 2 | J10: Jah | K10: Tuleb värvata | L10: 1 süsteemiarhitekt ja 1 teenushaldur (155000/aastas) (TTJA) | M10: Ei | O10: kogu digipöörde ajaks | P10: 100%
B11: Andmeturve | C11: 1 | D11: Analüütik (teabe)
B12: Arvutigraafika | C12: 2 | D12: Andmeanalüüs
B13: Juhtimine | C13: 3 | D13: Andmeanalüüs ja -seire
B14: Konsultandid | C14: 4 | D14: Andmebaasiadministratsioon
B15: Projektijuhtimine | D15: Andmehaldur
B16: Süsteemiadministratsioon | D16: Andmeteadur (teabe)
B17: Süsteemianalüüs | D17: DEVOPS
B18: Süsteemiarhitektuur | D18: Haldus
B19: Tarkvara programmeerimine | D19: Helpdesk
B20: Teenuste tugi | D20: infoturbe logianalüütik
B21: Testimine | D21: Infoturbespetsialist
D22: IS haldur
D23: IS ärianalüütik
D24: IT analüütik
D25: Klienditeenindus
D26: küber pääsuhalduste spetsialist
D27: Küberinsener
D28: küberintsidentide haldur
D29: Küberkaitse spetsialist
D30: Masinõpe
D31: Rakenduse administraator
D32: Registripidaja
D33: Tarneinsener
D34: Teenuseomanik
D35: Tootejuhtimine

Sheet RES ÕIGUSAKTIDE LISAVAJADUS (hidden)
A30: Kui väljad on täidetud ebakorrektselt või jäetud tühjaks, siis on rahandusministeeriumil õigus materjal tagastada parandusteks/täiendusteks
A32: Valitsemisala | B32: Programm | C32: Programmi tegevus | D32: Õigusakti nimi | E32: Õigusakti liik (siseriiklik, EL määrus/otsused, muu rahvusvaheline) | F32: Õigusakti lühike arusaadav sisukirjeldus | G32: Link õigusaktile või selle menetlusele | H32: Õigusakti heaks kiitmise otsus VVs | I32: Õigusakti vastuvõtmise aeg | J32: Õigusakti jõustumise aeg | K32: Lisavahendite majanduslik sisu (tööjõukulu, majandamiskulu, (IT)investeering) | L32: Ajaliselt piiritletud või püsiv kulu | M32: 2025 lisavajadus | N32: 2026 lisavajadus | O32: 2027 lisavajadus | P32: 2028 lisavajadus | Q32: KOKKU 2025-2028 | R32: Kulude arvestuse alused | S32: Väljavõte (täpne kopeering) õigusakti seletuskirjast kulude/investeeringute kohta, sh katteallika selgitus. EL direktiivi puhul kopeerida konkreetne lõik, mis kirjeldab kohustust, tegevust vms. | U32: Lisataotluse sisestaja nimi
A33: MKM | B33: Digiühiskond | C33: Digiriigi arenguhüpped | D33: AvTS (sündmusteenus) | E33: siseriiklik | F33: Isikustatud teabe kuvamiseks antakse õiguslik alus ja reguleeritakse selles osas sündmusteenuse keskse platvormi tööd. | G33: Meil hetkel DELTAs (lisame EISi lingi hiljem) | H33: III pa 2024 (eelduslikult) | I33: 2025 alguses (eelduslikult) | J33: eeldatav aeg veebruaris 2025 | K33: majandus- ja tööjõukulu | L33: püsiv | M33: 0 | N33: 131,000 | O33: 205,000 | P33: 214,000 | Q33: =SUM(M33:P33) -> 550,000 | R33: Töötasu ja majanduskulu | S33: AvTS (sündmusteenused) seletuskiri p 7. | U33: Ingrid Kuusik, Stina Avvo
A34: MKM/RIA | B34: Sündmusteenused | D34: AvTS (sündmusteenus) | E34: siseriiklik | F34: Isikustatud teabe kuvamiseks antakse õiguslik alus ja reguleeritakse selles osas sündmusteenuse keskse platvormi tööd. | H34: II pa 2024 (eelduslikult) | I34: 2025 alguses (eelduslikult) | J34: eeldatav aeg veebruaris 2025 | K34: tööjõukulu- ja majandamiskulu ning platvormi ülalhoid ja arenduskulud | L34: püsiv | M34: 0 | N34: =3520000+1405750+120000 -> 5,045,750 | O34: =3480000+1567575+120000 -> 5,167,575 | P34: =3480000+1714115+120000 -> 5,314,115 | Q34: =SUM(M34:P34) -> 15,527,440 | R34: RRF JÄTK jätkusuutlikkus ja tööjõukulud (sh töökohakulud), majandamiskulud ja platvormi ülalhoid ning arenduskulud | S34: AvTS (sündmusteenused) seletuskiri p 7.
A35: MKM | B35: Digiühiskond | C35: Digiriigi arenguhüpped | D35: Tehisintellekti akt (AI act) | E35: EL määrus | F35: Analüüs AI aktist tulenevate kohustuste täitmiseks vajalikud õigusmuudatused (rollide ja määruses ettenähtud karistustega seotud õigusmuudatuste, regulatsioonide ja võimalike lahenduste kaardistamiseks). Tegemist otsekohalduva määrusega, millega kaasnevad muudatustest tulenevad ressursivajadused Eestis. Hetkel Euroopa Liidus teisel lugemisel. Jõustub juuni 2024. Nõuded rakenduvad etapiliselt (alates 6 kuud peale jõustumist kuni 3 aastat).​ | G35: https://eur-lex.europa.eu/legal-content/EN/TXT/?uri=celex:52021PC0206 | H35: EL akt | I35: 2024 juuni | J35: 2024 (määruse jõustumine, analüüsid 2025) | K35: majanduskulu (analüüs), 2026+ personalikulud ja majanduskulud | L35: ajaliselt piiritletud 2025 lisavajadus, hiljem püsikulu | M35: 90,000 | N35: 5,246,134 | O35: 10,492,268 | P35: 10,492,268 | Q35: 26,320,670 | R35: analüüsi tükihind, 2026+ aasta puhul lähtub eelarve vajadus (personalikulud, majanduskulud) AI määruse VV Eesti seisukohtade koostamisel loodud eelarvehinnangust, mis analüüsi raames täpsustub. Eesmärk on leida Eestile optimaalseim ja kuluefektiivseim lähenemine. | S35: Sätted läbivalt AI aktist, kuid nt artiklid 71, 59, 22, kolmanda jaotise 3 ptk. AI määruse puhul on vajalik siseriiklikult väga märkimisväärsed muudatused teha - varasem hinnang Eesti seisukohtades ja mõjus oli järgnev (jätkuvalt kahjuks räägime rakendamisel miljonitesse kuluvast summast - nii personal kui ka investeeringud): "aastane personalikulu on minimaalselt 17 950 608 eurot, sellele lisandub hinnanguliselt tööjõukulu 2 664 968 eurot [...] püsikuludeks võime hinnata minimaalselt 7 827 300 eurot." Kuna nõudeid on palju, siis on mõistlik analüüsida, kuidas tänastes tingimustes kõige efektiivsemalt kohustusi täita. | U35: Ott
A36: MKM | B36: Andmed | D36: Andmemäärus (Data act) | E36: EL määrus | F36: Analüüs DAst tulenevate kohustuste täitmiseks vajalikud õigusmuudatused (siseriiklikud rolli jaotused, pädevused ja määrusega ettenähtud karistustega seotud õigusmuudatused ja võimalikud lahendused). | G36: Andmemäärus | H36: EL akt | I36: 2023 | J36: november 2023 (määruse jõustumine; analüüsid 2025) | K36: majanduskulu (õigusanalüüs) | L36: ajaliselt piiritletud | M36: 50,000 | N36: 0 | O36: 0 | P36: 0 | Q36: =SUM(M36:P36) -> 50,000 | R36: analüüsi tükihind | S36: Läbivalt andmemäärusest tulenevad sätted, nt art 37, 40. | U36: Stina: saan aru, et tuli otsus, et seda me RaMi ei esita. Seega vajalik maha võtta.
A37: MKM | B37: Digiühiskond | C37: Digiriigi alusbaasi kindlustamine | D37: AvTS jm asjakohased õigusaktid (põhiandmete regulatsioon, OOP) | E37: siseriiklik | F37: Andmearhitekti töötasu võimaldamaks järgida andmete ühekordse küsimise printsiipi, toetada laiemat andmete ristkasutust, tuvastada dubleeritud andmekogumise juhtumeid, aidata lahendada vaidlusküsimusi ning võimalusel pakkuda asutustele tuge seonduvalt andmete ühekordse küsimise põhimõtte rakendamisega. Vajadus tuleneb VV memorandumis kavandatud ülesannetest. | G37: Seotud VV memorandumiga, õiguslik kaardistus ja muudatused tulevad hiljem (vastavalt memorandumile); https://www.riigiteataja.ee/akt/107032023011?leiaKehtiv | H37: Q4 2024 | I37: I pa 2025 | J37: I pa 2025 | K37: personalikulud | L37: püsiv | M37: 67,200 | N37: =M37 -> 67,200 | O37: =N37 -> 67,200 | P37: =O37 -> 67,200 | Q37: =SUM(M37:P37) -> 268,800 | R37: Töötasu | S37: Siiani olnud oluline teema nii MKM ministrile kui ka VVle. Seotud VV memorandumiga, mille eesmärk on vähendada andmete dubleerivat küsimist ja parandada andmete ristkasutust. Ainuüksi 10% andmete dubleeriva küsimise vähendamine aitab hoida majanduses/ühiskonnas kokku 20M€ aastas. | U37: Ott
A38: MKM | B38: Digiühiskond | C38: Digiriigi alusbaasi kindlustamine | D38: eIDAS ver 2 (EUDI wallet) | E38: EL määrus | F38: Analüüs eIDAS2 tulnevate kohustuste täitmiseks vajalikud õigusmuudatused (siseriiklikud rolli jaotused, pädevused ja määrusega ettenähtud karistustega seotud õigusmuudatused ja võimalik lahendused, rollide vahelised õiguslikult lubatud ja lubamatud seosed). Varsti jõustub (parlamendi esimene lugemine oli edukas märtsis; ei pruugi järgmine aasta jõuda enam tähtaega kui siis raha taotleda) | G38: eIDAS ver 2 | H38: EL akt | I38: eelduslikult II kv 2024 | J38: Määruse jõustumine 20.05.2024 ja rakendamine järkjärgult (mitu tähtaega); analüüsid 2025-2026) | K38: majanduskulu (õigusanalüüs) | L38: ajaliselt piiritletud | M38: 70,000 | N38: 20,000 | O38: 0 | P38: 0 | Q38: 90,000 | R38: analüüsi tükihind | S38: Erinevad rollid ja õiguslikud vajadused läbivalt eIDAS ver 2 määrusest ja selle tulevastest rakendusaktidest. Ajakava väga tihe. Tegemist mahuka õigusaktiga, millel palju volitusnorme rakendusmääruseks (36). | U38: Stina ja Mait
A39: MKM/RIA | B39: Digiühiskond | C39: Digiriigi alusbaasi kindlustamine | D39: Euroopa Parlamendi ja nõukogu määrus (EL) 2024/….,…, millega muudetakse määrust (EL) nr 910/2014 seoses Euroopa digiidentiteedi raamistiku kehtestamisega (eIDAS 2). | E39: EL määrus | F39: Määrus on tervikuna siduv ja vahetult kohaldatav kõikides liikmesriikides. Määruse eesmärk on suurendada usaldust elektrooniliste tehingute vastu siseturul, luues ühise aluse turvalisele elektroonilisele suhtlusele kodanike, ettevõtjate ja ametiasutuste vahel, suurendades sellega avaliku ja erasektori internetipõhiste teenuste, e-äri ja e-kaubanduse tõhusust liidus. Määrus loob üldise õigusraamistik usaldusteenuste kasutamiseks, e-identimise süsteemide usaldusväärseks piiriüleseks vastastikuseks tunnustamiseks ja toimimiseks ning koostööks | G39: https://www.europarl.europa.eu/doceo/document/TA-9-2024-0117_ET.html | H39: lähikuudel | I39: prognoositud aprill/mai 2024 | J39: Määrus jõustub kahekümnendal päeval pärast selle avaldamist Euroopa Liidu Teatajas. | K39: tööjõukulud | L39: püsiv kulu | M39: 75,000 | N39: 75,000 | O39: 75,000 | P39: 75,000 | Q39: 300,000 | R39: üks juhtiveksperdi ametikoht, tööjõukulud ja lisanduvad töökohakulud | S39: Määruse artiklid 45d lg2, 45f lg3, 46a lg 1-3, 46b lg 1-2, 46e 48a lg 1ja 4 Selgitused: 1. EUROOPA PARLAMENDI JA NÕUKOGU MÄÄRUS (EL) nr 910/2014, 23. juuli 2014,e-identimise ja e-tehingute jaoks vajalike usaldusteenuste kohta siseturul ja millega tunnistatakse kehtetuks direktiiv 1999/93/EÜ (edaspidi eIDAS2) otsekohalduva määruse uuendusena lisandub uusi usaldusteenuseid ja uusi nõudeid ka kvalifitseerimata usaldusteenustele, mille üle tuleb hakata täiendavalt tegema järelevalvet. Varasemalt ei olnud sellist vajadust. Kvalifitseerimata teenuse pakkujate üle tehakse järelevalvet kaebuse alusel. 2. Euroopa Digiidentiteedikukru raamistiku järelevalve ülesanded (eIDAS2 artikkel 46 a kohustab igat liikmesriiki määrama järelevalveasutuse ja tagama ülesannete tulemuslikuks, tõhusaks ja sõltumatuks täitmiseks vajalikud volitused ja piisavad vahendid): 2.1 Digikukru väljaarendamisel autentsete allikate järelevalve eiDAS2 nõuetele vastavuse üle, nende üle arvestuse pidamine, usaldusväärseks kinnitamine ja usaldusväärsete EL-i teavitamine. 2.2 Digiidentiteedikukru pakkujate ja tuginevate isikute järelevalve, selle sihipärase kasutamise üle. (eIDAS2 artikkel 46 a kohustab igat liikmesriiki määrama järelevalveasutuse ja tagama ülesannete tulemuslikuks, tõhusaks ja sõltumatuks täitmiseks vajalikud volitused ja piisavad vahendid). 3. eIDAS2 kohase EL liikmesriikide järelevalveasutustega koostööraamistiku edendamine ja sisulistes töörühmades (näiteks Forum of European Supervisory Authorities-FESA, ENISA European Competent Authorities for Trust Service-ECATS, uus loomisel European Digital Identity Cooperation Group-EDICG) osalemine, neid saab olema digiidentiteedikukru väljatöötamisega ja kasutusele võtmisega rohkem ja aktiivsema panustamisega. eIDAS2 määrusega pannakse kohustus järelevalveasutustel vahetama teavet teiste EL riikidega oma järelevalvetoimingute ja parimate tavade kohta kõnealuses valdkonnas (Juhul, kui teenuseosutaja pakub oma teenuseid teise liikmesriigi territooriumil ega ole seal järelevalve all, või juhul, kui teenuseosutaja seadmed asuvad mõne muu liikmesriigi territooriumil kui teenuseosutaja asukohaliikmesriik, tuleb luua liikmesriikide järelevalveasutuste vahelise vastastikuse abistamise süsteem). Liikmesriikidel on kohustus tagada koostöörühmas enda määratud esindajate tulemusliku ja tõhusa koostöö (eIDAS2 art 46e). 4. Järelevalve tegevuste regulaarne aruandmine EL Komisjonile ja Euroopa Liidu Võrgu- ja Infoturbeametile (ENISA). Aruannete maht võrreldes varasemaga kasvab (48a) 5. Veebibrauserite pakkujate kaebuste lahendamine, mis on esitatud veebisaidi autentimiseks kasutatavate kvalifitseeritud sertifikaatide kohta. 6. Siseriiklike järelevalveametite (AKI, TTJA…) koostööraamistiku välja töötamine eIDAS2 nõuetest tulenevate infovahetuse pidamiseks (näiteks Usaldusteenuse vastavushindamisaruannete kooskõlastamine AKI-ga või kui isikuandmete kaitse reegleid näib olevat rikutud, tuleb järelevalveasutusel teavitada põhjendamatu viivituseta määruse (EL) 2016/679 kohaseid pädevaid järelevalveasutusi). Tuleb välja töötada asutuste omavaheline teavitussüsteem
A40: Majandus- ja Kommunikatsiooniministeerium | B40: Soolise võrdsuse ja võrdse kohtlemise programm | C40: Soolise võrdõiguslikkuse valdkonnda arendamine | D40: Palkade läbipaistvuse direktiiv | E40: https://eur-lex.europa.eu/legal-content/ET/TXT/PDF/?uri=CELEX:32023L0970 | F40: Direktiivi eesmärgiks on saavutada olukord, kus naistele ja meestele makstakse võrdväärse töö eest võrdset tasu. | G40: Direktiivi ülevõtmise eelnõu on koostamisel, link direktiivile https://eur-lex.europa.eu/legal-content/ET/TXT/PDF/?uri=CELEX:32023L0970 | H40: EL akt, VV toetavad seisukohad 22.04.2021 | I40: EL akt, võetis EL-s vastu mai 2023 | J40: 2026 | K40: Lisavahendid Tööinspektsioonile 2 tööinspektori ametikoha loomiseks, kokku 78 000 eurot aastas (ühe ametikoha kulu 39 000 eurot aastas) | L40: Püsikulu | M40: 0 | N40: 39,000 | O40: 78,000 | P40: 78,000 | Q40: 195,000 | R40: Kulud Tööinspektsioonile kui direktiivi järelevalve asutusele. Brutopalk 2300 eurot, aastakulu 36 930 eurot, maj.kulu 2000 eurot/aastas, kulud kokku 39 000 eurot, kahe ametikoha kulu kokku 78 000 eurot. 2026 aastal vajadus 6 kuuks, kokku 39 000 eurot. | S40: Direktiivi artikli 26 (järelevalve ja teadlikkus suurendamine) kohaselt liikmesriigid tagavad naistele ja meestele võrdse või võrdväärse töö eest võrdse tasu maksmise põhimõtete rakendamise järjepideva järelevalve ning kõigi kättesaadavate õiguskaitse vahendite kohaldamise. Samuti direktiivi eelnõu kohaselt (art 26) iga liikmesriik määrab järelevalveasutuse, kes jälgib ja toetab käesoleva direktiivi rakendamiseks vastu võetud siseriiklike õigusnormide rakendamist, ning võtab vajalikud meetmed sellise asutuse nõuetekohaseks toimimiseks. Järelevalveasutus võib olla olemasoleva riigiasutuse või - struktuuri osa. | T40: Hetkel siseriiklikku õigusakti pole. Direktiivi ülevõtmise tähtaeg on 3a jõustumisest, seega tuleb see üle võtta 2026. aasta suveks. Esimene aruanne tuleb esitada 2027. a (kuni 150 töötajat al 2031. a) - siis algab ka meie järelevalve. Inspektorid võiksid olemas olla juba 2026 sügisest, et jõuaks koolitada ja olla valmis järelevalve teostamiseks 2027 aastast.
A41: Majandus- ja Kommunikatsiooniministeerium | B41: Soolise võrdsuse ja võrdse kohtlemise programm | C41: Soolise võrdõiguslikkuse valdkonnda arendamine | D41: Palkade läbipaistvuse direktiiv | E41: https://eur-lex.europa.eu/legal-content/ET/TXT/PDF/?uri=CELEX:32023L0970 | F41: Direktiivi eesmärgiks on saavutada olukord, kus naistele ja meestele makstakse võrdväärse töö eest võrdset tasu. | G41: Direktiivi ülevõtmise eelnõu on koostamisel, link direktiivile https://eur-lex.europa.eu/legal-content/ET/TXT/PDF/?uri=CELEX:32023L0970 | H41: EL akt, VV toetavad seisukohad 22.04.2021 | I41: EL akt, võetis EL-s vastu mai 2023 | J41: 2026 | K41: 50 000 - analüüs olemasolevates töökohtade hindamise metoodikatest; 50 000 - koolitused tööandjatele; 30 000 - e-koolituse loomine | L41: ajaliselt piiritletud | M41: 80,000 | N41: 50,000 | Q41: =SUM(M41:P41) -> 130,000 | R41: 50 000 - analüüs olemasolevates töökohtade hindamise metoodikatest; 50 000 - koolitused tööandjatele; 30 000 - e-koolituse loomine | S41: Artikkel 11. Alla 250 töötajaga tööandjate toetamine. Liikmesriigid annavad alla 250 töötajaga tööandjatele ja asjaomastele töötajate esindajatele tehnilise abi ja koolituse vormis toetust, et aidata neil täita käesolevas direktiivis sätestatud kohustusi. JA Artikkel 4. Võrdne töö ja võrdväärne töö. 1. [...] 2. Liikmesriigid võtavad võrdõiguslikkust edendavate asutustega konsulteerides vajalikud meetmed tagamaks, et analüüsivahendid või -meetodid on tehtud kättesaadavaks ja on hõlpsalt kättesaadavad, et toetada ja suunata töö väärtuse hindamist ja võrdlemist kooskõlas käesolevas artiklis sätestatud kriteeriumidega. Need vahendid või meetodid aitavad tööandjatel ja/või sotsiaalpartneritel hõlpsalt kehtestada sooneutraalsed töökohtade hindamise ja klassifitseerimise süsteemid, mis välistavad igasuguse soolise diskrimineerimise, ning neid süsteeme kasutada.
A42: Majandus- ja Kommunikatsiooniministeerium | B42: Soolise võrdsuse ja võrdse kohtlemise programm | C42: Soolise võrdõiguslikkuse valdkonnda arendamine | D42: Palkade läbipaistvuse direktiiv | E42: https://eur-lex.europa.eu/legal-content/ET/TXT/PDF/?uri=CELEX:32023L0970 | F42: Direktiivi eesmärgiks on saavutada olukord, kus naistele ja meestele makstakse võrdväärse töö eest võrdset tasu. | G42: Direktiivi ülevõtmise eelnõu on koostamisel, link direktiivile https://eur-lex.europa.eu/legal-content/ET/TXT/PDF/?uri=CELEX:32023L0970 | H42: EL akt, VV toetavad seisukohad 22.04.2021 | I42: EL akt, võetis EL-s vastu mai 2023 | J42: 2026 | K42: Soolise võrdõiguslikkuse ja võrdse kohtlemise voliniku kantseleile kulud 0,5 ametikoha loomiseks. | L42: püsikulu | N42: 12,500 | O42: 25,000 | P42: 25,000 | Q42: 62,500 | R42: 0, 5 ametikoha arvestuslik tööjõu kogukulu aastas 22 000 ja lisanduv halduskulu (koolitused, lähetused, kantseleikulu) 3000. | S42: Artikkel 28. Võrdõiguslikkust edendavad asutused. [1.,2.] 3. Liikmesriigid tagavad võrdõiguslikkust edendavatele asutustele piisavalt vahendeid, et võimaldada neil tulemuslikult täita oma ülesandeid, mis on seotud võrdse tasustamise õiguse järgimisega.
A43: Majandus- ja Kommunikatsiooniministeerium | B43: Tööturuprogramm | C43: Tööelu kvaliteedi arendamine | D43: Euroopa Parlamendi ja nõukogu määrus (EL) nr 2021/2115 ja Euroopa Parlamendi ja nõukogu määrus (EL) 2021/2116 | E43: https://eur-lex.europa.eu/eli/reg/2021/2115/oj/est https://eur-lex.europa.eu/legal-content/ET/TXT/?uri=CELEX:02021R2116-20220826 | F43: Covid-19 pandeemia käigus on taas fookusesse tõusnud töötingimused põllumajanduses. Vastuseks sellele on kehtestatud nn sotsiaalne tingimuslikkus, mis seab ÜPP pindala- ja loomapõhiste toetuste saamise tingimuseks teatud tööõiguse sätete järgimise. Sanktsioonid rikkumiste eest põhinevad eranditult pädevate asutuste otsustel või ametlikel teadetel. Makseagentuur täiendavaid kontrolle ei tee. Lisaks pööratakse põllumajanduse laiendusteenustes suuremat tähelepanu tööõiguslikele küsimustele. | G43: Eelnõu alles VTK faasis, | H43: VV-le plaanis esitada eelnõu 2024 III kvartalis | I43: Eeldatavalt 2025. algus | J43: 2025-01-01 | K43: Lisavahendid 1 andmeanalüütiku töökoha loomiseks, kokku 39 000 eurot aastas | L43: Püsikulu | M43: 39,000 | N43: 39,000 | O43: 39,000 | P43: 39,000 | Q43: 156,000 | R43: Brutopalk 2300 eurot, aastakulu 36 930 eurot, maj.kulu 2000 eurot/aastas, kulud kokku 39 000 eurot. | S43: Eestil on kohustus rakendada alates 01.01.2025 sotsiaalse tingimuslikkuse süsteemi. Sotsiaalne tingimuslikkus on seotud kolmest direktiivist tulenevate nõuetega. Direktiiv (EL) 2019/1152- läbipaistvad ja prognoositavad töötingimused; direktiiv 89/391/EMÜ- meetmed, millega soodustatakse töötajate tervise ja ohutuse parandamist ning direktiiv 2009/104/EÜ- töötajate töövahendite kasutamisele esitatavad ohutuse ja tervishoiu miinimumnõuded. Uue sotsiaalse tingimuslikkuse mehhanismi kohaselt peavad ELi riikide tööasutused (Eesti kontekstis selleks asutuseks Tööinspektsioon) teavitama põllumajanduse makseasutusi vähemalt kord aastas oma kontrollide tulemustest. Vajadusel vähendab makseasutu (PRIA) põllumajandustootjatele makstavat toetust
A44: MKM/TTJA | B44: Ettevõtluskeskkond | C44: Ettevõtluse arendamise soodustamine | D44: Raudteeseaduse muutmise seadus | E44: Siseriiklik | F44: Raudteeseaduse muudatused on seotud Euroopa Liidu Raudteeameti poolse Eesti raudtee ohutusasutuse (TTJA) auditiga, kus on tähelepanekuna toodud siseriikliku seadusandluse (RdtS) mittevastamine EL määruse 2019/779 nõuetega ja hoolduse eest vastutava üksuse sertifitseerimisasutuse (TTJA) inimressursi puudus ning sellest tulenevalt kehtestatud sertifitseerimisprotsessi järgimise mittevõimalikkus. | G44: Eelnõu koostamisel | H44: eeldatavalt sept 2024 | I44: eelduslikult sügisel 2024 Riigikogu lugemised | J44: 2025-04-30 | K44: Personalikulud | L44: Püsikulu | M44: 34,000 | N44: 50,000 | O44: 50,000 | P44: 50,000 | Q44: =SUM(M44:P44) -> 184,000 | R44: palgatase vastavas tööperes; 1 ametikoht (töökoha kuludega) | S44: Raudteeseaduse hoolduse eest vastutava üksuse pargrahvi (§ 42) täiendatakse ja täpsustakse. Lisandub täiendavalt hoolduse eest vastutava üksuse allhankefunktsiooni nõue ja täiendatakse § 42 lg-t 3 vedurite osaga. Täiendava ametikoha vajadus tulenevalt seaduse muudatusest ja TTJA kui sertifitseerimisasutuse protseduuri järgimisest. TTJA esitas Kliimaministeeriumile raudteeseaduse muudatuste ettepaneku 22.01.2024 (2-3/2024/0081). Hetkel on ministeeriumil eesmärk eelnõu saata kooskõlastusringile hiljemalt suve alguses. Euroopa Raudteeohutuse Ametile on lubatud eelnõu jõustumist 30.04.2025
A45: MKM/TTJA | B45: Digiühiskond | C45: Sidevaldkonna regulatiivse keskkonna tagamine | D45: Tsiviilkriisi ja riigikaitse seaduse eelnõu | E45: https://eelnoud.valitsus.ee/main/mount/docList/375b55a6-eaf1-4904-b3b7-fd0965df5106#nTIPqvTU | F45: Seadus reguleerib riigikaitse rahu- ja sõjaaegset korraldust, eriolukorraks, erakorraliseks ja sõjaseisukorraks valmistumist ja nendest põhjustatud olukordade lahendamist, mobilisatsiooni ja demobilisatsiooni korraldust, Eesti Vabariigi osalemist rahvusvahelises sõjalises koostöös, elutähtsate teenuste toimepidevuse tagamise õiguslikke aluseid ning järelevalvet ja vastutust | G45: https://eelnoud.valitsus.ee/main/mount/docList/375b55a6-eaf1-4904-b3b7-fd0965df5106#nTIPqvTU | H45: eeldatavalt juuni 2024 | I45: mai teine pool VV-sse ja sügisel Riigikogu lugemised | J45: 2024 lõpp | K45: Personalikulud | L45: Püsikulu | M45: 50,000 | N45: 50,000 | O45: 50,000 | P45: 50,000 | Q45: =SUM(M45:P45) -> 200,000 | R45: palgatase vastavas tööperes; 1 ametikoht | S45: Iga asutus vajab edaspidi enda riskianalüüsi ja kriisiplaani koostamist, toimepidevuse tagamist ja õppuse läbiviimist korraldama ühe töötaja, mis sõltub asutuse suurusest, püsivate kriisiülesannete arvust ja olemusest ning muudest teguritest, seega võib tegelik vajadus olla väiksem või oluliselt suurem. Arvestades kriisiolukorraks valmistumise tegevuste täitmise keskmiseks ühe töötaja töökoormuse, siis on täiendav püsivajadus hinnanguliselt 50 000 eurot aastas, lisanduvad töökoha kulud.
A46: MKM/TTJA | B46: Digiühiskond | C46: Sidevaldkonna regulatiivse keskkonna tagamine | D46: Elektroonilise side seadus | E46: Siseriiklik | F46: Ettepanek kehtestada regulaatortasu, mille suuruseks ja sihtrühmaks – 0,2% nende sideettevõtjate sideteenuste aastakäibest, kelle sideteenuste aastakäive ületab 500 000 eur. Kokku u. 11 ettevõtjat. Potentsiaalne tulu riigieelarvele 0,9 mln aastas, millest 0,7 mln läheks riigieelarvest mh TTJA sideregulaatoril seni tekkinud võimelünkade ja uute, seadustega pandavate kohustuste katteks. | G46: Hetkel VTK väljatöötamisel. Tulude laekumine aastal 2025 eeldab eelnõu heakskiitmist koos RES protsessiga. | H46: Eeldab eelnõu heakskiitmist koos RES protsessiga 2024 | I46: Eeldab eelnõu heakskiitmist koos RES protsessiga 2024 | J46: 2025-01-01 | K46: Personalikulud, investeeringud s.h.2025 250 tuh eurot, 2026 100 tuh eurot, 2027 200 tuh eurot ja 2028 100 tuh eurot | L46: Kulud täiendavate tulude arvelt | M46: 550,000 | N46: 550,000 | O46: 700,000 | P46: 700,000 | Q46: =SUM(M46:P46) -> 2,500,000 | R46: palgatase vastavas tööperes; 2025 aastal 6 ametikohta , 2026 aastal 9 ametikohta, 2027 aastal 10 ametikohta, 2028 aastal 12 ametikohta
A47: MKM/RIA | B47: Digiühiskond | C47: Küberturvalisuse tagamine | D47: NIS2 - Võetakse üle KüTS muudatusega | E47: EL direktiiv - EV seadus. Eelnõud veel ei ole. | F47: 1) direktiiv art 11 sätestab " CSIRTidele esitatavad nõuded, nende tehniline võimekus ja ülesanded", mh kohustus "koguda ja analüüsida kohtuekspertiisiandmeid ning analüüsida järjepidevalt riske ja intsidente ning tagada küberturvalisuse alane olukorrateadlikkus. Kogumise ja analüüsiga kaasneb vajadus sisustada labor ja hoiuruum, välja töötada protsess, register ning soetada vastav tarkvara ; 2) direktiivi art 23 ja 30, mis käsitlevad teatamiskohustust. Koosmõjus määrusega "Küberintsidentide registri põhimäärus" ning teatamiskohustusega kasvab CERT-EE seire töökoormus ning ööpäevases valves peab töötama kaks inimest. | G47: http://data.europa.eu/eli/dir/2022/2555 | H47: Direktiiv on vastu võetud. KüTS eelnõu esitamine VV istungile ebaselge. | I47: Direktiiv on vastu võetud. KüTS vastuvõtmine ebaselge. | J47: Direktiiv on vastu võetud. KüTS jõustumise aeg ebaselge. | K47: Personalikulud, tarkvara, riistvara, sisustus. | L47: Püsikulu, ühekordne kulu | M47: 760,000 | N47: 560,000 | O47: 560,000 | P47: 560,000 | Q47: =SUM(M47:P47) -> 2,440,000 | R47: 2025 aastal 9 ametikohta ning ühekordne investeering taristusse. 2026-2028 9 ametikoha tööjõukulu. NB! Vastavalt KüTS-i lõplikule sõnastusele võivad kulud täpsustuda. | S47: Juhul kui seadust ei jõuta muuta, siis 2025.a täiendavat tulu ei laeku ja võtame taotluse tagasi. Eraldi RMiga räägitud, et summad täpsustuvad seaduse menetluse käigus.
K48: Kokku | M48: =SUM(M33:M47) -> 1,865,200 | N48: =SUM(N33:N47) -> 11,935,584 | O48: 17,509,043 | P48: 17,664,583 | Q48: 48,974,410
K49: Kokku | M49: Kui on ühes õigusaktis erinevad kulude liigid, siis need eraldi välja tuua
K50: investeering
K51: majandamiskulu
